Workbook

Sheet Warmwasser
B1: =Translation!F3 -> Formelsammlung | AG1: =Berechnung!AY5 -> UMT v1.29
B2: =UPPER(Translation!F4) -> MIT STIEBEL ELTRON KÖNNEN SIE RECHNEN.
AG6: Gewählte Kategorie
AG7: 1
B8: =Translation!F14 -> Was soll berechnet werden? | C8: =Translation!G14 -> Was soll berechnet werden? | K8: =Translation!F15 -> Diese Angaben werden dafür benötigt.
L10: =Translation!F74 -> Kaltwassertemperatur | Q10: tKW | R10: 10 | X10: °C | AG10: Berechnung
L12: =Translation!F75 -> Temperatur im Speicher | Q12: tSp | R12: 60 | X12: °C | AG12: =ROUND(R14*(R12-R10)/(R16-R10),0) -> 1667
L14: =Translation!F76 -> Größe des Speichers | Q14: VSp | R14: 1000 | X14: =Translation!F266 -> Liter
L16: =Translation!F20 -> Mischwassertemperatur | Q16: tMW | R16: 40 | X16: °C | AG16: Ergebnisprüfung
AG18: Kaltwasser OK | AH18: =IF(ISBLANK(R10),FALSE,IF(R10<1,FALSE,IF(R10>90,FALSE,TRUE))) -> TRUE | AI18: =Translation!F210 -> Kaltwassertemperatur überprüfen.
AG19: Speichertemp OK | AH19: =IF(AND(ISNUMBER(R14),R14>0),TRUE,FALSE) -> TRUE | AI19: =Translation!F211 -> Speichertemperatur überprüfen.
AG20: Speichergröße OK | AH20: =IF(AND(ISNUMBER(R14),R14>0),TRUE,FALSE) -> TRUE | AI20: =Translation!F212 -> Speichergröße überprüfen.
AG21: Mischwassertemp OK | AH21: =IF(ISBLANK(R16),FALSE,IF(R16>R12,FALSE,IF(R16<1,FALSE,TRUE))) -> TRUE | AI21: =Translation!F213 -> Mischwassertemperatur überprüfen.
AG22: Misch- bzw. Kaltwasser | AH22: =IF(R16=R10,FALSE,IF(R16<R10,FALSE,TRUE)) -> TRUE | AI22: =Translation!F214 -> Mischwasser bzw. Kaltwasser überprüfen.
L24: =Translation!F13 -> Nach dieser Formel wurde gerechnet:
AG26: Alles OK ? | AH26: =IF(COUNTIF(AH18:AH25,FALSE)>0,FALSE,TRUE) -> TRUE | AI26: =VLOOKUP(FALSE,AH18:AI25,2,FALSE) -> 
K29: =IF(AH26=FALSE,AI26,Translation!F215) -> 1667 Liter Mischwasser mit 40 °C können aus dem Speicher entnommen werden.
L51: =Translation!F78 -> Kaltwassermenge | Q51: V1 | R51: 50 | X51: =Translation!F266 -> Liter | AG51: Berechnung
L53: =Translation!F79 -> Warmwassermenge | Q53: V2 | R53: 75 | X53: =Translation!F266 -> Liter | AG53: =ROUND(((R51*R55)+(R53*R57))/(R51+R53),1) -> 5.6
L55: =Translation!F74 -> Kaltwassertemperatur | Q55: t1 | R55: 5 | X55: °C
L57: =Translation!F80 -> Warmwassertemperatur | Q57: t2 | R57: 6 | X57: °C | AG57: Ergebnisprüfung
AG59: Kaltwasservolumen OK | AH59: =IF(AND(ISNUMBER(R51),R51>0),TRUE,FALSE) -> TRUE | AI59: =Translation!F216 -> Kaltwasservolumen überprüfen.
AG60: Warmwasservolumen OK | AH60: =IF(AND(ISNUMBER(R53),R53>0),TRUE,FALSE) -> TRUE | AI60: =Translation!F217 -> Warmwasservolumen überprüfen.
AG61: Kaltwassertemperatur OK | AH61: =IF(ISBLANK(R55),FALSE,IF(R55<1,FALSE,IF(R55>R57,FALSE,TRUE))) -> TRUE | AI61: =Translation!F210 -> Kaltwassertemperatur überprüfen.
AG62: Warmwassertemp OK ? | AH62: =IF(ISBLANK(R57),FALSE,IF(R57<1,FALSE,IF(R57<R55,FALSE,IF(R57>99,FALSE,TRUE)))) -> TRUE | AI62: =Translation!F218 -> Warmwassertemperatur überprüfen.
L65: =Translation!F13 -> Nach dieser Formel wurde gerechnet:
AG67: Alles OK ? | AH67: =IF(COUNTIF(AH59:AH66,FALSE)>0,FALSE,TRUE) -> TRUE | AI67: =VLOOKUP(FALSE,AH59:AI66,2,FALSE) -> 
K70: =IF(AH67=FALSE,AI67,Translation!F219) -> Es stellt sich eine Mischwassertemperatur von 5,6 °C ein.
L101: =Translation!F74 -> Kaltwassertemperatur | Q101: tKW | R101: 10 | X101: °C | AG101: Berechnung
L103: =Translation!F75 -> Temperatur im Speicher | Q103: tSp | R103: 37 | X103: °C | AG103: =ROUND(R107*(R105-R101)/(R103-R101),1) -> 37
L105: =Translation!F77 -> Benötigte Entnahmetemperatur | Q105: tMW | R105: 20 | X105: °C
L107: =Translation!F81 -> Benötigte Entnahmemenge | Q107: VMW | R107: 100 | X107: =Translation!F266 -> Liter | AG107: Ergebnisprüfung
AG109: Kaltwasser OK | AH109: =IF(ISBLANK(R101),FALSE,IF(R101<1,FALSE,IF(R101>90,FALSE,TRUE))) -> TRUE | AI109: =Translation!F210 -> Kaltwassertemperatur überprüfen.
AG110: Speichertemp OK | AH110: =IF(ISBLANK(R103),FALSE,IF(R103<=R101,FALSE,IF(R103>90,FALSE,TRUE))) -> TRUE | AI110: =Translation!F211 -> Speichertemperatur überprüfen.
AG111: Mischwassermenge OK | AH111: =IF(ISBLANK(R107),FALSE,IF(R107<1,FALSE,TRUE)) -> TRUE | AI111: =Translation!F220 -> Mischwassermenge überprüfen.
AG112: Mischwassertemp OK ? | AH112: =IF(ISBLANK(R105),FALSE,IF(R105>R103,FALSE,IF(R105<1,FALSE,TRUE))) -> TRUE | AI112: =Translation!F213 -> Mischwassertemperatur überprüfen.
L115: =Translation!F13 -> Nach dieser Formel wurde gerechnet:
AG117: Alles OK ? | AH117: =IF(COUNTIF(AH109:AH116,FALSE)>0,FALSE,TRUE) -> TRUE | AI117: =VLOOKUP(FALSE,AH109:AI116,2,FALSE) -> 
K120: =IF(AH117=FALSE,AI117,Translation!F221) -> Es wird eine Mindestspeichergröße von 37 Liter benötigt.
L151: =Translation!F74 -> Kaltwassertemperatur | Q151: tKW | R151: 10 | X151: °C | AG151: Berechnung
L153: =Translation!F76 -> Größe des Speichers | Q153: VSp | R153: 200 | X153: =Translation!F266 -> Liter | AG153: =IF(R157<R153,R155,ROUND(R157*(R155-R151)/R153+R151,1)) -> 90
L155: =Translation!F77 -> Benötigte Entnahmetemperatur | Q155: tMW | R155: 50 | X155: °C
L157: =Translation!F81 -> Benötigte Entnahmemenge | Q157: VMW | R157: 400 | X157: =Translation!F266 -> Liter | AG157: Ergebnisprüfung
AG159: Kaltwasser OK | AH159: =IF(ISBLANK(R151),FALSE,IF(R151<1,FALSE,IF(R151>90,FALSE,TRUE))) -> TRUE | AI159: =Translation!F210 -> Kaltwassertemperatur überprüfen.
AG160: Speichergröße OK ? | AH160: =IF(ISBLANK(R153),FALSE,IF(R153<1,FALSE,TRUE)) -> TRUE | AI160: =Translation!F212 -> Speichergröße überprüfen.
AG161: Mischwassertemp OK ? | AH161: =IF(ISBLANK(R155),FALSE,IF(R155<R151,FALSE,IF(R155>90,FALSE,TRUE))) -> TRUE | AI161: =Translation!F213 -> Mischwassertemperatur überprüfen.
AG162: Mischwassermenge OK | AH162: =IF(ISBLANK(R157),FALSE,IF(R157<1,FALSE,TRUE)) -> TRUE | AI162: =Translation!F212 -> Speichergröße überprüfen.
AG163: Ergebnis OK? | AH163: =IF(AG153>100,FALSE,TRUE) -> TRUE | AI163: =Translation!F424 -> Die erforderliche Speichertemperatur übersteigt 100°C.
L165: =Translation!F13 -> Nach dieser Formel wurde gerechnet:
AG167: Alles OK ? | AH167: =IF(COUNTIF(AH159:AH166,FALSE)>0,FALSE,TRUE) -> TRUE | AI167: =VLOOKUP(FALSE,AH159:AI166,2,FALSE) -> 
K170: =IF(AH167=FALSE,AI167,Translation!F222) -> Für 400 Liter Entnahme wird eine Mindesttemperatur von 90 °C im Speicher benötigt.
L201: =Translation!F74 -> Kaltwassertemperatur | Q201: tKW | R201: 20 | X201: °C | AG201: Berechnung
L203: =Translation!F75 -> Temperatur im Speicher | Q203: tSp | R203: 29 | X203: °C | AG203: =IF(AH204>60,AG205,AH205) -> 27 min
AG204: =ROUND(R205*1.163*(R203-R201)/(R207*1000*R209/100),1) -> 0.4 | AH204: =ROUND(R205*1.163*(R203-R201)/(R207*1000*R209/100),2)*60 -> 27
L205: =Translation!F76 -> Größe des Speichers | Q205: VSp | R205: 150 | X205: =Translation!F266 -> Liter | AG205: =AG204&" h" -> 0,4 h | AH205: =AH204&" min" -> 27 min
L207: =Translation!F82 -> Leistung Wärmeerzeuger | Q207: PWE | R207: 7 | X207: kW | AG207: Ergebnisprüfung
L209: =Translation!F83 -> Wirkungsgrad Wärmeerzeuger | Q209: η | R209: 50 | X209: % | AG209: Kaltwasser OK | AH209: =IF(ISBLANK(R201),FALSE,IF(R201<1,FALSE,IF(R201>90,FALSE,TRUE))) -> TRUE | AI209: =Translation!F210 -> Kaltwassertemperatur überprüfen.
AG210: Speichertemp OK | AH210: =IF(ISBLANK(R203),FALSE,IF(R203<R201,FALSE,IF(R203>90,FALSE,TRUE))) -> TRUE | AI210: =Translation!F211 -> Speichertemperatur überprüfen.
AG211: Speichergröße OK | AH211: =IF(ISBLANK(R205),FALSE,IF(R205<1,FALSE,TRUE)) -> TRUE | AI211: =Translation!F212 -> Speichergröße überprüfen.
AG212: Leistung WE OK ? | AH212: =IF(ISBLANK(R207),FALSE,IF(R207<=0,FALSE,IF(R207>10000,FALSE,TRUE))) -> TRUE | AI212: =Translation!F223 -> Leistung Wärmeerzeuger überprüfen.
AG213: Wirkungsgrad OK ? | AH213: =IF(ISBLANK(R209),FALSE,IF(R209<=0,FALSE,IF(R209>100,FALSE,TRUE))) -> TRUE | AI213: =Translation!F224 -> Wirkungsgrad überprüfen.
L215: =Translation!F13 -> Nach dieser Formel wurde gerechnet:
R217: ρW = 1 kg/Liter | V217: =Translation!F423 -> WE = Wärmeerzeuger | AG217: Alles OK ? | AH217: =IF(COUNTIF(AH209:AH216,FALSE)>0,FALSE,TRUE) -> TRUE | AI217: =VLOOKUP(FALSE,AH209:AI216,2,FALSE) -> 
R218: cp,W = 1,163 Wh/(kg*K)
K220: =IF(AH217=FALSE,AI217,Translation!F225) -> Für eine vollständige Speicherbeladung benötigt der Wärmeerzeuger ca. 27 min.
L251: =Translation!F74 -> Kaltwassertemperatur | Q251: tKW | R251: 10 | X251: °C | AG251: Berechnung
L253: =Translation!F75 -> Temperatur im Speicher | Q253: tSp | R253: 55 | X253: °C | AG253: =ROUND((R255*1.163*(R253-R251)/(R257*R259/100))/1000,2) -> 10.68
L255: =Translation!F76 -> Größe des Speichers | Q255: VSp | R255: 400 | X255: =Translation!F266 -> Liter
L257: =Translation!F84 -> Gewünschte Aufheizdauer | Q257: tH | R257: 2 | X257: h | AG257: Ergebnisprüfung
L259: =Translation!F83 -> Wirkungsgrad Wärmeerzeuger | Q259: η | R259: 98 | X259: % | AG259: Kaltwasser OK | AH259: =IF(ISBLANK(R251),FALSE,IF(R251<1,FALSE,IF(R251>90,FALSE,TRUE))) -> TRUE | AI259: =Translation!F210 -> Kaltwassertemperatur überprüfen.
AG260: Speichertemp OK | AH260: =IF(ISBLANK(R253),FALSE,IF(R253<R251,FALSE,IF(R253>90,FALSE,TRUE))) -> TRUE | AI260: =Translation!F211 -> Speichertemperatur überprüfen.
AG261: Speichergröße OK | AH261: =IF(ISBLANK(R255),FALSE,IF(R255<1,FALSE,TRUE)) -> TRUE | AI261: =Translation!F212 -> Speichergröße überprüfen.
AG262: Aufheizdauer OK | AH262: =IF(ISBLANK(R257),FALSE,IF(R257<=0,FALSE,IF(R257>48,FALSE,TRUE))) -> TRUE | AI262: =Translation!F226 -> Aufheizdauer überprüfen.
AG263: Wirkungsgrad OK ? | AH263: =IF(ISBLANK(R259),FALSE,IF(R259<=0,FALSE,IF(R259>100,FALSE,TRUE))) -> TRUE | AI263: =Translation!F224 -> Wirkungsgrad überprüfen.
L265: =Translation!F13 -> Nach dieser Formel wurde gerechnet:
R267: ρW = 1 kg/Liter | V267: =Translation!F423 -> WE = Wärmeerzeuger | AG267: Alles OK ? | AH267: =IF(COUNTIF(AH259:AH266,FALSE)>0,FALSE,TRUE) -> TRUE | AI267: =VLOOKUP(FALSE,AH259:AI266,2,FALSE) -> 
R268: cp,W = 1,163 Wh/(kg*K)
K270: =IF(AH267=FALSE,AI267,Translation!F227) -> Für eine vollständige Speicherbeladung in 2 h wird eine Anschlussleistung von ca. 10,68 kW benötigt.
L301: =Translation!F74 -> Kaltwassertemperatur | Q301: tKW | R301: 5 | X301: °C | AG301: Berechnung
L303: =Translation!F75 -> Temperatur im Speicher | Q303: tSp | R303: 20 | X303: °C | AG303: =ROUND(R305*1.163*(R303-R301)/1000,2) -> 0.87
L305: =Translation!F76 -> Größe des Speichers | Q305: VSp | R305: 50 | X305: =Translation!F266 -> Liter
AG307: Ergebnisprüfung
AG309: Kaltwasser OK | AH309: =IF(ISBLANK(R301),FALSE,IF(R301<1,FALSE,IF(R301>90,FALSE,TRUE))) -> TRUE | AI309: =Translation!F210 -> Kaltwassertemperatur überprüfen.
AG310: Speichertemp OK | AH310: =IF(ISBLANK(R303),FALSE,IF(R303<R301,FALSE,IF(R303>90,FALSE,TRUE))) -> TRUE | AI310: =Translation!F211 -> Speichertemperatur überprüfen.
AG311: Speichergröße OK | AH311: =IF(ISBLANK(R305),FALSE,IF(R305<1,FALSE,TRUE)) -> TRUE | AI311: =Translation!F212 -> Speichergröße überprüfen.
L315: =Translation!F13 -> Nach dieser Formel wurde gerechnet:
R317: ρW = 1 kg/Liter | AG317: Alles OK ? | AH317: =IF(COUNTIF(AH309:AH316,FALSE)>0,FALSE,TRUE) -> TRUE | AI317: =VLOOKUP(FALSE,AH309:AI316,2,FALSE) -> 
R318: cp,W = 1,163 Wh/(kg*K)
K320: =IF(AH317=FALSE,AI317,Translation!F228) -> Der Energiebedarf für eine Speicherbeladung beträgt 0,87 kWh.
L351: =Translation!F85 -> Vorlauftemperatur | Q351: tVL | R351: 60 | X351: °C | AG351: Berechnung
L353: =Translation!F75 -> Temperatur im Speicher | Q353: tSp | R353: 50 | X353: °C | AG353: =ROUND(R355*1000/(400*(R351-R353)),1) -> 25
L355: =Translation!F86 -> Leistung des Wärmeerzeugers | Q355: Q̇WE | R355: 100 | X355: kW
AG357: Ergebnisprüfung
AG359: Vorlauftemp. OK | AH359: =IF(ISBLANK(R351),FALSE,IF(R351<1,FALSE,IF(R351>90,FALSE,TRUE))) -> TRUE | AI359: =Translation!F229 -> Vorlauftemperatur überprüfen.
AG360: Speichertemp OK | AH360: =IF(ISBLANK(R353),FALSE,IF(R353>=R351,FALSE,IF(R353<1,FALSE,TRUE))) -> TRUE | AI360: =Translation!F211 -> Speichertemperatur überprüfen.
AG361: Leistung OK | AH361: =IF(ISBLANK(R355),FALSE,IF(R355<1,FALSE,IF(R355>10000,FALSE,TRUE))) -> TRUE | AI361: =Translation!F223 -> Leistung Wärmeerzeuger überprüfen.
L365: =Translation!F13 -> Nach dieser Formel wurde gerechnet:
R367: k = 400 W/(m²K) | V367: =Translation!F235&" "&Translation!F236 -> Vereinfachte Berechnung ohne Berücksichtigung der mittleren logarithmischen Temperaturdifferenz | AG367: Alles OK ? | AH367: =IF(COUNTIF(AH359:AH366,FALSE)>0,FALSE,TRUE) -> TRUE | AI367: =VLOOKUP(FALSE,AH359:AI366,2,FALSE) -> 
R368: =Translation!F423 -> WE = Wärmeerzeuger
K370: =IF(AH367=FALSE,AI367,Translation!F230) -> Zum Erreichen einer Speichertemperatur von 50 °C wird eine Tauscherfläche von mindestens 25 m² im Speicher benötigt.
L401: =Translation!F74 -> Kaltwassertemperatur | Q401: tKW | R401: 9 | X401: °C | AG401: Berechnung
L403: =Translation!F87 -> Temperatur an der Zapfstelle | Q403: tWW | R403: 41 | X403: °C | AG403: =ROUND((R407*R405*1.163*(R403-R401))/1000,1) -> 15.6
L405: =Translation!F88 -> Anzahl Personen im Haushalt | Q405: n | R405: 7 | X405: =IF(R405=1,Translation!F276,Translation!F279) -> Personen
L407: =Translation!F89 -> Warmwasserverbrauch / Person | Q407: VP | R407: 60 | X407: =Translation!F422 -> Liter/Tag | AG407: Ergebnisprüfung
AG409: Kaltwassertemp OK | AH409: =IF(ISBLANK(R401),FALSE,IF(R401<1,FALSE,IF(R401>90,FALSE,TRUE))) -> TRUE | AI409: =Translation!F210 -> Kaltwassertemperatur überprüfen.
AG410: WW-Temp OK | AH410: =IF(ISBLANK(R403),FALSE,IF(R403<R401,FALSE,IF(R403>60,FALSE,TRUE))) -> TRUE | AI410: =Translation!F231 -> Zapftemperatur überprüfen.
AG411: Personenzahl OK | AH411: =IF(ISBLANK(R405),FALSE,IF(R405<1,FALSE,IF(R405>100,FALSE,IF(MOD(R405,1)<>0,FALSE,TRUE)))) -> TRUE | AI411: =Translation!F232 -> Personenzahl überprüfen.
AG412: Wasserverbrauch OK | AH412: =IF(ISBLANK(R407),FALSE,IF(R407<=0,FALSE,IF(R407>10000,FALSE,TRUE))) -> TRUE | AI412: =Translation!F233 -> Warmwasserverbrauch überprüfen
L415: =Translation!F13 -> Nach dieser Formel wurde gerechnet:
R417: ρW = 1 kg/Liter | AG417: Alles OK ? | AH417: =IF(COUNTIF(AH409:AH416,FALSE)>0,FALSE,TRUE) -> TRUE | AI417: =VLOOKUP(FALSE,AH409:AI416,2,FALSE) -> 
R418: cp,W = 1,163 Wh/(kg*K)
K420: =IF(AH417=FALSE,AI417,Translation!F234) -> Pro Tag werden 15,6 kWh Wärmeenergie für die Warmwasserbereitung benötigt.
L451: =Translation!F482 -> Anzahl Wohneinheiten | Q451: NNE | R451: 4 | AG451: Berechnung | AK451: Zapfprofil | AL451: Spitzenbedarf(1h) | AM451: Zuschlag Verluste/Durchmischung | AN451: Index | AO451: Größe | AP451: Größe Auswahl | AQ451: Soltemperatur im Speicher | AS451: Kaltwassertemperatur
AK452: Einzelperson, nur Dusche | AL452: =VLOOKUP(AK452,AK453:AL469,2,FALSE) -> 0.945 | AM452: Neubau | AN452: =VLOOKUP(AM452,AM453:AN469,2,FALSE) -> 30 | AP452: =VLOOKUP(AG453,AO453:AP472,2,TRUE) -> 162 | AQ452: 40°C | AR452: =VLOOKUP(AQ452,AQ453:AR469,2,FALSE) -> 40 | AS452: 4°C | AT452: =VLOOKUP(AS452,AS453:AT469,2,FALSE) -> 4
L453: =Translation!F483 -> Zapfprofil | Q453: Q | AG453: =ROUND(((R451*AL452*1000)/(1.163*(AR452-AT452)))*(1+(AN452/100)),0) -> 117 | AK453: =Translation!F568 -> Einzelperson, nur Dusche | AL453: 0.945 | AM453: =Translation!F572 -> Neubau | AN453: 30 | AO453: 1 | AP453: 162 | AQ453: 40°C | AR453: 40 | AS453: 4°C | AT453: 4
AK454: =Translation!F569 -> Familie, nur Dusche | AL454: 2.24 | AM454: =Translation!F571 -> Altbau | AN454: 50 | AO454: 161 | AP454: 168 | AQ454: 45°C | AR454: 45 | AS454: 5°c | AT454: 5
L455: =Translation!F484 -> Solltemperatur im Speicher | Q455: tSoll | AK455: =Translation!F570 -> Familie, Dusche und Badewanne | AL455: 4.445 | AO455: 167 | AP455: 175 | AQ455: 50°C | AR455: 50 | AS455: 6°C | AT455: 6
AO456: 174 | AP456: 300 | AQ456: 55°C | AR456: 55 | AS456: 7°C | AT456: 7
L457: =Translation!F74 -> Kaltwassertemperatur | Q457: tKW | AG457: Ergebnisprüfung | AO457: 299 | AP457: 400 | AQ457: 60°C | AR457: 60 | AS457: 8°C | AT457: 8
AO458: 399 | AP458: 500 | AQ458: 65°C | AR458: 65 | AS458: 9°C | AT458: 9
L459: =Translation!G485 -> Typ Gebäude | Q459: f | AG459: Anzahl Wohneinheiten | AH459: =IF(OR(R451<=0,R451>45),FALSE,TRUE) -> TRUE | AI459: =Translation!F489 -> Wohneinheiten zwischen 0 und 45 zulässig | AO459: 499 | AP459: 600 | AQ459: 70°C | AR459: 70 | AS459: 10°C | AT459: 10
AO460: 599 | AP460: 750 | AQ460: 75°C | AR460: 75 | AS460: 11°C | AT460: 11
AO461: 749 | AP461: 800 | AS461: 12°C | AT461: 12
AO462: 799 | AP462: 1000 | AS462: 13°C | AT462: 13
AG463: Alles OK? | AH463: =IF(AH459=FALSE,FALSE,TRUE) -> TRUE | AI463: =Translation!F489 -> Wohneinheiten zwischen 0 und 45 zulässig | AO463: 999 | AP463: 1200 | AS463: 14°C | AT463: 14
AO464: 1199 | AP464: 1500
L465: =Translation!F13 -> Nach dieser Formel wurde gerechnet: | AO465: 1499 | AP465: 1800
AO466: 1799 | AP466: 2000
R467: cp,W = 1,163 Wh/(kg*K) | V467: ="f = "&AN452 -> f = 30 | AO467: 1999 | AP467: 2250
R468: ="Q = "&AL452&" kWh" -> Q = 0,945 kWh | AO468: 2249 | AP468: 2400
AO469: 2500 | AP469: 3000
K470: =IF(AH463=FALSE,AI463,Translation!F487&CHAR(10)&Translation!F486) -> Nach DIN EN 15450 beträgt das Mindestvolumen des Speichers 117 Liter. Das empfohlene Speichervolumen beträgt 162 Liter. | AO470: 3100 | AP470: 3200
AO471: 3300 | AP471: 3750
AO472: 3850 | AP472: 4000
L501: =Translation!F577 -> Anzahl Wohnungen
AG503: Gewaehlte Wohneinhieten | AI503: 1 Wohneinheit
AG504: Faktor TU Dresden | AI504: =VLOOKUP(AI503,Berechnung!A159:D218,4,FALSE) -> 1
AH506: Diagramm-Anzeige GL-Faktor
AH507: x-Wert | AI507: y-Wert
AG508: Senkrechte Linie | AH508: =AI504 -> 1 | AI508: =VLOOKUP(AI503,Berechnung!A159:D218,2,FALSE) -> 1
AH509: 0 | AI509: =AI508 -> 1
AG510: Waagerechte Linie | AH510: =AH508 -> 1 | AI510: 0
AH511: =AH508 -> 1 | AI511: =AI509 -> 1
K520: =Translation!F579 -> Wenn Sie 1 Wohneinheiten haben, brauchen nur 1 Wohnungen zur Berechnung des Spitzenwarmwasserbedarfs berücksichtigt werden (nach Empfehlung der TU Dresden).

Sheet Durchlauferhitzer (hidden)
B1: =Warmwasser!B1 -> Formelsammlung | AG1: =Berechnung!AY5 -> UMT v1.29
B2: =Warmwasser!B2 -> MIT STIEBEL ELTRON KÖNNEN SIE RECHNEN.
AG6: Gewählte Kategorie
AG7: 5
C8: =Translation!G14 -> Was soll berechnet werden? | K8: =Translation!F15 -> Diese Angaben werden dafür benötigt.
L10: =Translation!F74 -> Kaltwassertemperatur | Q10: tKW | R10: 21 | X10: °C | AG10: Berechnung
L12: =Translation!F80 -> Warmwassertemperatur | Q12: tWW | R12: 22 | X12: °C | AG12: =ROUND(R14*1000/(1.163*60*(R12-R10)),2) -> 343.94
L14: =Translation!F119 -> Anschlussleistung | Q14: Pel | R14: 24 | X14: kW
AG20: Ergebnisprüfung
AG22: Kaltwassertemperatur OK | AH22: =IF(OR(R10="",R10<1,R10>=R12),FALSE,TRUE) -> TRUE | AI22: =Translation!F210 -> Kaltwassertemperatur überprüfen.
AG23: WWTemperatur OK | AH23: =IF(OR(R12="",R12<20,R12>65),FALSE,TRUE) -> TRUE | AI23: =Translation!F218 -> Warmwassertemperatur überprüfen.
L24: =Translation!F13 -> Nach dieser Formel wurde gerechnet: | AG24: Leistung OK | AH24: =IF(OR(ISBLANK(R14),R14=0),FALSE,TRUE) -> TRUE | AI24: =Translation!F243 -> Anschlussleistung überprüfen.
R26: ρW = 1 kg/Liter
R27: cp,W = 1,163 Wh/(kg*K)
K29: =IF(AH30=FALSE,AI30,Translation!F238) -> Der maximale Durchfluss beträgt 343,94 l/min.
AG30: Alles OK ? | AH30: =IF(COUNTIF(AH22:AH29,FALSE)>0,FALSE,TRUE) -> TRUE | AI30: =VLOOKUP(FALSE,AH22:AI29,2,FALSE) -> 
L51: =Translation!F74 -> Kaltwassertemperatur | Q51: tKW | R51: 10 | X51: °C | AG51: Berechnung | AK51: Umrechnen
AK52: 1 | AL52: =VLOOKUP(AK52,AK53:AO56,2,FALSE) -> l/min | AM52: =VLOOKUP(AK52,AK53:AO56,3,FALSE) -> 16.66666667
L53: =Translation!F119 -> Anschlussleistung | Q53: Pel | R53: 27 | X53: kW | AG53: =ROUND((R53/(R55*1.163)*AM52)+R51,1) -> 16.4 | AK53: 1 | AL53: l/min | AM53: =100/6 -> 16.66666667
AK54: 2 | AL54: l/h | AM54: =1000/1 -> 1000
L55: =Translation!F120 -> Maximaler Durchfluss | Q55: V̇ | R55: 60 | X55: =AL52 -> l/min | AK55: 3 | AL55: m³/h | AM55: 1
AG61: Ergebnisprüfung
AG63: Zulauftemperatur OK | AH63: =IF(ISBLANK(R51),FALSE,IF(R51<1,FALSE,IF(R51>20,FALSE,TRUE))) -> TRUE | AI63: =Translation!F210 -> Kaltwassertemperatur überprüfen.
AG64: Anschlussleistung OK | AH64: =IF(OR(ISBLANK(R53),R53<=0),FALSE,TRUE) -> TRUE | AI64: =Translation!F243 -> Anschlussleistung überprüfen.
B65: =$B$24 ->  | C65: =$B$24 ->  | L65: =Translation!F13 -> Nach dieser Formel wurde gerechnet: | AG65: Durchfluss OK | AH65: =IF(ISBLANK(R55),FALSE,IF(R55<1,FALSE,IF(R55>10000,FALSE,TRUE))) -> TRUE | AI65: =Translation!F244 -> Durchfluss überprüfen.
AG66: Rechnung OK? | AH66: =IF(AG53>99,FALSE,TRUE) -> TRUE | AI66: =Translation!F562 -> Leistung bzw. Volumenstrom überprüfen. Wassertemperatur übersteigt 100°C.
B67: =$B$26 ->  | C67: =$B$26 ->  | R67: ρW = 1 kg/Liter
R68: cp,W = 1,163 Wh/(kg*K)
K70: =IF(AH71=FALSE,AI71,Translation!F239) -> Die maximale Warmwassertemperatur beträgt 16,4 °C.
AG71: Alles OK ? | AH71: =IF(COUNTIF(AH63:AH70,FALSE)>0,FALSE,TRUE) -> TRUE | AI71: =VLOOKUP(FALSE,AH63:AI70,2,FALSE) -> 
L101: =Translation!F74 -> Kaltwassertemperatur | Q101: tKW | R101: 21 | X101: °C | AG101: Berechnung | AK101: Umrechnen
AK102: 1 | AL102: =VLOOKUP(AK102,AK103:AO106,2,FALSE) -> l/min | AM102: =VLOOKUP(AK102,AK103:AO106,3,FALSE) -> 0.06
L103: =Translation!F80 -> Warmwassertemperatur | Q103: tWW | R103: 65 | X103: °C | AG103: =ROUND(R105*AM102*1.163*(R103-R101),0) -> 31 | AK103: 1 | AL103: l/min | AM103: =6/100 -> 0.06
AK104: 2 | AL104: l/h | AM104: =1/1000 -> 0.001
L105: =Translation!F120 -> Maximaler Durchfluss | Q105: V̇ | R105: 10 | X105: =AL102 -> l/min | AK105: 3 | AL105: m³/h | AM105: 1
AG107: Ergebnisprüfung
AG109: Kaltwasser OK | AH109: =IF(ISBLANK(R101),FALSE,IF(R101<1,FALSE,IF(R101>90,FALSE,IF(R101>R103,FALSE,TRUE)))) -> TRUE | AI109: =Translation!F210 -> Kaltwassertemperatur überprüfen.
AG110: Warmwasser OK | AH110: =IF(ISBLANK(R103),FALSE,IF(R103<1,FALSE,IF(R103>65,FALSE,TRUE))) -> TRUE | AI110: =Translation!F218 -> Warmwassertemperatur überprüfen.
AG111: Druchfluss | AH111: =IF(ISBLANK(R103),FALSE,IF(R103<1,FALSE,TRUE)) -> TRUE | AI111: =Translation!F244 -> Durchfluss überprüfen.
B115: =$B$24 ->  | C115: =$B$24 ->  | L115: =Translation!F13 -> Nach dieser Formel wurde gerechnet:
B117: =$B$26 ->  | C117: =$B$26 ->  | R117: ρW = 1 kg/Liter | AG117: Alles OK ? | AH117: =IF(COUNTIF(AH109:AH116,FALSE)>0,FALSE,TRUE) -> TRUE | AI117: =VLOOKUP(FALSE,AH109:AI116,2,FALSE) -> 
R118: cp,W = 1,163 Wh/(kg*K)
K120: =IF(AH117=FALSE,AI117,Translation!F240) -> Die benötigte Anschlussleistung um eine Warmwassertemperatur von 65 °C zu erreichen beträgt 31 kW.
L151: =Translation!F121 -> Bauart Durchlauferhitzer | X151: - | AG151: Berechnung
L153: =Translation!F126 -> Art der Duschbrause | X153: - | AG153: Berechnung: | AI153: Elektronisch | AJ153: Hydraulisch | AN153: Art | AQ153: Leistung | AT153: max. Durchfluss | AW153: tww | AX153: Entnahmestelle | AY153: l/min | AZ153: Vorgaben | BA153: Werte | BB153: Einheiten
AG154: Warmwasserverbrauch [Liter] | AI154: =AY154*R157 -> 10 | AJ154: =AI154 -> 10 | AN154: Elektronisch | AQ154: =R155 -> 27 | AW154: 30 | AX154: 1 l/min | AY154: =VLOOKUP(AX154,AX155:AY162,2,FALSE) -> 1
L155: =Translation!F123 -> Leistungsgröße | Q155: Pel | R155: 27 | X155: kW | AG155: Erzeugte WW-Temperatur [°C] | AI155: =AW154 -> 30 | AJ155: =AQ154*1000/(1.163*60*AY154)+BA155 -> 396.9303525 | AN155: =Translation!F128 -> Elektronisch | AT155: =AQ154*1000/((AW154-BA155)*1.163*60) -> 19.34651763 | AW155: 30 | AX155: 1 l/min | AY155: 1 | AZ155: Kaltewasser: | BA155: =Berechnung!F132 -> 10 | BB155: °C
AG156: Kaltwasserbeimischung [l/min] | AI156: 0 | AJ156: =AY154*(AJ155-BA155)/(AW154-BA155)-AY154 -> 18.34651763 | AN156: =Translation!F129 -> Hydraulisch | AW156: 31 | AX156: 2 l/min | AY156: 2 | AZ156: Kosten Frisch/Abwasser: | BA156: =ROUND(Berechnung!F133,2) -> 5.63 | BB156: =Translation!F468 -> €/m³
L157: =Translation!F122 -> Duschdauer | Q157: t | R157: 10 | X157: min | AG157: Kaltwasserverbrauch [Liter] | AI157: 0 | AJ157: =AJ156*R157 -> 183.4651763 | AW157: 32 | AX157: 3 l/min | AY157: 3 | AZ157: Stromkosten | BA157: =Berechnung!F134 -> 29 | BB157: Ct/kWh
AG158: Wasserverbrauch-gesamt [Liter] | AI158: =AI154+AI157 -> 10 | AJ158: =AJ157+AJ154 -> 193.4651763 | AW158: 33 | AX158: 4 l/min | AY158: 4 | BA158: =ROUND(IF(OR(Berechnung!B131=Berechnung!B136,Berechnung!B131=Berechnung!B137),Durchlauferhitzer!BA157/100,Durchlauferhitzer!BA157),2) -> 29 | BB158: =Translation!F469 -> Ct/kWh
L159: =Translation!F80 -> Warmwassertemperatur | Q159: tWW | X159: °C | AG159: Wasserkosten [Euro] | AI159: =AI158*BA156/1000 -> 0.0563 | AJ159: =AJ158*BA156/1000 -> 1.089208942 | AW159: 34 | AX159: 5 l/min | AY159: 5
AG160: Energiebedarf [kWh] | AI160: =1.163*AY154*R157*(AW154-BA155)/1000 -> 0.2326 | AJ160: =AJ154*1.163*(AJ155-BA155)/(0.98*1000) -> 4.591836735 | AW160: 35 | AX160: =Translation!F130 -> Sparbrause (6 l/min) | AY160: 6
AG161: Energiekosten [Euro] | AI161: =BA157/100*AI160 -> 0.067454 | AJ161: =AJ160*BA157/100 -> 1.331632653 | AW161: 36 | AX161: =Translation!F131 -> Normalbrause (8 l/min) | AY161: 8
AG162: Gesamtkosten [Euro] | AI162: =ROUND(AI161+AI159,2) -> 0.12 | AJ162: =ROUND(AJ161+AJ159,2) -> 2.42 | AW162: 37 | AX162: =Translation!F132 -> Komfortbrause (10 l/min) | AY162: 10
AW163: 38
AG164: Ausgabe | AI164: =IF(AN154=AN155,AI162,AJ162) -> 0.12 | AW164: 39
B165: =$B$24 ->  | C165: =$B$24 ->  | L165: =Translation!F13 -> Nach dieser Formel wurde gerechnet: | AW165: 40
AG166: Ergebnisprüfung
B167: =$B$26 ->  | C167: =$B$26 ->  | R167: ρW = 1 kg/Liter | V167: =Translation!F74&" tKW = "&BA155&" °C" -> Kaltwassertemperatur tKW = 10 °C | AG167: Dauer OK | AH167: =IF(ISBLANK(R157),FALSE,IF(R157<=1,FALSE,IF(R157>10000,FALSE,TRUE))) -> TRUE | AI167: =Translation!F245 -> Dauer des Duschvorgangs überprüfen.
R168: cp,W = 1,163 Wh/(kg*K) | V168: =Translation!F124&" kW= "&BA156&" "&BB156 -> Kosten Frisch- und Abwasser kW= 5,63 €/m³ | AG168: WW.Temp OK | AH168: =IF(ISBLANK(AW154),FALSE,TRUE) -> TRUE | AI168: =Translation!F246 -> Mittlere Duschtemperatur überprüfen.
AG169: Leistungsgröße Ok | AH169: =IF(ISBLANK(AQ154),FALSE,IF(AQ154<=0,FALSE,IF(AQ154<1.163*AY154*(AW154-BA155)*60/1000,FALSE,TRUE))) -> TRUE | AI169: =Translation!F247 -> Leistung des Durchlauferhitzers zu klein.
K170: =IF(AH176=FALSE,AI176,Translation!F241) -> Die Kosten für einen Duschvorgang betragen 0,12 Euro (Strom u. Wasser). | X170: =Translation!F125&" kel = "&BA158&" "&BB158 -> Stromkosten kel = 29 Ct/kWh | AG170: Durchfluss OK | AH170: =IF(ISBLANK(AY154),FALSE,IF(AY154<=0,FALSE,IF(AY154>AT155,FALSE,TRUE))) -> TRUE | AI170: =Translation!F248 -> Die gewählte Leistung ist zu schwach für die gewünschte Warmwassertemperatur.
AG176: Alles OK ? | AH176: =IF(COUNTIF(AH167:AH173,FALSE)>0,FALSE,TRUE) -> TRUE | AI176: =VLOOKUP(FALSE,AH167:AI173,2,FALSE) -> 
L201: =Translation!F127 -> Art der Badewanne | X201: - | AG201: Berechnung
L203: =Translation!F80 -> Warmwassertemperatur | Q203: tWW | X203: °C | AG203: =ROUND(AO213*1.163*(AG206-AO207)*AO209/(100000*0.98)+AO213/1000*AO208,2) -> 1.75
AG205: tww | AH205: Werte voreingesetllt
AG206: 30
AG207: 30 | AH207: =Translation!F74 -> Kaltwassertemperatur | AN207: tKW | AO207: =Berechnung!F132 -> 10 | AR207: °C
AG208: 31 | AH208: =Translation!F124 -> Kosten Frisch- und Abwasser | AN208: kW | AO208: =ROUND(Berechnung!F133,2) -> 5.63 | AR208: =Translation!F468 -> €/m³
AG209: 32 | AH209: =Translation!F125 -> Stromkosten | AN209: kel | AO209: =Berechnung!F134 -> 29 | AR209: Ct/kWh
AG210: 33 | AL210: Bei Tschechien | AN210: kel | AO210: =ROUND(IF(OR(Berechnung!B131=Berechnung!B136,Berechnung!B131=Berechnung!B137),AO209/100,AO209),2) -> 29 | AR210: =Translation!F469 -> Ct/kWh
AG211: 34
AG212: 35
AG213: 36 | AH213: Art Badewanne | AM213: Liter | AO213: =VLOOKUP(AH214,AH215:AM217,6,FALSE) -> 140 | AR213: Liter
AG214: 37 | AH214: Badewanne (140 l)
B215: =$B$24 ->  | C215: =$B$24 ->  | L215: =Translation!F13 -> Nach dieser Formel wurde gerechnet: | AG215: 38 | AH215: =Translation!F133 -> Badewanne (140 l) | AM215: 140
AG216: 39 | AH216: =Translation!F134 -> Badewanne klein (100 l) | AM216: 100
B217: =$B$26 ->  | C217: =$B$26 ->  | R217: ρW = 1 kg/Liter | V217: =Translation!F74&" tKW = "&AO207&" °C" -> Kaltwassertemperatur tKW = 10 °C | AG217: 40 | AH217: =Translation!F135 -> Badewanne groß (200 l) | AM217: 200
R218: cp,W = 1,163 Wh/(kg*K) | V218: =Translation!F124&" kW= "&AO208&" "&AR208 -> Kosten Frisch- und Abwasser kW= 5,63 €/m³
K220: =IF(AH226=FALSE,AI226,Translation!F242) -> Die Kosten für ein vollständiges Wannenbad betragen 1,75 Euro. | X220: =Translation!F125&" kel = "&AO210&" "&AR210 -> Stromkosten kel = 29 Ct/kWh | AG220: Ergebnisprüfung
AG222: Größe der Wanne OK | AH222: =IF(ISBLANK(AO213),FALSE,IF(AO213<=1,FALSE,IF(AO213>1000,FALSE,TRUE))) -> TRUE | AI222: =Translation!F249 -> Größe der Badewanne überprüfen.
AG223: WW.Temp OK | AH223: =IF(ISBLANK(AG206),FALSE,IF(AG206=0,FALSE,TRUE)) -> TRUE | AI223: =Translation!F246 -> Mittlere Duschtemperatur überprüfen.
AG226: Alles OK ? | AH226: =IF(COUNTIF(AH219:AH223,FALSE)>0,FALSE,TRUE) -> TRUE | AI226: =VLOOKUP(FALSE,AH219:AI223,2,FALSE) -> 

Sheet Heizung (hidden)
B1: =Warmwasser!B1 -> Formelsammlung | AG1: =Berechnung!AY5 -> UMT v1.29
B2: =Warmwasser!B2 -> MIT STIEBEL ELTRON KÖNNEN SIE RECHNEN.
AG6: Gewählte Kategorie
AG7: 14
C8: =Translation!F14 -> Was soll berechnet werden? | K8: =Translation!F15 -> Diese Angaben werden dafür benötigt.
L10: =Translation!F137 -> Rohrart | AG10: Berechnung
L12: =Translation!F138 -> Nennweite | Q12: DN | X12: mm | AG12: =ROUND(Berechnung!C56,0) -> 88
L14: =Translation!F139 -> Rohreinbauten | Q14: Δp | X14: -
L16: =Translation!F140 -> Wassertemperatur | Q16: tW | X16: °C | AG16: Ergebnisprüfung
L18: =Translation!F141 -> Volumenstrom | Q18: V̇ | R18: 10 | X18: m³/h | AG18: Rohrlänge OK? | AH18: =IF(ISBLANK(R20),FALSE,IF(R20<0,FALSE,TRUE)) -> TRUE | AI18: =Translation!F331 -> Rohrlänge überprüfen.
AG19: Volumenstrom OK? | AH19: =IF(ISBLANK(R18),FALSE,IF(R18<0,FALSE,TRUE)) -> TRUE | AI19: =Translation!F332 -> Rohrwiderstand überprüfen.
L20: =Translation!F451 -> Rohrlänge | Q20: l | R20: 10 | X20: m
L24: =Translation!F13 -> Nach dieser Formel wurde gerechnet:
R26: Max. Fließgeschwindigkeit in Heizungsrohren: | AG26: Alles OK ? | AH26: =IF(COUNTIF(AH18:AH25,FALSE)>0,FALSE,TRUE) -> TRUE | AI26: =VLOOKUP(FALSE,AH18:AI25,2,FALSE) -> 
R27: =Translation!F462&" 0,5 m/s" -> Anschlussleitungen bis 0,5 m/s
R28: =Translation!F463&" 1 m/s" -> Verteilleitungen bis 1 m/s
K29: =IF(AH26=FALSE,AI26,Translation!F329)&CHAR(10)&Translation!F459 -> Die Rohrleitung hat einen Druckverlust von 88 mbar. Die Fließgeschwindigkeit beträgt 13,82 m/s.
L51: =Translation!F152 -> Heizkörper | X51: - | AG51: Berechnung
L53: =Translation!F444 -> Höhe Heizkörper | X53: mm | AG53: =DatenHeizkoerper!B150 -> 
L55: =IF(OR(DatenHeizkoerper!L4=DatenHeizkoerper!L3,DatenHeizkoerper!L3=DatenHeizkoerper!L5),Translation!F442,Translation!F445) -> Bautyp | X55: -
L57: =IF(OR(DatenHeizkoerper!L4=DatenHeizkoerper!L3,DatenHeizkoerper!L3=DatenHeizkoerper!L5),Translation!F443,Translation!F446) -> Baulänge | X57: -
L59: =Translation!F85 -> Vorlauftemperatur | Q59: tV | X59: °C
L61: =Translation!F153 -> Rücklauftemperatur | Q61: tR | X61: °C
L63: =Translation!F102 -> Raumtemperatur | Q63: ti | X63: °C | AG63: Ergebnisprüfung
AG65: Vorlauf/Rücklauf OK ? | AH65: =IF(DatenHeizkoerper!H3<=DatenHeizkoerper!I3,FALSE,TRUE) -> FALSE | AI65: =Translation!F334 -> Vorlauf- bzw. Rücklauftemperatur überprüfen.
S66: =Translation!F335 -> Heizköperexponent | W66: ="n = "&DatenHeizkoerper!B148 -> n = 1,25
S67: =Translation!F435 -> Spezifische Wärmeleistung | W67: ="q = "&DatenHeizkoerper!B145&" "&DatenHeizkoerper!C145 -> q = 436 W/m
K70: =IF(AH73=FALSE,AI73,Translation!F333) -> Vorlauf- bzw. Rücklauftemperatur überprüfen.
AG73: Alles OK ? | AH73: =IF(COUNTIF(AH65:AH72,FALSE)>0,FALSE,TRUE) -> FALSE | AI73: =VLOOKUP(FALSE,AH65:AI72,2,FALSE) -> Vorlauf- bzw. Rücklauftemperatur überprüfen.
L101: =Translation!F137 -> Rohrart | AG101: Berechnung
L103: =Translation!F138 -> Nennweite | Q103: dR | X103: mm | AG103: =ROUND((4*R105/(PI()*(AI103)^2))*AH104,1) -> 3536.8 | AH103: Durchmesser: | AI103: =IF(Berechnung!R4=Berechnung!R7,Berechnung!C4,IF(Berechnung!R4=Berechnung!R8,Berechnung!G4,IF(Berechnung!R4=Berechnung!R9,Berechnung!K4,Berechnung!O4)))*1000 -> 10
AG104: 3 | AH104: =VLOOKUP(AG104,AG105:AI107,3,FALSE) -> 277.7777778
L105: =Translation!F141 -> Volumenstrom | Q105: V̇ | R105: 1000 | X105: =VLOOKUP(AG104,AG105:AH107,2,FALSE) -> m³/h | AG105: 1 | AH105: l/s | AI105: 1000
AG106: 2 | AH106: l/min | AI106: =1000/60 -> 16.66666667
AG107: 3 | AH107: m³/h | AI107: =1000*1000/3600 -> 277.7777778
AG109: Ergebnisrüfung
AG110: Volumenstrom OK | AH110: =IF(ISBLANK(R105),FALSE,IF(R105<=0,FALSE,TRUE)) -> TRUE | AI110: =Translation!F301 -> Volumenstrom überprüfen.
L115: =Translation!F13 -> Nach dieser Formel wurde gerechnet:
AG117: Alles OK ? | AH117: =IF(COUNTIF(AH110:AH116,FALSE)>0,FALSE,TRUE) -> TRUE | AI117: =VLOOKUP(FALSE,AH110:AI116,2,FALSE) -> 
K120: =IF(AH117=FALSE,AI117,Translation!F336) -> Die Strömungsgeschwindigkeit im Rohr beträgt 3536,8 m/s.
L151: =Translation!F137 -> Rohrart | AG151: Berechnung
L153: =Translation!F138 -> Nennweite | Q153: di | X153: mm | AG153: =ROUND((PI()/4*(AI153)^2*R155)*1000,1) -> 0.8 | AI153: =IF(Berechnung!R5=Berechnung!R14,Berechnung!C5,IF(Berechnung!R5=Berechnung!R15,Berechnung!G5,IF(Berechnung!R5=Berechnung!R16,Berechnung!K5,Berechnung!AX5))) -> 0.01
AG154: 2
L155: =Translation!F142 -> Länge des Rohres | Q155: l | R155: 10 | X155: m
AG157: Ergebnisprüfung
AG159: Länge Rohr OK | AH159: =IF(ISBLANK(R155),FALSE,IF(R155<0,FALSE,TRUE)) -> TRUE | AI159: =Translation!F338 -> Länge des Rohres überprüfen.
L165: =Translation!F13 -> Nach dieser Formel wurde gerechnet:
AG167: Alles OK ? | AH167: =IF(COUNTIF(AH159:AH166,FALSE)>0,FALSE,TRUE) -> TRUE | AI167: =VLOOKUP(FALSE,AH159:AI166,2,FALSE) -> 
K170: =IF(AH167=FALSE,AI167,Translation!F337) -> Der Wasserinhalt im Rohr beträgt 0,8 Liter.
L201: =Translation!F428 -> Druckverlust 1 | Q201: Δp1 | R201: 2 | X201: mbar | AG201: Berechnung
L203: =Translation!F148 -> Volumenstrom 1 | Q203: V̇1 | R203: 3 | X203: m3/h | AG203: =ROUND(R201*(R205/R203)^2,3) -> 0.889
L205: =Translation!F149 -> Volumenstrom 2 | Q205: V̇2 | R205: 2 | X205: m3/h
AG207: Ergebnisprüfung
AG209: Vol.strom.1 . OK | AH209: =IF(ISBLANK(R203),FALSE,IF(R203<0,FALSE,TRUE)) -> TRUE | AI209: =Translation!F362 -> Volumenstrom 1 überprüfen.
AG210: Vol.strom.2 . OK | AH210: =IF(ISBLANK(R205),FALSE,IF(R205<0,FALSE,TRUE)) -> TRUE | AI210: =Translation!F363 -> Volumenstrom 2 überprüfen.
AG211: Druckverlust 1 OK | AH211: =IF(ISBLANK(R201),FALSE,IF(R201<0,FALSE,TRUE)) -> TRUE | AI211: =Translation!F340 -> Druckverlust1 überprüfen.
L215: =Translation!F13 -> Nach dieser Formel wurde gerechnet:
AG217: Alles OK ? | AH217: =IF(COUNTIF(AH209:AH216,FALSE)>0,FALSE,TRUE) -> TRUE | AI217: =VLOOKUP(FALSE,AH209:AI216,2,FALSE) -> 
K220: =IF(AH217=FALSE,AI217,Translation!F339) -> Der Druckverlust 2 beträgt 0,889 mbar.
L251: =Translation!F151 -> Zeta-Wert | Q251: =IF(AH254=1,"kvs","ξ") -> ξ | R251: 32 | X251: =IF(AH254=1,"m³/h","") ->  | AG251: Berechnung | AJ251: Ergebnisausgabe
L253: =Translation!F141 -> Volumenstrom | Q253: V̇ | R253: 10 | X253: =AO258 -> m³/h | AG253: =ROUND(R251/2*1000*16*(R253*AP258)^2/(PI()^2*AI255^4*3600*3600)*AM258,2) -> 30539.03 | AI253: Fläche Rohr [m²] | AK253: Einheitenliste
AI254: Cu 18 x 1,0 | AK254: Index Druck | AL254: Einheit | AM254: Faktor Druck | AN254: Index Vol.Strom | AO254: Einheit | AP254: Faktor VolStrom
L255: =Translation!F426 -> Rohrnennweite | Q255: di | X255: mm | AI255: =VLOOKUP(AI254,Berechnung!B8:E23,2,FALSE) -> 0.016 | AK255: 1 | AL255: Pa | AM255: 1 | AN255: 1 | AO255: m³/h | AP255: 1
AK256: 2 | AL256: mbar | AM256: 0.01 | AN256: 2 | AO256: l/h | AP256: =1/1000 -> 0.001
AG257: Ergebnisprüfung | AK257: 3 | AL257: bar | AM257: 1e-05
AK258: 2 | AL258: =VLOOKUP(AK258,AK255:AM257,2,FALSE) -> mbar | AM258: =VLOOKUP(AK258,AK255:AM257,3,FALSE) -> 0.01 | AN258: 1 | AO258: =VLOOKUP(AN258,AN255:AP257,2,FALSE) -> m³/h | AP258: =VLOOKUP(AN258,AN255:AP257,3,FALSE) -> 1
AG259: Zeta-Wert OK | AH259: =IF(ISBLANK(R251),FALSE,IF(R251<0,FALSE,TRUE)) -> TRUE | AI259: =Translation!F365 -> Zeta-Wert überprüfen
AG260: Volumenstrom OK | AH260: =IF(ISBLANK(R253),FALSE,IF(R253<0,FALSE,TRUE)) -> TRUE | AI260: =Translation!F301 -> Volumenstrom überprüfen.
L265: =Translation!F13 -> Nach dieser Formel wurde gerechnet:
R266: ="ρW = 1000 kg/m³"&CHAR(10)&"di = "&AI255*1000&" mm" -> ρW = 1000 kg/m³ di = 16 mm
AG267: Alles OK ? | AH267: =IF(COUNTIF(AH259:AH266,FALSE)>0,FALSE,TRUE) -> TRUE | AI267: =VLOOKUP(FALSE,AH259:AI266,2,FALSE) -> 
K270: =IF(AH267=FALSE,AI267,Translation!F427) -> Der Druckverlust beträgt 30539,03 mbar.
L301: =Translation!F152 -> Heizkörper | X301: - | AG301: Berechnung
AG302: Typ Heizkörper | AI302: Faktor
L303: =Translation!F106 -> Heizlast Raum | Q303: ΦR | R303: 2300 | X303: W | AG303: Fußbodenheizung | AH303: =VLOOKUP(AG303,AG304:AH308,2,FALSE) -> 1.1 | AI303: =((R305-R307)/(LN((R305-R309)/(R307-R309)))/49.83)^AH303 -> 0.7669959628
AG304: =Translation!F169 -> Fußbodenheizung | AH304: 1.1
L305: =Translation!F85 -> Vorlauftemperatur | Q305: tV | R305: 70 | X305: °C | AG305: =Translation!F170 -> Plattenheizkörper | AH305: 1.25 | AI305: Berechnete Nennleistung
AG306: =Translation!F171 -> Rippenrohre | AH306: 1.25 | AI306: =ROUND(R303/AI303,0) -> 2999
L307: =Translation!F153 -> Rücklauftemperatur | Q307: tR | R307: 50 | X307: °C | AG307: =Translation!F172 -> Radiatoren | AH307: 1.3
AG308: =Translation!F173 -> Konvektoren | AH308: 1.35
L309: =Translation!F102 -> Raumtemperatur | Q309: ti | R309: 20 | X309: °C
R314: =Translation!F344 -> Die Normleistung bezieht sich auf eine Auslegungstemperatur von 75/65/20°C.
AG315: Heizlast Raum OK | AH315: =IF(ISBLANK(R303),FALSE,IF(R303<0,FALSE,TRUE)) -> TRUE | AI315: =Translation!F349 -> Heizlast Raum überprüfen.
R316: =AG303 -> Fußbodenheizung | T316: ="n = "&AH303 -> n = 1,1 | AG316: Vorlauf OK | AH316: =IF(ISBLANK(R305),FALSE,IF(R305<20,FALSE,IF(R305>90,FALSE,TRUE))) -> TRUE | AI316: =Translation!F229 -> Vorlauftemperatur überprüfen.
AG317: Rücklauf Ok | AH317: =IF(R305=R307,FALSE,IF(R307<=R309,FALSE,IF(ISBLANK(R307),FALSE,IF(R307<20,FALSE,IF(R307>90,FALSE,IF(R305<R307,FALSE,TRUE)))))) -> TRUE | AI317: =Translation!F350 -> Rücklauftemperatur überprüfen.
AG318: Innentemperatur OK | AH318: =IF(ISBLANK(R309),FALSE,IF(R309<0,FALSE,IF(R309>30,FALSE,TRUE))) -> TRUE | AI318: =Translation!F351 -> Innentemperatur überprüfen.
K320: =IF(AH323=FALSE,AI323,Translation!F343) -> Die Normleistung des Heizkörpers beträgt 2999 Watt.
AG323: Alles OK ? | AH323: =IF(COUNTIF(AH315:AH320,FALSE)>0,FALSE,TRUE) -> TRUE | AI323: =VLOOKUP(FALSE,AH315:AI320,2,FALSE) -> 
L351: =Translation!F155 -> Wärmeleistung | Q351: Q̇ | R351: 1000 | X351: =IF(AH355=1,"W","kW") -> W | AG351: Berechnung | AJ351: Ergebnisausgabe
AJ352: =Translation!F352 -> Der Volumenstrom beträgt 0,48 l/min.
L353: =Translation!F430 -> Temperaturdifferenz | Q353: Δt | R353: 30 | X353: K | AG353: =ROUND(R351/(R353*1.163*1000)*AH356*AL363,2) -> 0.48
AH354: Wärmeleistung W/kW | AI354: m³/h | l/h | l/min? | AJ354: Index | AK354: Einheit | AL354: Faktor
AH355: 1 | AI355: 3 | AJ355: 1 | AK355: m³/h | AL355: 1
AH356: =IF(AH355=1,1,1000) -> 1 | AJ356: 2 | AK356: l/h | AL356: 1000
AJ357: 3 | AK357: l/min | AL357: =1000/60 -> 16.66666667
AG363: Ergebnisprüfung | AK363: =VLOOKUP(AI355,AJ355:AL362,2,FALSE) -> l/min | AL363: =VLOOKUP(AI355,AJ355:AL362,3,FALSE) -> 16.66666667
L365: =Translation!F13 -> Nach dieser Formel wurde gerechnet: | AG365: Leistung Heizkörper OK | AH365: =IF(ISBLANK(R351),FALSE,IF(R351<0,FALSE,IF(R351>100000,FALSE,TRUE))) -> TRUE | AI365: =Translation!F353 -> Wärmeleistung überprüfen.
AG366: Temperaturspreizung OK | AH366: =IF(ISBLANK(R353),FALSE,IF(R353<0,FALSE,IF(R353>100,FALSE,TRUE))) -> TRUE | AI366: =Translation!F341 -> Temperaturdifferenz überprüfen.
R367: cp,W = 1,163 Wh/(kg K)
R368: ρW = 1000 kg/m³
K370: =IF(AH373=FALSE,AI373,Translation!F352) -> Der Volumenstrom beträgt 0,48 l/min.
AG373: Alles OK ? | AH373: =IF(COUNTIF(AH365:AH372,FALSE)>0,FALSE,TRUE) -> TRUE | AI373: =VLOOKUP(FALSE,AH365:AI372,2,FALSE) -> 
L401: =Translation!F156 -> Heizflächenart | AG401: Berechnung | AJ401: Berechnung
L403: =Translation!F157 -> Heizleistung | Q403: Q̇ | R403: 5 | X403: kW | AG403: Heizflächenart | AH403: Vorlauftemperatur | AI403: =Translation!F172 -> Radiatoren | AJ403: =Translation!F170 -> Plattenheizkörper | AK403: =Translation!F173 -> Konvektoren | AL403: =Translation!F174 -> Lüftung | AM403: =Translation!F169 -> Fußbodenheizung | AO403: Ansprechdruck | AP403: Wasserausdehnung in % | AR403: Gefäßgröße
AN404: Auswahl
L405: =Translation!F158 -> Volumen Speicher | Q405: V | R405: 50 | X405: =Translation!F358 -> Liter | AG405: Radiatoren | AH405: 30 | AI405: =VLOOKUP(AH405*1,AH407:AM419,2,FALSE) -> 27.4 | AJ405: =VLOOKUP(AH405*1,AH407:AM419,3,FALSE) -> 14.6 | AK405: =VLOOKUP(AH405*1,AH407:AM419,4,FALSE) -> 9.1 | AL405: =VLOOKUP(AH405*1,AH407:AM419,5,FALSE) -> 9 | AM405: =VLOOKUP(AH405*1,AH407:AM419,6,FALSE) -> 20 | AN405: =HLOOKUP(AG405,AI403:AM405,3,FALSE)-1.4 -> 26 | AO405: 2 | AP405: =VLOOKUP(AH405*1,AH407:AR421,9,FALSE) -> 0.66 | AQ405: 1 | AR405: =VLOOKUP(AQ405,AQ407:AR422,2,FALSE) -> 25
L407: =Translation!F85 -> Vorlauftemperatur | Q407: t | X407: °C | AG407: =Translation!F172 -> Radiatoren | AH407: 30 | AI407: 27.4 | AJ407: 14.6 | AK407: 9.1 | AL407: 9 | AM407: 20 | AO407: 2 | AP407: 0.66 | AQ407: =IF($AH$429*1>AR407*1,0,1) -> 0 | AR407: 8
AG408: =Translation!F170 -> Plattenheizkörper | AH408: 35 | AI408: 27.4 | AJ408: 14.6 | AK408: 9.1 | AL408: 9 | AM408: 20 | AO408: 2.5 | AP408: =(AP407+AP409)/2 -> 0.795 | AQ408: 0 | AR408: 12
L409: =Translation!F159 -> Statische Höhe | Q409: h | R409: 10 | X409: m | AG409: =Translation!F173 -> Konvektoren | AH409: 40 | AI409: 27.4 | AJ409: 14.6 | AK409: 9.1 | AL409: 9 | AM409: 20 | AO409: 3 | AP409: 0.93 | AQ409: 0 | AR409: 18
AG410: =Translation!F174 -> Lüftung | AH410: 45 | AI410: 27.4 | AJ410: 14.6 | AK410: 9.1 | AL410: 9 | AM410: 20 | AO410: 3.5 | AP410: =(AP409+AP411)/2 -> 1.11 | AQ410: 1 | AR410: 25
L411: =Translation!F160 -> Sicherheitsventil | Q411: pSV | X411: bar | AG411: =Translation!F169 -> Fußbodenheizung | AH411: 50 | AI411: 27.4 | AJ411: 14.6 | AK411: 9.1 | AL411: 9 | AM411: 20 | AO411: 4 | AP411: 1.29 | AQ411: =IF($AH$429*1>AR411*1,0,1) -> 1 | AR411: 50
AH412: 55 | AI412: 27.4 | AJ412: 14.6 | AK412: 9.1 | AL412: 9 | AM412: 20 | AO412: 4.5 | AP412: =(AP411+AP413)/2 -> 1.5 | AQ412: 1 | AR412: 80
AH413: 60 | AI413: 27.4 | AJ413: 14.6 | AK413: 9.1 | AL413: 9 | AM413: 20 | AO413: 5 | AP413: 1.71 | AQ413: 1 | AR413: 100
AH414: 65 | AI414: =(AI413+AI415)/2 -> 23.75 | AJ414: =(AJ413+AJ415)/2 -> 13 | AK414: 8.25 | AL414: 8.75 | AM414: 20 | AO414: 5.5 | AP414: =(AP413+AP415)/2 -> 1.965 | AQ414: 1 | AR414: 140
AH415: 70 | AI415: 20.1 | AJ415: 11.4 | AK415: 7.4 | AL415: 8.5 | AM415: 20 | AO415: 6 | AP415: 2.22 | AQ415: 1 | AR415: 200
AH416: 75 | AI416: =(AI415+AI417)/2 -> 18.05 | AJ416: =(AJ415+AJ417)/2 -> 10.5 | AK416: =(AK415+AK417)/2 -> 6.95 | AL416: =(AL415+AL417)/2 -> 8.35 | AM416: =(AM415+AM417)/2 -> 20 | AP416: =(AP415+AP417)/2 -> 2.515 | AQ416: 1 | AR416: 250
Q417: =Translation!F355&" V = "&AH423&" "&Translation!F358 -> Anlagenvolumen V = 180 Liter | V417: =Translation!F357&" Vv= 0,005 *V="&AH430&" "&Translation!F358 -> Wasservorlage Vv= 0,005 *V=3 Liter | AH417: 80 | AI417: 16 | AJ417: 9.6 | AK417: 6.5 | AL417: 8.2 | AM417: 20 | AP417: 2.81 | AQ417: 1 | AR417: 300
Q418: =Translation!F356&" Ve = "&AH424&" "&Translation!F358 -> Ausdehnungsvolumen Ve = 1,19 Liter | V418: ="pe = psv-0,5 = "&AH426&" bar" -> pe = psv-0,5 = 1,5 bar | AH418: 85 | AI418: =(AI417+AI419)/2 -> 14.75 | AJ418: =(AJ417+AJ419)/2 -> 9.05 | AK418: =(AK417+AK419)/2 -> 6.25 | AL418: =(AL417+AL419)/2 -> 8.1 | AM418: =(AM417+AM419)/2 -> 20 | AP418: =(AP417+AP419)/2 -> 3.14 | AQ418: 1 | AR418: 400
AH419: 90 | AI419: 13.5 | AJ419: 8.5 | AK419: 6 | AL419: 8 | AM419: 20 | AP419: 3.47 | AQ419: 1 | AR419: 500
K420: =IF(AH441=FALSE,AI441,Translation!F354) -> Das Ausdehnungsgefäß sollte eine Größe von 25 Litern haben. | AA420: ="p0 = h/10= "&AH425&" bar" -> p0 = h/10= 1 bar | AQ420: 1 | AR420: 600
AQ421: 1 | AR421: 800
AG422: Berechnung | AH422: Werte | AQ422: 1 | AR422: 1000
AG423: Wasserinhalt VV | AH423: =AN405*R403+R405 -> 180
AG424: Ausdehnung Ve | AH424: =FIXED(AH423*AP405/100,2) -> 1,19
AG425: Vordruck Gefäß p0 | AH425: =R409/10 -> 1
AG426: Endruck pe | AH426: =AO405-0.5 -> 1.5
AG427: Druckfaktor f | AH427: =(AH426-AH425)/(AH426+1) -> 0.2
AG428: Wasservorlage bei VAG>15 | AH428: =MAX(3,0.005*AH423) -> 3
AG429: Nennvolumen Gefäßgröße 1.Schritt | AH429: =FIXED((AH428+AH424)/AH427,2) -> 20,95
AG430: Wasservorlage bei VAG<15 | AH430: =IF(AH427=0,"",IF(AH429*1<=15,MAX(AH429*0.2,AH428),AH428)) -> 3
AG431: Nennvolumen Gefäßgröße 2.Schritt | AH431: =FIXED((AH430+AH424)/AH427,2) -> 20,95
AG432: Gewähltes Gefäß | AH432: =ROUND(AR405,0) -> 25
AG434: Ergebnisprüfung
AG435: Leistung Wärmeerzeuger OK? | AH435: =IF(R403<=0,FALSE,TRUE) -> TRUE | AI435: =Translation!F223 -> Leistung Wärmeerzeuger überprüfen.
AG436: Volumen Pufferspeicher Ok | AH436: =IF(R405<=0,FALSE,TRUE) -> TRUE | AI436: =Translation!F359 -> Volumen Pufferspeicher überprüfen.
AG437: Statische Höhe Ok? | AH437: =IF(R409<=0,FALSE,IF(AH425>=AH426,FALSE,TRUE)) -> TRUE | AI437: =Translation!F360 -> Statische Höhe überprüfen.
AG438: Anlagenvolumen Ok? | AH438: =IF(SUM(AQ407:AQ422)=0,FALSE,TRUE) -> TRUE | AI438: =Translation!F361 -> Leistung oder Pufferspeicher zu groß.
AG441: Alle Ok? | AH441: =IF(COUNTIF(AH435:AH440,FALSE)>0,FALSE,TRUE) -> TRUE | AI441: =VLOOKUP(FALSE,AH435:AI440,2,FALSE) -> 
L451: =IF(AG455=1,Translation!F429,Translation!F141) -> Volumenstrom | Q451: V̇ | R451: 1 | X451: =AL452 -> m³/h | AG451: Berechnung | AK451: Index | AL451: Einheit Volstrom | AM451: Faktor | AN451: Index | AO451: Einheit Watt | AP451: Faktor
AK452: 1 | AL452: =VLOOKUP(AK452,AK453:AM459,2,FALSE) -> m³/h | AM452: =VLOOKUP(AK452,AK453:AM459,3,FALSE) -> 1 | AN452: 1 | AO452: =VLOOKUP(AN452,AN453:AP459,2,FALSE) -> kW | AP452: =VLOOKUP(AN452,AN453:AP459,3,FALSE) -> 1
L453: =Translation!F430 -> Temperaturdifferenz | Q453: Δt | R453: 3 | X453: K | AG453: =ROUND(R451*1.163*R453*AM452*AP452,2) -> 3.49 | AH453: =AO452 -> kW | AK453: 1 | AL453: m³/h | AM453: 1 | AN453: 1 | AO453: kW | AP453: 1
AK454: 2 | AL454: l/h | AM454: =1/1000 -> 0.001 | AN454: 2 | AO454: W | AP454: 1000
AG457: Ergebnisprüfung
AG459: Volumenstrom OK | AH459: =IF(ISBLANK(R451),FALSE,IF(R451<0,FALSE,TRUE)) -> TRUE | AI459: =Translation!F301 -> Volumenstrom überprüfen.
AG460: Temperaturdifferenz OK | AH460: =IF(ISBLANK(R453),FALSE,IF(R453<0,FALSE,TRUE)) -> TRUE | AI460: =Translation!F341 -> Temperaturdifferenz überprüfen.
L465: =Translation!F13 -> Nach dieser Formel wurde gerechnet:
R467: cp,W = 1,163 Wh/(kg K) | AG467: Alles OK ? | AH467: =IF(COUNTIF(AH459:AH466,FALSE)>0,FALSE,TRUE) -> TRUE | AI467: =VLOOKUP(FALSE,AH459:AI466,2,FALSE) -> 
R468: ρW = 1000 kg/m³
K470: =IF(AH467=FALSE,AI467,Translation!F342) -> Die Wärmeleistung beträgt 3,49 kW.
L501: =Translation!F137 -> Rohrart | AG501: Berechnung
L503: =Translation!F138 -> Nennweite | Q503: d | X503: mm | AG503: =ROUND(((1/(2*PI()*R513*AO506)*LN((AM506+2*AR506)/AM506))+(1/(10*2*PI()*(AM506+2*AR506)/2*R513)))^(-1)*(AQ506-AT506)/1000*8760,1) -> 0 | AH503: kWh/a
L505: =Translation!F475 -> Wärmeleitfähigkeit | Q505: λDä | X505: W/m²K | AK505: Rohrart | AL505: Nennweite | AM505: d außen [mm] | AN505: Wärmeleitfähigkeit | AO505: λ | AP505: Temp Heizung | AQ505: Index | AR505: Dämmdicke | AS505: Zimmertemp.
AK506: Kupferrohr | AL506: Cu 12 x 1,0 | AM506: =AM507/1000 -> 0.012 | AN506: 0,025 (spezielle Dämmstoffe) | AO506: =VLOOKUP(AN506,AN507:AO517,2,FALSE) -> 0.025 | AP506: 20 °C | AQ506: =VLOOKUP(AP506,AP507:AQ517,2,FALSE) -> 20 | AR506: =R511/1000 -> 0.015 | AS506: 20 °C (Standard) | AT506: =VLOOKUP(AS506,AS507:AT526,2,FALSE) -> 20
L507: =Translation!F473 -> Wassertemperatur im Rohr | Q507: t | AG507: Ergebnisprüfung | AK507: =Translation!F163 -> Kupferrohr | AM507: =VLOOKUP(AL506,DatenRohre!B3:L115,2,FALSE) -> 12 | AN507: ="0,025 ("&Translation!F480&")" -> 0,025 (spezielle Dämmstoffe) | AO507: 0.025 | AP507: 20 °C | AQ507: 20 | AS507: 20 °C (Standard) | AT507: 20
AK508: =Translation!F165 -> Gewinderohr | AN508: 0,03 | AO508: 0.03 | AP508: 30 °C | AQ508: 30 | AS508: 24 °C (Badezimmer) | AT508: 24
L509: =Translation!F477 -> Zimmertemperatur | Q509: tz | AG509: Dämmdicke OK | AH509: =IF(R511<0,FALSE,TRUE) -> TRUE | AI509: =Translation!F488 -> Dämmdicke überprüfen. | AN509: ="0,035 ("&Translation!F479&")" -> 0,035 (EnEV Referenz-Wert) | AO509: 0.035 | AP509: 40 °C | AQ509: 40 | AS509: 15 °C (Flure, Treppenhäuser) | AT509: 15
AG510: Länge Rohr OK | AH510: =IF(R513<=0,FALSE,TRUE) -> TRUE | AI510: =Translation!F331 -> Rohrlänge überprüfen. | AN510: ="0,04 ("&Translation!F478&")" -> 0,04 (marktüblich) | AO510: 0.04 | AP510: 50 °C | AQ510: 50 | AS510: 10°C (Keller, Abstellräume) | AT510: 10
L511: =Translation!F474 -> Dämmdicke | Q511: sDä | R511: 15 | X511: mm | AN511: 0,045 | AO511: 0.045 | AP511: 60 °C | AQ511: 60 | AS511: 11°C | AT511: 11
AP512: 70 °C | AQ512: 70 | AS512: 12°C | AT512: 12
L513: =Translation!F451 -> Rohrlänge | Q513: L | R513: 1000 | X513: m | AG513: Alles OK? | AH513: =IF(COUNTIF(AH509:AH511,FALSE)>0,FALSE,TRUE) -> TRUE | AI513: =VLOOKUP(FALSE,AH509:AI511,2,FALSE) ->  | AS513: 13°C | AT513: 13
AS514: 14°C | AT514: 14
AS515: 15°C | AT515: 15
V516: αa=10 W/m²K | X516: ="("&Translation!F476&")" -> (Standardwert) | AS516: 16°C | AT516: 16
V517: z= 8760 h/a | AS517: 17°C | AT517: 17
AS518: 18°C | AT518: 18
AS519: 19°C | AT519: 19
K520: =IF(AH513=FALSE,AI513,Translation!F472) -> Der Energieverlust des Rohres beträgt 0 kWh pro Jahr. | AS520: 20°C | AT520: 20
AS521: 21°C | AT521: 21
AS522: 22°C | AT522: 22
AS523: 23°C | AT523: 23
AS524: 24°C | AT524: 24
AS525: 25°C | AT525: 25
AS526: 25°C | AT526: 26
L551: =Translation!F429 -> Massenstrom | Q551: ṁ | R551: 1 | X551: =AL552 -> kg/sec | AG551: Berechnung | AK551: Index | AL551: Einheit Volstrom | AM551: Faktor | AN551: Index | AO551: Einheit Watt | AP551: Faktor
AK552: 1 | AL552: =VLOOKUP(AK552,AK553:AM559,2,FALSE) -> kg/sec | AM552: =VLOOKUP(AK552,AK553:AM559,3,FALSE) -> 3600 | AN552: 1 | AO552: =VLOOKUP(AN552,AN553:AP559,2,FALSE) -> kW | AP552: =VLOOKUP(AN552,AN553:AP559,3,FALSE) -> 0.001
L553: =Translation!F430 -> Temperaturdifferenz | Q553: Δt | R553: 1 | X553: K | AG553: =ROUND(R551*1.163*R553*AM552*AP552,2) -> 4.19 | AH553: =AO552 -> kW | AK553: 1 | AL553: kg/sec | AM553: 3600 | AN553: 1 | AO553: kW | AP553: =1/1000 -> 0.001
AK554: 2 | AL554: kg/h | AM554: 1 | AN554: 2 | AO554: W | AP554: 1
AG557: Ergebnisprüfung
AG559: Massenstrom OK | AH559: =IF(ISBLANK(R551),FALSE,IF(R551<0,FALSE,TRUE)) -> TRUE | AI559: =Translation!F564 -> Massentrom überprüfen
AG560: Temperaturdifferenz OK | AH560: =IF(ISBLANK(R553),FALSE,IF(R553<0,FALSE,TRUE)) -> TRUE | AI560: =Translation!F341 -> Temperaturdifferenz überprüfen.
L565: =Translation!F13 -> Nach dieser Formel wurde gerechnet:
R566: cp,W = 1,163 Wh/(kg K)
AG567: Alles OK ? | AH567: =IF(COUNTIF(AH559:AH566,FALSE)>0,FALSE,TRUE) -> TRUE | AI567: =VLOOKUP(FALSE,AH559:AI566,2,FALSE) -> 
K570: =IF(AH567=FALSE,AI567,Translation!F565) -> Die Wärmeleistung beträgt 4,19 kW.
L601: =Translation!F150 -> Kvs-Wert | Q601: Kvs | R601: 32 | X601: m³/h | AG601: Berechnung | AJ601: Ergebnisausgabe
L603: =Translation!F141 -> Volumenstrom | Q603: V̇ | R603: 10 | X603: =AO608 -> m³/h | AG603: =ROUND((R603*AP608/R601)^2*AM608,2) -> 97.66 | AK603: Einheitenliste
AK604: Index Druck | AL604: Einheit | AM604: Faktor Druck | AN604: Index Vol.Strom | AO604: Einheit | AP604: Faktor VolStrom
AK605: 1 | AL605: Pa | AM605: 100000 | AN605: 1 | AO605: m³/h | AP605: 1
AK606: 2 | AL606: mbar | AM606: 1000 | AN606: 2 | AO606: l/h | AP606: =1/1000 -> 0.001
AG607: Ergebnisprüfung | AK607: 3 | AL607: bar | AM607: 1
AK608: 2 | AL608: =VLOOKUP(AK608,AK605:AM607,2,FALSE) -> mbar | AM608: =VLOOKUP(AK608,AK605:AM607,3,FALSE) -> 1000 | AN608: 1 | AO608: =VLOOKUP(AN608,AN605:AP607,2,FALSE) -> m³/h | AP608: =VLOOKUP(AN608,AN605:AP607,3,FALSE) -> 1
AG609: kv-Wert OK | AH609: =IF(ISBLANK(R601),FALSE,IF(R601<0,FALSE,TRUE)) -> TRUE | AI609: =Translation!F364 -> kvs-Wert überprüfen.
AG610: Volumenstrom OK | AH610: =IF(ISBLANK(R603),FALSE,IF(R603<0,FALSE,TRUE)) -> TRUE | AI610: =Translation!F301 -> Volumenstrom überprüfen.
L615: =Translation!F13 -> Nach dieser Formel wurde gerechnet:
AG617: Alles OK ? | AH617: =IF(COUNTIF(AH609:AH616,FALSE)>0,FALSE,TRUE) -> TRUE | AI617: =VLOOKUP(FALSE,AH609:AI616,2,FALSE) -> 
K620: =IF(AH617=FALSE,AI617,Translation!F567) -> Der Druckverlust beträgt 97,66 mbar. | AG620: =(10/32)^2 -> 0.09765625
L651: =Translation!F582 -> Schwimmbad | AG651: Berechnung | AH651: Aus Dimplex-Planungsmappe Seite 12 unten Mail von Fr Fleischer
AG652: Schwimmbad | AH652: Wassertemperatur | AI652: Lage | AJ652: Index | AK652: Fläche | AL652: Schlüssel | AM652: spez. Wärmebedarf inW/m² | AN652: Einheit | AO652: Waärmebedarf | AP652: gewählt | AQ652: Raumtemperatur
L653: =Translation!F583 -> Fläche | Q653: A | X653: m² | AG653: =Berechnung!A224 -> Freibad | AH653: 20 | AI653: mit Abdeckung* | AJ653: =IF(AG653=AG654,VLOOKUP(AI653,AI654:AJ670,2,FALSE),AQ653) -> 1 | AK653: 10 | AL653: =AJ653&"-"&AH653 -> 1-20 | AM653: =VLOOKUP(AL653,AG659:AH685,2,FALSE) -> 100 | AN653: =IF(AP653=1,AN654,AN655) -> kW | AO653: =ROUND(IF(AP653=1,AO654,AO655),1) -> 1 | AP653: 2 | AQ653: 23
AG654: =Berechnung!A225 -> Freibad | AH654: 20 | AI654: =Translation!F586 -> mit Abdeckung* | AJ654: 1 | AK654: 10 | AN654: W | AO654: =AK653*AM653 -> 1000 | AQ654: 23
... 25 more rows

Sheet Heizlast (hidden)
B1: =Warmwasser!B1 -> Formelsammlung | AG1: =Berechnung!AY5 -> UMT v1.29
B2: =Warmwasser!B2 -> MIT STIEBEL ELTRON KÖNNEN SIE RECHNEN.
AG6: Gewählte Kategorie
AG7: 4
C8: =Translation!F14 -> Was soll berechnet werden? | K8: =Translation!F15 -> Diese Angaben werden dafür benötigt. | AK8: Finsche Übersetzung gewählt? | AP8: =IF(Berechnung!B131=Berechnung!B135,TRUE,FALSE) -> FALSE
AK9: Index | AL9: Spez. Leistung | AM9: Baujahr Gebäude | AN9: Index | AO9: Gebiet | AP9: Index | AQ9: ComboBox-Gebiet
L10: =Translation!F98 -> Wärmeschutz Gebäude | Q10: Φ | AG10: Berechnung | AK10: =(AN10&AP10)*1 -> 11 | AL10: =VLOOKUP(AK10,AK11:AL34,2,FALSE) -> 45.11 | AM10: Vanha rakennus > 1990 | AN10: =VLOOKUP(AM10,AM11:AN16,2,FALSE) -> 1 | AO10: I | AP10: =VLOOKUP(AO10,AO11:AP16,2,FALSE) -> 1 | AQ10: Alue
AK11: 11 | AL11: 45.11 | AM11: Vanha rakennus > 1990 | AN11: 1 | AO11: I | AP11: 1
L12: =Translation!F99 -> Beheizte Wohnfläche | Q12: A | R12: 200 | X12: m2 | AG12: =IF(AP8=TRUE,ROUND(R12*AL10/1000,1),ROUND(R12*AI30/1000,1)) -> 30 | AK12: 12 | AL12: 48,2 | AM12: Hirsitalo | AN12: 2 | AO12: II | AP12: 2
AK13: 13 | AL13: 50,5 | AM13: Vanha rakennus 1980 - 89 | AN13: 3 | AO13: III | AP13: 3
L14: =IF(AP8=TRUE,AQ10,"") ->  | AK14: 14 | AL14: 53.2 | AM14: Vanha rakennus 1973 -79 | AN14: 4 | AO14: IV | AP14: 4
AK15: 21 | AL15: 52,8 | AM15: Vanha rakennus 1950 -72 | AN15: 5
AG16: Ergebnisprüfung | AK16: 22 | AL16: 55,2 | AM16: Vanha rakennus < 1949 | AN16: 6
AK17: 23 | AL17: 58,7
AG18: Wohnfläche OK? | AH18: =IF(ISBLANK(R12),FALSE,IF(R12<1,FALSE,TRUE)) -> TRUE | AI18: =Translation!F280 -> Beheizte Wohnfläche überprüfen. | AK18: 24 | AL18: 60.8
AK19: 31 | AL19: 50,1
AK20: 32 | AL20: 53,1
AK21: 33 | AL21: 53
AK22: 34 | AL22: 54.7
AK23: 41 | AL23: 53,8
L24: =Translation!F13 -> Nach dieser Formel wurde gerechnet: | Y24: =IF(AP8=TRUE,AL10&" W/m²","") ->  | Z24: =IF(AP8=TRUE,"Φ= ","") ->  | AK24: 42 | AL24: 55,8
R25: =IF(AP8=TRUE,"","Φ = "&AI30&" W/m²") -> Φ = 150 W/m² | AK25: 43 | AL25: 56,6
AG26: Alles OK ? | AH26: =IF(COUNTIF(AH18:AH25,FALSE)>0,FALSE,TRUE) -> TRUE | AI26: =VLOOKUP(FALSE,AH18:AI25,2,FALSE) ->  | AK26: 44 | AL26: 61.6
AK27: 51 | AL27: 64,5
AK28: 52 | AL28: 65,1
K29: =IF(AH26=FALSE,AI26,Translation!F254) -> Bei einer beheizten Fläche von 200 m² beträgt die überschlägig Heizlast ca. 30 kW. | AG29: Standard | AI29: Spezifische Heizlast [W/m²] | AK29: 53 | AL29: 68,3
AG30: Vor 1977 | AI30: =VLOOKUP(AG30,AG31:AI38,3,FALSE) -> 150 | AK30: 54 | AL30: 75.9
AG31: =Translation!F256 -> Vor 1977 | AI31: 150 | AK31: 61 | AL31: 69
AG32: =Translation!F257 -> WSchVO 1977 | AI32: 100 | AK32: 62 | AL32: 70,3
AG33: =Translation!F258 -> WSchVO 1982 | AI33: 80 | AK33: 63 | AL33: 74,4
AG34: =Translation!F259 -> WSchVO 1995 | AI34: 60 | AK34: 64 | AL34: 81
AG35: =Translation!F260 -> EnEV 2002 | AI35: 50
AG36: =Translation!F261 -> EnEV 2009 | AI36: 45
AG37: =Translation!F262 -> KFW 55 | AI37: 35
AG38: =Translation!F263 -> Passivhaus | AI38: 15
AG39: =Translation!F264 -> spez. Heizlast
AG40: =Translation!F265 -> Bei einem Ölverbrauch von 2000 Litern, beträgt die Gebäudeheizlast ca. 2,8 kW.
AG41: =Translation!F266 -> Liter
AG42: =Translation!F267 -> Bei einem Gasverbrauch von 3000 m³ beträgt die Gebäudeheizlast ca. 7,5 kW.
L51: =Translation!F91 -> Ölverbrauch pro Jahr | Q51: Völ | R51: 2000 | X51: =Translation!F266 -> Liter | AG51: Berechnung
L53: =Translation!F92 -> Personenzahl WW | Q53: n | R53: 20 | X53: =Translation!F279 -> Personen | AG53: =ROUND((((R51-(R53*75))*10.08*(R57/100))/R55),1) -> 2.8
L55: =Translation!F93 -> Vollbenutzung | Q55: bVH | R55: 1800 | X55: ="h/"&Translation!F277 -> h/Jahr
L57: =Translation!F94 -> Jahres-Nutzungsgrad | Q57: η | R57: 100 | X57: % | AG57: Ergebnisprüfung
AG59: Ölverbrauch Ok | AH59: =IF(ISBLANK(R51),FALSE,IF(R51<1,FALSE,TRUE)) -> TRUE | AI59: =Translation!F281 -> Jährlicher Ölverbrauch überprüfen.
AG60: Personenzahl OK | AH60: =IF(ISBLANK(R53),FALSE,IF(R53<0,FALSE,TRUE)) -> TRUE | AI60: =Translation!F232 -> Personenzahl überprüfen.
AG61: Stunden OK | AH61: =IF(ISBLANK(R55),FALSE,IF(R55<1,FALSE,IF(R55>10000,FALSE,TRUE))) -> TRUE | AI61: =Translation!F282 -> Vollbenutzungsstunden überprüfen.
AG62: Nutzungsgrad OK | AH62: =IF(ISBLANK(R57),FALSE,IF(R57>106,FALSE,IF(R57<1,FALSE,TRUE))) -> TRUE | AI62: =Translation!F283 -> Jahresnutzungsgrad überprüfen.
AG63: Verhältnis Verbrauch/Personenzahl | AH63: =IF(AG53<0,FALSE,TRUE) -> TRUE | AI63: =Translation!F284 -> Ölverbrauch bzw. Personenanzahl überprüfen.
L65: =Translation!F13 -> Nach dieser Formel wurde gerechnet:
R67: bVH ≈ 1800 h/a | V67: ="VÖl,WWB ≈ 75 "&Translation!F266&"/("&Translation!F276&"*"&Translation!F277&")" -> VÖl,WWB ≈ 75 Liter/(Person*Jahr) | AG67: Alles OK ? | AH67: =IF(COUNTIF(AH59:AH66,FALSE)>0,FALSE,TRUE) -> TRUE | AI67: =VLOOKUP(FALSE,AH59:AI66,2,FALSE) -> 
R68: η ≈ 70% | V68: Hu,Öl ≈ 10kWh/Liter
K70: =IF(AH67=FALSE,AI67,Translation!F265) -> Bei einem Ölverbrauch von 2000 Litern, beträgt die Gebäudeheizlast ca. 2,8 kW.
L101: =Translation!F467 -> Gasart | AG101: Berechnung | AJ101: Index | AK101: Gasart | AL101: Wert | AM101: Einheit1 | AN101: Verbrauch für WW | AO101: Einheit | AP101: Einheit 2
AJ102: =IF(AK102=AK103,1,AJ108) -> 1 | AK102: Erdgas | AL102: =ROUND(VLOOKUP(AJ102,AJ103:AO106,3,FALSE),2) -> 10 | AM102: =VLOOKUP(AJ102,AJ103:AO106,4,FALSE) -> kWh/m³ | AN102: =ROUND(VLOOKUP(AJ102,AJ103:AO106,5,FALSE),0) -> 75 | AO102: =VLOOKUP(AJ102,AJ103:AO106,6,FALSE) -> m³ /(Person*Jahr) | AP102: =IF(AK102=AK103,AK109,AK108) -> m³
L103: =Translation!F95 -> Gasverbrauch pro Jahr | Q103: VGas | R103: 3000 | X103: =AP102 -> m³ | AG103: =ROUND(((R103-(R105*AN102))*AL102*(R109/100))/R107,1) -> 7.5 | AJ103: 1 | AK103: =Translation!F401 -> Erdgas | AL103: 10 | AM103: kWh/m³ | AN103: 75 | AO103: =AK109&" /("&Translation!F276&"*"&Translation!F277&")" -> m³ /(Person*Jahr) | AP103: -
AJ104: 2 | AK104: =Translation!F405 -> Flüssiggas | AL104: 25.87 | AM104: kWh/m³ | AN104: =$AL$103/AL104*$AN$103 -> 28.99110939 | AO104: =AK109&" /("&Translation!F277&"*"&Translation!F278&")" -> m³ /(Jahr*Heizwert) | AP104: -
L105: =Translation!F92 -> Personenzahl WW | Q105: n | R105: 4 | X105: =Translation!F279 -> Personen | AJ105: 3 | AL105: 6.57 | AM105: ="kWh/"&Translation!F266 -> kWh/Liter | AN105: =$AL$103/AL105*$AN$103 -> 114.1552511 | AO105: =Translation!F266&" /("&Translation!F277&"*"&Translation!F278&")" -> Liter /(Jahr*Heizwert) | AP105: -
AJ106: 4 | AL106: 12.87 | AM106: kWh/kg | AN106: =$AL$103/AL106*$AN$103 -> 58.27505828 | AO106: ="kg /("&Translation!F277&"*"&Translation!F278&")" -> kg /(Jahr*Heizwert) | AP106: -
L107: =Translation!F93 -> Vollbenutzung | Q107: bVH | R107: 1800 | X107: ="h/"&Translation!F277 -> h/Jahr | AG107: Ergebnisprüfung
AJ108: 4 | AK108: =VLOOKUP(AJ108,AJ109:AK111,2,FALSE) -> kg
L109: =Translation!F94 -> Jahres-Nutzungsgrad | Q109: η | R109: 50 | X109: % | AG109: Gasverbrauch Ok | AH109: =IF(ISBLANK(R103),FALSE,IF(R103<1,FALSE,TRUE)) -> TRUE | AI109: =Translation!F285 -> Jährlicher Gasverbrauch überprüfen. | AJ109: =AJ104 -> 2 | AK109: m³
AG110: Personenzahl OK | AH110: =IF(ISBLANK(R105),FALSE,IF(R105<0,FALSE,TRUE)) -> TRUE | AI110: =Translation!F232 -> Personenzahl überprüfen. | AJ110: =AJ105 -> 3 | AK110: =Translation!F266 -> Liter
AG111: Stunden OK | AH111: =IF(ISBLANK(R107),FALSE,IF(R107<1,FALSE,IF(R107>10000,FALSE,TRUE))) -> TRUE | AI111: =Translation!F282 -> Vollbenutzungsstunden überprüfen. | AJ111: =AJ106 -> 4 | AK111: kg
AG112: Nutzungsgrad OK | AH112: =IF(ISBLANK(R109),FALSE,IF(R109>111,FALSE,IF(R109<1,FALSE,TRUE))) -> TRUE | AI112: =Translation!F283 -> Jahresnutzungsgrad überprüfen.
AG113: Verhältnis Verbrauch/Personenzahl | AH113: =IF(AG103<0,FALSE,TRUE) -> TRUE | AI113: =Translation!F286 -> Gasverbrauch bzw. Personenanzahl überprüfen.
L115: =Translation!F13 -> Nach dieser Formel wurde gerechnet:
R117: bVH ≈ 1800 h/a | V117: ="VGas,WWB ≈ "&AN102&" "&AO102 -> VGas,WWB ≈ 75 m³ /(Person*Jahr) | AG117: Alles OK ? | AH117: =IF(COUNTIF(AH109:AH116,FALSE)>0,FALSE,TRUE) -> TRUE | AI117: =VLOOKUP(FALSE,AH109:AI116,2,FALSE) -> 
R118: η ≈ 70% | V118: ="Hu,Gas ≈ "&AL102&" "&AM102 -> Hu,Gas ≈ 10 kWh/m³
K120: =IF(AH117=FALSE,AI117,Translation!F267) -> Bei einem Gasverbrauch von 3000 m³ beträgt die Gebäudeheizlast ca. 7,5 kW.
L151: =Translation!F96 -> Holzsorte | AG151: Berechnung
L153: =Translation!F97 -> Holzverbrauch / Jahr | Q153: VH | R153: 150 | X153: =Translation!F269 -> Raummeter | AG153: =ROUND(((R153-(R155*(750/AI168)))*AI168*(R159/100))/R157,1) -> 120
L155: =Translation!F92 -> Personenzahl WW | Q155: n | R155: 15 | X155: =Translation!F279 -> Personen
L157: =Translation!F93 -> Vollbenutzung | Q157: bVH | R157: 1800 | X157: ="h/"&Translation!F277 -> h/Jahr | AG157: Ergebnisprüfung
L159: =Translation!F94 -> Jahres-Nutzungsgrad | Q159: h | R159: 90 | X159: % | AG159: Ölverbrauch Ok | AH159: =IF(ISBLANK(R153),FALSE,IF(R153<1,FALSE,TRUE)) -> TRUE | AI159: =Translation!F287 -> Jährlicher Holzverbrauch überprüfen.
AG160: Personenzahl OK | AH160: =IF(ISBLANK(R155),FALSE,IF(R155<0,FALSE,TRUE)) -> TRUE | AI160: =Translation!F232 -> Personenzahl überprüfen.
AG161: Stunden OK | AH161: =IF(ISBLANK(R157),FALSE,IF(R157<1,FALSE,IF(R157>10000,FALSE,TRUE))) -> TRUE | AI161: =Translation!F282 -> Vollbenutzungsstunden überprüfen.
AG162: Nutzungsgrad OK | AH162: =IF(ISBLANK(R159),FALSE,IF(R159>106,FALSE,IF(R159<1,FALSE,TRUE))) -> TRUE | AI162: =Translation!F283 -> Jahresnutzungsgrad überprüfen.
AG163: Verhältnis Verbrauch/Personenzahl | AH163: =IF(AG153<0,FALSE,TRUE) -> TRUE | AI163: =Translation!F288 -> Holzverbrauch bzw. Personenanzahl überprüfen.
L165: =Translation!F13 -> Nach dieser Formel wurde gerechnet:
AG166: Alles OK ? | AH166: =IF(COUNTIF(AH159:AH165,FALSE)>0,FALSE,TRUE) -> TRUE | AI166: =VLOOKUP(FALSE,AH159:AI166,2,FALSE) -> 
R167: bVH ≈ 1800 h/a | T167: ="VH,WWB ≈ 0,36-0,67 "&Translation!F269&" /("&Translation!F276&"*"&Translation!F277&")" -> VH,WWB ≈ 0,36-0,67 Raummeter /(Person*Jahr) | AG167: Baumart | AH167: gewählt? | AI167: Energie [kWh/rm]
R168: η ≈ 70% | T168: ="Hu="&AI168&" kWh/rm" -> Hu=1675 kWh/rm | AG168: Ahorn | AH168: =VLOOKUP(AG168,AG169:AI177,2,FALSE) -> FALSE | AI168: =VLOOKUP(AG168,AG169:AI177,3,FALSE) -> 1675
AG169: =Translation!F270 -> Ahorn | AH169: =IF($R$151=$AG169,TRUE,FALSE) -> FALSE | AI169: 1675
K170: =IF(AH166=FALSE,AI166,Translation!F268) -> Bei einem Holzverbrauch von 150 Raummeter beträgt die Gebäudeheizlast ca. 120 kW. | AG170: =Translation!F271 -> Birke | AH170: FALSE | AI170: 1810
AG171: =Translation!F272 -> Buche | AH171: FALSE | AI171: 1850
AG172: =Translation!F273 -> Erle | AH172: FALSE | AI172: 1400
AG173: =Translation!F274 -> Esche | AH173: FALSE | AI173: 1870
AG174: =Translation!F275 -> Pappel | AH174: FALSE | AI174: 1110
AG176: Quelle: baumarkt.de
BE321: Betriebsart | Bivalenzpunkt
BE371: Betriebsart | Bivalenzpunkt
BE421: Betriebsart | Bivalenzpunkt

Sheet Waermequelle (hidden)
B1: =Translation!F3 -> Formelsammlung | AG1: =Berechnung!AY5 -> UMT v1.29
B2: =UPPER(Translation!F4) -> MIT STIEBEL ELTRON KÖNNEN SIE RECHNEN.
AG6: Gewählte Kategorie
AG7: 9
C8: =Translation!G14 -> Was soll berechnet werden? | K8: =Translation!F15 -> Diese Angaben werden dafür benötigt.
L10: =Translation!F517 -> Untergrund | Q10: q | AG10: Berechnung | AK10: Boden | AL10: Entzugsleistung | AM10: Einheit
AK11: Untergrund mit viel Grundwasser | AL11: =VLOOKUP(AK11,AK12:AL21,2,FALSE) -> 100 | AM11: W/m
L12: =Translation!F518 -> Benötigte Kälteleistung | Q12: Q̇K | R12: 20 | X12: kW | AG12: Länge | AH12: m | AI12: =ROUND(R12*1000/AL11,0) -> 200 | AK12: =Translation!F510 -> Untergrund mit viel Grundwasser | AL12: 100 | AM12: W/m
AG13: Anzahl Sonden | AH13: - | AI13: =ROUNDUP(AI12/R14,0)*1 -> 10 | AK13: =Translation!F511 -> Gestein (hohe Wärmeleitfähigkeit) | AL13: 80 | AM13: W/m
L14: =Translation!F575 -> Gewünschte Bohrtiefe | Q14: l | R14: 20 | X14: m | AK14: =Translation!F512 -> Gestein (normalem Untergrund) | AL14: 55 | AM14: W/m
AK15: =Translation!F513 -> Trockene Sedimente | AL15: 30 | AM15: W/m
AG16: Ergebnisprüfung
AG18: Kälteleistung OK | AH18: =IF(OR(R12="",R12<0),FALSE,TRUE) -> TRUE | AI18: =Translation!F514 -> Kälteleistung überprüfen.
AG19: Bohrtiefe OK | AH19: =IF(OR(R14<1,R14=""),FALSE,TRUE) -> TRUE | AI19: =Translation!F538 -> Bohrtiefe überprüfen.
L24: =Translation!F13 -> Nach dieser Formel wurde gerechnet:
R25: =Translation!F515&" q = "&AL11&" W/m" &CHAR(10)&Translation!F516 -> Spezifische Entzugsleistung q = 100 W/m Bohrtiefe maximal bis 100 m
AG26: Alles OK ? | AH26: =IF(COUNTIF(AH18:AH25,FALSE)>0,FALSE,TRUE) -> TRUE | AI26: =VLOOKUP(FALSE,AH18:AI25,2,FALSE) -> 
K29: =IF(AH26=FALSE,AI26,Translation!F507&CHAR(10)&IF(AI13=1,Translation!F508,Translation!F509)) -> Die benötigte Sondenlänge beträgt 200 m. Dazu werden 10 Sonden benötigt.
L51: =Translation!F525 -> Bodenbeschaffenheit | Q51: q | AG51: Berechnung | AK51: Boden | AL51: Entzugsleistung | AM51: Einheit
AK52: trockener Boden | AL52: =VLOOKUP(AK52,AK53:AL59,2,FALSE) -> 10 | AM52: W/m²
L53: =Translation!F518 -> Benötigte Kälteleistung | Q53: Q̇K | R53: 5 | X53: kW | AG53: Fläche | AH53: m² | AI53: =ROUND(R53*1000/AL52,0) -> 500 | AK53: =Translation!F519 -> trockener Boden | AL53: 10 | AM53: W/m²
AK54: =Translation!F520 -> feuchter Boden | AL54: 15 | AM54: W/m²
AK55: =Translation!F521 -> sehr feuchter Boden | AL55: 20 | AM55: W/m²
AK56: =Translation!F522 -> wassergesättigter Boden | AL56: 25 | AM56: W/m²
AG57: Ergebnisprüfung | AK57: =Translation!F523 -> wasserführendes Erdreich | AL57: 30 | AM57: W/m²
AG59: Kälteleistung OK | AH59: =IF(OR(R53="",R53<0),FALSE,TRUE) -> TRUE | AI59: =Translation!F514 -> Kälteleistung überprüfen.
L65: =Translation!F13 -> Nach dieser Formel wurde gerechnet:
R66: =Translation!F515&" q = "&AL52&" W/m²" -> Spezifische Entzugsleistung q = 10 W/m²
AG67: Alles OK ? | AH67: =IF(COUNTIF(AH59:AH66,FALSE)>0,FALSE,TRUE) -> TRUE | AI67: =VLOOKUP(FALSE,AH59:AI66,2,FALSE) -> 
K70: =IF(AH67=FALSE,AI67,Translation!F524) -> Die erforderliche Erdreichfläche beträgt 500 m².
L101: =Translation!F525 -> Bodenbeschaffenheit | Q101: q | AG101: Berechnung | AK101: Boden | AL101: Entzugsleistung | AM101: Einheit | AO101: Verlegeabstand
AK102: trockener Boden | AL102: =VLOOKUP(AK102,AK103:AL109,2,FALSE) -> 10 | AM102: W/m² | AO102: 0,6
L103: =Translation!F518 -> Benötigte Kälteleistung | Q103: Q̇K | R103: 2 | X103: kW | AG103: Länge | AH103: m | AI103: =ROUND(R103*1000/AL102/AO102,0) -> 333 | AK103: =Translation!F519 -> trockener Boden | AL103: 10 | AM103: W/m² | AO103: 0.6
AG104: Stränge | AI104: =ROUNDUP(AI103/R107,0) -> 7 | AK104: =Translation!F520 -> feuchter Boden | AL104: 15 | AM104: W/m² | AO104: 0.7
L105: =Translation!F526 -> Verlegeabstand | Q105: dVerl | X105: m | AK105: =Translation!F521 -> sehr feuchter Boden | AL105: 20 | AM105: W/m² | AO105: 0.8
AK106: =Translation!F522 -> wassergesättigter Boden | AL106: 25 | AM106: W/m² | AO106: 0.9
L107: =Translation!F574 -> Länge der Verlegung | Q107: l | R107: 50 | X107: m | AG107: Ergebnisprüfung | AK107: =Translation!F523 -> wasserführendes Erdreich | AL107: 30 | AM107: W/m² | AO107: 1
AG109: Kälteleistung OK | AH109: =IF(OR(R103="",R103<0),FALSE,TRUE) -> TRUE | AI109: =Translation!F564 -> Massentrom überprüfen
AG110: Stranglänge OK | AH110: =IF(OR(R107<1,R107=""),FALSE,TRUE) -> TRUE | AI110: =Translation!F544 -> Stranglänge überprüfen.
L115: =Translation!F13 -> Nach dieser Formel wurde gerechnet:
R116: =Translation!F515&" q = "&AL52&" W/m²" -> Spezifische Entzugsleistung q = 10 W/m²
AG117: Alles OK ? | AH117: =IF(COUNTIF(AH109:AH116,FALSE)>0,FALSE,TRUE) -> TRUE | AI117: =VLOOKUP(FALSE,AH109:AI116,2,FALSE) -> 
K120: =IF(AH117=FALSE,AI117,Translation!F527&CHAR(10)&IF(AI104=1,Translation!F573,Translation!F528)) -> Die Gesamtlänge des Erdreichkollektors beträgt 333 m. Es werden ingesamt 7 Stränge benötigt.
L151: =Translation!F529 -> Typ Rohrsonde | Q151: U | AG151: Berechnung | AK151: Typ Rohrsonde | AL151: Index | AM151: Nennweite | AN151: Außendurchmesser | AO151: Wandstärke | AP151: Innendurchmesser | AQ151: Wasserinhalt | AR151: Querschnitt | AS151: Mischungsverhältnis | AT151: Index
AM152: DN | AN152: mm | AO152: mm | AP152: m | AQ152: Liter / m | AR152: m² | AS152: % | AT152: -
L153: =Translation!F530 -> Nennweite Sonde | Q153: d | AG153: Liter gesamt | AH153: =ROUND(IF(AL153=AL154,AQ153*R155*R157*4,AQ153*R155*R157*2),0) -> 486 | AI153: Liter | AK153: Doppel U-Rohr | AL153: =VLOOKUP(AK153,AK154:AL164,2,FALSE) -> 1 | AM153: DN 20 (25 x 2,3) | AN153: =VLOOKUP(AM153,AM154:AR165,2,FALSE) -> 25 | AO153: =VLOOKUP(AM153,AM154:AR165,3,FALSE) -> 2.3 | AP153: =VLOOKUP(AM153,AM154:AR165,4,FALSE) -> 0.0204 | AQ153: =VLOOKUP(AM153,AM154:AR165,5,FALSE) -> 0.3268512997 | AR153: =VLOOKUP(AM153,AM154:AR165,6,FALSE) -> 0.0003268512997 | AS153: 10 % | AT153: =VLOOKUP(AS153,AS154:AT166,2,FALSE)/100 -> 0.1
AG154: Menge Glykol | AH154: =ROUND(AH153*AT153,0) -> 49 | AI154: Liter | AK154: =Translation!F533 -> Doppel U-Rohr | AL154: 1 | AM154: DN 20 (25 x 2,3) | AN154: 25 | AO154: 2.3 | AP154: 0.0204 | AQ154: 0.3268512997 | AR154: 0.0003268512997 | AS154: 10 % | AT154: 10
L155: =Translation!F535 -> Bohrtiefe | Q155: t | R155: 93 | X155: m | AK155: =Translation!F534 -> Einfach U-Rohr | AL155: 2 | AM155: ="DN 25 (32 x "&FIXED(AO155,1)&")" -> DN 25 (32 x 2,9) | AN155: 32 | AO155: =IF(Berechnung!B131=11,2,2.9) -> 2.9 | AP155: =(AN155-2*AO155)/1000 -> 0.0262 | AQ155: =1000*PI()*AP155^2/4 -> 0.5391287153 | AR155: =AQ155/1000 -> 0.0005391287153 | AS155: 15 % | AT155: 15
AM156: ="DN 32 (40 x "&FIXED(AO156,1)&")" -> DN 32 (40 x 3,7) | AN156: 40 | AO156: =IF(Berechnung!B131=11,2.4,3.7) -> 3.7 | AP156: =(AN156-2*AO156)/1000 -> 0.0326 | AQ156: =1000*PI()*AP156^2/4 -> 0.8346897521 | AR156: =AQ156/1000 -> 0.0008346897521 | AS156: 20 % | AT156: 20
L157: =Translation!F536 -> Anzahl Stränge | Q157: Str | R157: 4 | AG157: Ergebnisprüfung | AM157: DN 40 (50 x 4,6) | AN157: 50 | AO157: 4.6 | AP157: 0.0408 | AQ157: 1.307405199 | AR157: 0.001307405199 | AS157: 25 % | AT157: 25
AM158: DN 50 (63 x 5,8) | AN158: 63 | AO158: 5.8 | AP158: 0.0514 | AQ158: 2.074990532 | AR158: 0.002074990532 | AS158: 30 % | AT158: 30
L159: =Translation!F532 -> Gewünschte Mischungsverhältnis | Q159: φ | AG159: Bohrtiefe O.K. | AH159: =IF(OR(R155="",R155<0),FALSE,TRUE) -> TRUE | AI159: =Translation!F538 -> Bohrtiefe überprüfen. | AS159: 33 % | AT159: 33
AG160: Anzahl Stränge O.K. | AH160: =IF(OR(R157="",R157<0),FALSE,TRUE) -> TRUE | AI160: =Translation!F539 -> Anzahl Stränge überprüfen. | AS160: 40 % | AT160: 40
AS161: 45 % | AT161: 45
AS162: 50 % | AT162: 50
L165: =Translation!F13 -> Nach dieser Formel wurde gerechnet:
R166: ="U = " &IF(AL153=AL154,4,2)&CHAR(10)&"d = "&AP153*1000&" mm" -> U = 4 d = 20,4 mm
AG167: Alles OK ? | AH167: =IF(COUNTIF(AH159:AH166,FALSE)>0,FALSE,TRUE) -> TRUE | AI167: =VLOOKUP(FALSE,AH159:AI166,2,FALSE) -> 
K170: =IF(AH167=FALSE,Waermequelle!AI167,Translation!F540&CHAR(10)&Translation!F541) -> Das Volumen in der Sonde beträgt 486 Liter. Für ein Mischungsverhältnis von 10 % werden 49 Liter Glykol benötigt.
L201: =Translation!F138 -> Nennweite | Q201: d | AG201: Berechnung
L203: =Translation!F543 -> Stranglänge | Q203: l | R203: 100 | X203: m | AG203: Liter gesamt | AH203: =ROUND(AQ153*R203*R205,0) -> 65 | AI203: Liter
AG204: Menge Glykol | AH204: =ROUNDUP(AQ153*R203*R205*AT153,0) -> 7 | AI204: Liter
L205: =Translation!F536 -> Anzahl Stränge | Q205: Str | R205: 2
L207: =Translation!F532 -> Gewünschte Mischungsverhältnis | Q207: φ | AG207: Ergebnisprüfung
AG209: Stranglänge O.K. | AH209: =IF(OR(R203="",R203<0),FALSE,TRUE) -> TRUE | AI209: =Translation!F544 -> Stranglänge überprüfen.
AG210: Anzahl Stränge O.K. | AH210: =IF(OR(R205="",R205<0),FALSE,TRUE) -> TRUE | AI210: =Translation!F539 -> Anzahl Stränge überprüfen.
L215: =Translation!F13 -> Nach dieser Formel wurde gerechnet:
Q216: ="d = "&AP153*1000&" mm" -> d = 20,4 mm
AG217: Alles OK ? | AH217: =IF(COUNTIF(AH209:AH216,FALSE)>0,FALSE,TRUE) -> TRUE | AI217: =VLOOKUP(FALSE,AH209:AI216,2,FALSE) -> 
K220: =IF(AH217=FALSE,AI217,Translation!F545&CHAR(10)&Translation!F546) -> Das Volumen in des Kollektors beträgt 65 Liter. Für ein Mischungsverhältnis von 10 % werden 7 Liter Glykol benötigt.
L251: =Translation!F547 -> Anteil Monoethylenglykol MEG | Q251: φ | R251: 50 | X251: % | AG251: Berechnung
AG253: Liter gesamt | AH253: =ROUND( -2.1102491557564E-09*R251^6 + 4.45342859978215E-07*R251^5 - 0.0000329487547077179*R251^4 + 0.000914546135163619*R251^3 - 0.0143985062104548*R251^2 - 0.328176318231272*R251- 0.0176813374691847,0) -> -38 | AI253: Liter
AG257: Ergebnisprüfung
AG259: Stranglänge O.K. | AH259: =IF(OR(R251="",R251<0,R251>100),FALSE,TRUE) -> TRUE | AI259: =Translation!F548 -> Mischungsverhältnis überprüfen.
L265: =Translation!F13 -> Nach dieser Formel wurde gerechnet:
AG267: Alles OK ? | AH267: =IF(COUNTIF(AH259:AH266,FALSE)>0,FALSE,TRUE) -> TRUE | AI267: =VLOOKUP(FALSE,AH259:AI266,2,FALSE) -> 
AA269: Grundlage der Daten: Tyfocor
K270: =IF(AH267=FALSE,AI267,Translation!F549) -> Die Frostschutztemperatur beträgt -38 °C.
L301: Gewünschte Frostschutztemperatur | Q301: tFr | X301: °C | AG301: Berechnung | AK301: Gewünschter Frostschutz | AL301: Volumenanteil Glykol
AK302: -4
L303: Gesamtvolumen der Wärmequelle | Q303: φ | R303: 500 | X303: Liter | AG303: Glykol in % | AH303: =AL303 -> 10 | AI303: % | AK303: =AK302*1 -> -4 | AL303: =VLOOKUP(AK303,AK304:AL335,2,FALSE) -> 10
AG304: Glykol in Liter | AH304: =R303*AH303/100 -> 50 | AI304: Liter | AK304: =ROUND( -2.1102491557564E-09*AL304^6 + 4.45342859978215E-07*AL304^5 - 0.0000329487547077179*AL304^4 + 0.000914546135163619*AL304^3 - 0.0143985062104548*AL304^2 - 0.328176318231272*AL304- 0.0176813374691847,0) -> -4 | AL304: 10
AK305: -5 | AL305: 12
AK306: -6 | AL306: 14
AG307: Ergebnisprüfung | AK307: -7 | AL307: 16
AK308: -8 | AL308: 18
AG309: Volummen der Wärmequelle O.K. | AH309: =IF(OR(R303="",R303<0),FALSE,TRUE) -> TRUE | AI309: =Translation!F598 -> Der ermittelte Warmwasserbedarf gilt nicht für die Erstaufheizung | AK309: -9 | AL309: 20
AK310: -10 | AL310: 22
AK311: -11 | AL311: 24
AK312: -12 | AL312: 25
AK313: -13 | AL313: 26
AK314: -14 | AL314: 28
L315: =Translation!F13 -> Nach dieser Formel wurde gerechnet: | AK315: -15 | AL315: 29
AK316: -16 | AL316: 30
AG317: Alles OK ? | AH317: =IF(COUNTIF(AH309:AH316,FALSE)>0,FALSE,TRUE) -> TRUE | AI317: =VLOOKUP(FALSE,AH309:AI316,2,FALSE) ->  | AK317: -17 | AL317: 32
AK318: -18 | AL318: 33
AA319: Grundlage der Daten: Tyfocor | AK319: -19 | AL319: 34
K320: =IF(AH317=FALSE,AI317,Translation!F551&CHAR(10)&Translation!F552) -> Es wird ein Mischungsverhältnis von 10 % benötigt. Dies bedeutet ca. 50 Liter Monoethylenglykol MEG. | AK320: -20 | AL320: 35
AK321: -21 | AL321: 36
AK322: -22 | AL322: 37
AK323: -23 | AL323: 38
AK324: -24 | AL324: 39
AK325: -25 | AL325: 40
AK326: -26 | AL326: 41
AK327: -27 | AL327: 42
AK328: -29 | AL328: 43
AK329: -30 | AL329: 44
AK330: -31 | AL330: 45
AK331: -32 | AL331: 46
AK332: -34 | AL332: 47
AK333: -35 | AL333: 48
AK334: -36 | AL334: 49
AK335: -38 | AL335: 50
AK336: =ROUND( -2.1102491557564E-09*AL336^6 + 4.45342859978215E-07*AL336^5 - 0.0000329487547077179*AL336^4 + 0.000914546135163619*AL336^3 - 0.0143985062104548*AL336^2 - 0.328176318231272*AL336- 0.0176813374691847,0) -> -39 | AL336: 51
AK337: -41 | AL337: 52
AK338: -42 | AL338: 53
AK339: -44 | AL339: 54
AK340: -45 | AL340: 55
AK341: -47 | AL341: 56
AK342: -48 | AL342: 57
AK343: -50 | AL343: 58
AK344: -52 | AL344: 59
AK345: -53 | AL345: 60
L351: =Translation!F553 -> Soletemperatur | Q351: t | X351: °C | AJ351: Mischungsverhältnis | AK351: Temperatur | AL351: Mischungsverhältnis | BC351: gewählt
AJ352: % | AK352: °C | AL352: 0 | AM352: 5 | AN352: 10 | AO352: 15 | AP352: 20 | AQ352: 25 | AR352: 30 | AS352: 35 | AT352: 40 | AU352: 45 | AV352: 50 | AW352: 55 | AX352: 60 | AY352: 65 | AZ352: 70 | BA352: 75 | BB352: 80 | BC352: =AJ353*1 -> 5
L353: =Translation!F547 -> Anteil Monoethylenglykol MEG | Q353: φ | X353: % | AJ353: 5 | AK353: -20 | AL353: =2.14052287527195E-12*AK353^6 - 3.46832579275108E-10*AK353^5 + 1.46442936748594E-08*AK353^4 - 4.56622788278112E-07*AK353^3 + 0.0000972410268368305*AK353^2 - 0.00970594139258992*AK353 + 1.09279839611914 -> 1.333056562 | AM353: =(AL353+AN353)/2 -> 1.411140272 | AN353: =2.98202614390119E-12*AK353^6 - 8.04392911127829E-10*AK353^5 + 8.17386250014106E-08*AK353^4 - 3.90105666481531E-06*AK353^3 + 0.000139105037938535*AK353^2 - 0.00992903058882197*AK353 + 1.18794981531316 -> 1.489223983 | AO353: =(AN353+AP353)/2 -> 1.569852119 | AP353: =-1.55228758157403E-12*AK353^6 + 2.79411764746854E-10*AK353^5 - 1.21857716812438E-08*AK353^4 - 9.65926231988096E-07*AK353^3 + 0.00017172978082884*AK353^2 - 0.0137150867394016*AK353 + 1.30270238629654 -> 1.650480256 | AQ353: =(AP353+AR353)/2 -> 1.715491774 | AR353: =7.99019607920624E-12*AK353^6 - 1.53438914039659E-09*AK353^5 + 1.05403469172988E-07*AK353^4 - 3.69353832572268E-06*AK353^3 + 0.00015740319826629*AK353^2 - 0.0129107444938041*AK353 + 1.4074928429382 -> 1.780503292 | AS353: =(AR353+AT353)/2 -> 1.841090396 | AT353: =-6.23366013200899E-12*AK353^6 + 1.03071266979733E-09*AK353^5 - 4.19812090857618E-08*AK353^4 - 0.0000013606189165892*AK353^3 + 0.000199798301988407*AK353^2 - 0.0152425525313526*AK353 + 1.51643640526433 -> 1.9016775 | AU353: =(AT353+AV353)/2 -> 1.982034657 | AV353: =-2.69852941236703E-12*AK353^6 + 3.13139140407714E-10*AK353^5 + 1.28160822588234E-08*AK353^4 - 0.0000034257317836603*AK353^3 + 0.000247129272553551*AK353^2 - 0.0165175041346508*AK353 + 1.6049083469012 -> 2.062391815 | AW353: =(AV353+AX353)/2 -> 2.232531572 | AX353: =-1.51388888914773E-11*AK353^6 + 2.8676282054795E-09*AK353^5 - 1.53327991389846E-07*AK353^4 - 1.02006118905302E-06*AK353^3 + 0.000365746425874854*AK353^2 - 0.0224802715761287*AK353 + 1.83328461595779 -> 2.40267133 | AY353: =(AX353+AZ353)/2 -> 2.503541548 | AZ353: =9.59967320292608E-12*AK353^6 - 1.65582579213301E-09*AK353^5 + 9.14482780955348E-08*AK353^4 - 2.91420283511971E-06*AK353^3 + 0.000252940376572485*AK353^2 - 0.0236166923930394*AK353 + 1.98704339837787 -> 2.604411766 | BA353: =(AZ353+BB353)/2 -> 2.711985809 | BB353: =1.79738562133834E-12*AK353^6 - 6.44042232358008E-10*AK353^5 + 7.35734037881428E-08*AK353^4 - 4.53331962597085E-06*AK353^3 + 0.000311402966226765*AK353^2 - 0.0259089236438524*AK353 + 2.12660592410984 -> 2.819559853 | BC353: =FIXED(HLOOKUP(BC352,AL352:BB353,2,FALSE),3) -> 1,411
AJ354: 5 | AK354: -20
AJ355: 10 | AK355: -19
AJ356: 15 | AK356: -18
AJ357: 20 | AK357: -17
AJ358: 15 | AK358: -16
AJ359: 20 | AK359: -15
AJ360: 25 | AK360: -14
AJ361: 30 | AK361: -13
AJ362: 35 | AK362: -12
AJ363: 40 | AK363: -11
AJ364: 45 | AK364: -10
L365: =Translation!F13 -> Nach dieser Formel wurde gerechnet: | AJ365: 50 | AK365: -9
L366: =Translation!F554 -> Die Berechnung basiert auf das Datenblatt des Kältemittels Tyfocor. Es wurden mehrere Näherungsformeln verwendet. Daher kann eine allgemeingültige Formel nicht angegeben werden. | AJ366: 55 | AK366: -8
AJ367: 60 | AK367: -7
AJ368: 65 | AK368: -6
AJ369: 70 | AK369: -5
K370: =Translation!F555 -> Der Druckverlustfaktor beträgt 1,411. | AJ370: 75 | AK370: -4
AJ371: 80 | AK371: -3
AK372: -2
AK373: -1
AK374: 0
AK375: 1
AK376: 2
AK377: 3
AK378: 4
AK379: 5
AK380: 6
AK381: 7
AK382: 8
AK383: 9
AK384: 10
AK385: 11
AK386: 12
AK387: 13
AK388: 14
AK389: 15
AK390: 16
AK391: 17
AK392: 18
AK393: 19
AK394: 20
L401: =Translation!F553 -> Soletemperatur | Q401: t | X401: °C | AK401: Temperatur | AL401: Mischungsverhältnis | BC401: gewählt
AK402: °C | AL402: 0 | AM402: 5 | AN402: 10 | AO402: 15 | AP402: 20 | AQ402: 25 | AR402: 30 | AS402: 35 | AT402: 40 | AU402: 45 | AV402: 50 | AW402: 55 | AX402: 60 | AY402: 65 | AZ402: 70 | BA402: 75 | BB402: 80 | BC402: =AJ353*1 -> 5
L403: =Translation!F547 -> Anteil Monoethylenglykol MEG | Q403: φ | X403: % | AK403: =AK353 -> -20 | AL403: =-0.0040060714285719*AK403^2 - 0.0389792857144045*AK403 + 1000.23560000002 -> 999.4127571 | AM403: =(AL403+AN403)/2 -> 1009.265469 | AN403: =-0.00325757575757546*AK403^2 - 0.142454545454591*AK403 + 1017.57212121212 -> 1019.118182 | AO403: =(AN403+AP403)/2 -> 1029.504895 | AP403: =-0.00226923076923047*AK403^2 - 0.286482517482433*AK403 + 1035.06965034965 -> 1039.891608 | AQ403: =(AP403+AR403)/2 -> 1049.073427 | AR403: =-0.00223892773892675*AK403^2 - 0.345209790209829*AK403 + 1052.24662004662 -> 1058.255245 | AS403: =(AR403+AT403)/2 -> 1067.442657 | AT403: =-0.00191025641025711*AK403^2 - 0.416566433566473*AK403 + 1069.06284382285 -> 1076.63007 | AU403: =(AT403+AV403)/2 -> 1084.873077 | AV403: =-0.00126806526806433*AK403^2 - 0.5048251748251*AK403 + 1083.52680652681 -> 1093.116084 | AW403: =(AV403+AX403)/2 -> 1100.655944 | AX403: =-0.000733100233100359*AK403^2 - 0.589377622377597*AK403 + 1096.70149184149 -> 1108.195804 | AY403: =(AX403+AZ403)/2 -> 1114.114685 | AZ403: =-0.000559440559440461*AK403^2 - 0.617342657342633*AK403 + 1107.91048951049 -> 1120.033566 | BA403: =(AZ403+BB403)/2 -> 1125.865734 | BB403: =-0.000358974358975139*AK403^2 - 0.647916083916051*AK403 + 1118.88317016317 -> 1131.697902 | BC403: =FIXED(HLOOKUP(BC402,AL402:BB403,2,FALSE),0) -> 1.009
L415: =Translation!F13 -> Nach dieser Formel wurde gerechnet:
L416: =Translation!F554 -> Die Berechnung basiert auf das Datenblatt des Kältemittels Tyfocor. Es wurden mehrere Näherungsformeln verwendet. Daher kann eine allgemeingültige Formel nicht angegeben werden.
AA419: Grundlage der Daten: Tyfocor
K420: =Translation!F556 -> Die Dichte des Glykolgemisches beträgt 1.009 kg/m³.
L451: =Translation!F558 -> Heizlast der Wärmepumpe bei bivalent parallelem Betrieb | Q451: q | X451: % | AG451: Berechnung
AG453: =-0.0136*AK453+2.36 -> 1.6664 | AK453: 51
AK454: 51
AK455: 52
AK456: 53
AK457: 54
AK458: 55
AK459: 56
AK460: 57
AK461: 58
AK462: 59
AK463: 60
AK464: 61
L465: =Translation!F13 -> Nach dieser Formel wurde gerechnet: | AK465: 62
AK466: 63
AK467: 64
AK468: 65
AA469: =Translation!F559 -> Gilt nur bei bivalent-parallelem Betrieb einer Wärmepumpe | AK469: 66
K470: =IF(AG453<1,Translation!F561,Translation!F560) -> Die Kollektorfläche muss um den Faktor 1,6664 vergrößert werden. | AK470: 67
AK471: 68
AK472: 69
AK473: 70
AK474: 71
AK475: 72
AK476: 73
AK477: 74
... 16 more rows

Sheet Lueftung (hidden)
B1: =Warmwasser!B1 -> Formelsammlung | AG1: =Berechnung!AY5 -> UMT v1.29
B2: =Warmwasser!B2 -> MIT STIEBEL ELTRON KÖNNEN SIE RECHNEN.
AG6: Gewählte Kategorie
AG7: 9
C8: =Translation!F14 -> Was soll berechnet werden? | K8: =Translation!F15 -> Diese Angaben werden dafür benötigt.
L10: =Translation!F101 -> Zulufttemperatur | Q10: tZu | R10: 60 | X10: °C | AG10: Berechnung
L12: =Translation!F102 -> Raumtemperatur | Q12: tR | R12: 30 | X12: °C | AG12: =ROUND(R14*R16*R18*0.335*(R10-R12),1) -> 25125
L14: =Translation!F103 -> Raumfläche | Q14: AR | R14: 100 | X14: m2
L16: =Translation!F104 -> Mittlere Raumhöhe | Q16: hR | R16: 5 | X16: m | AG16: Ergebnisprüfung
L18: =Translation!F105 -> Luftwechsel | Q18: n | R18: 5 | X18: 1/h | AG18: Zuluftttemperatur OK | AH18: =IF(ISBLANK(R10),FALSE,IF(R10<15,FALSE,IF(R10>60,FALSE,TRUE))) -> TRUE | AI18: =Translation!F290 -> Zulufttemperatur überprüfen.
AG19: Raumtemperatur OK | AH19: =IF(ISBLANK(R12),FALSE,IF(R12>R10,FALSE,IF(R12<10,FALSE,TRUE))) -> TRUE | AI19: =Translation!F291 -> Raumtemperartur überprüfen.
AG20: Raumfläche OK | AH20: =IF(ISBLANK(R14),FALSE,IF(R14<1,FALSE,IF(R14>10000,FALSE,TRUE))) -> TRUE | AI20: =Translation!F292 -> Raumvolumen überprüfen.
AG21: Luftwechsel OK | AH21: =IF(ISBLANK(R18),FALSE,IF(R18<0,FALSE,TRUE)) -> TRUE | AI21: =Translation!F293 -> Luftwechsel überprüfen.
AG22: Raumhöhe OK | AH22: =IF(ISBLANK(R16),FALSE,IF(R16<2,FALSE,IF(R16>10,FALSE,TRUE))) -> TRUE | AI22: =Translation!F294 -> Raumhöhe überprüfen.
L24: =Translation!F13 -> Nach dieser Formel wurde gerechnet:
AG26: Alles OK ? | AH26: =IF(COUNTIF(AH18:AH25,FALSE)>0,FALSE,TRUE) -> TRUE | AI26: =VLOOKUP(FALSE,AH18:AI25,2,FALSE) -> 
R27: cp,L = 0,335 Wh/(m³*K)
K29: =IF(AH26=FALSE,AI26,Translation!F307) -> Die erforderliche Heizleistung beträgt ca. 25125 W.
L51: =Translation!F101 -> Zulufttemperatur | Q51: tZu | R51: 60 | X51: °C | AG51: Berechnung
L53: =Translation!F102 -> Raumtemperatur | Q53: tR | R53: 20 | X53: °C | AG53: =ROUND(R55/(0.335*(R51-R53)),0) -> 739
L55: =Translation!F106 -> Heizlast Raum | Q55: ΦR | R55: 9900 | X55: W
AG57: Ergebnisprüfung
AG59: Zuluftttemperatur OK | AH59: =IF(ISBLANK(R51),FALSE,IF(R51<R53,FALSE,IF(R51>60,FALSE,IF(R51=R53,FALSE,TRUE)))) -> TRUE | AI59: =Translation!F295 -> Zulufttemperatur überprüfen (max. 60°C).
AG60: Raumtemperatur OK | AH60: =IF(ISBLANK(R53),FALSE,IF(R53>R51,FALSE,IF(R53<10,FALSE,TRUE))) -> TRUE | AI60: =Translation!F291 -> Raumtemperartur überprüfen.
AG61: Raumheizlast OK | AH61: =IF(ISBLANK(R55),FALSE,IF(R55<1,FALSE,IF(R55>10000,FALSE,TRUE))) -> TRUE | AI61: =Translation!F296 -> Raumheizlast überprüfen
L65: =Translation!F13 -> Nach dieser Formel wurde gerechnet:
AG67: Alles OK ? | AH67: =IF(COUNTIF(AH59:AH66,FALSE)>0,FALSE,TRUE) -> TRUE | AI67: =VLOOKUP(FALSE,AH59:AI66,2,FALSE) -> 
R68: cp,L = 0,335 Wh/(m³*K)
K70: =IF(AH67=FALSE,AI67,Translation!F308) -> Der erforderliche Zuluft-Volumenstrom beträgt min. 739 m³/h.
L101: =Translation!F37 -> Rückwärmzahl | Q101: Φ | R101: 50 | X101: % | AG101: Berechnung
L103: =Translation!F107 -> Ablufttemperatur | Q103: tAb | R103: 10 | X103: °C | AG103: =ROUND(((R101/100)*(R103-R105))+R105,1) -> -5
L105: =Translation!F108 -> Außenlufttemperatur | Q105: tAu | R105: -20 | X105: °C
AG107: Ergebnisprüfung
AG109: Wärmebereitstellungsgrad OK | AH109: =IF(ISBLANK(R101),FALSE,IF(R101<1,FALSE,IF(R101>100,FALSE,TRUE))) -> TRUE | AI109: =Translation!F297 -> Wärmebereitstellungsgrad überprüfen.
AG110: Ablufttemperatur OK | AH110: =IF(ISBLANK(R103),FALSE,IF(R103<1,FALSE,IF(R103>50,FALSE,TRUE))) -> TRUE | AI110: =Translation!F298 -> Ablufttemperatur überprüfen.
AG111: Außentemperatur OK | AH111: =IF(ISBLANK(R105),FALSE,IF(R105>R103,FALSE,TRUE)) -> TRUE | AI111: =Translation!F299 -> Außentemperatur überprüfen.
L115: =Translation!F13 -> Nach dieser Formel wurde gerechnet:
AG117: Alles OK ? | AH117: =IF(COUNTIF(AH109:AH116,FALSE)>0,FALSE,TRUE) -> TRUE | AI117: =VLOOKUP(FALSE,AH109:AI116,2,FALSE) -> 
K120: =IF(AH117=FALSE,AI117,Translation!F309) -> Bei einer Rückwärmzahl von 50 % beträgt die Zulufttemperatur -5 °C.
L151: =Translation!F101 -> Zulufttemperatur | Q151: tZu | R151: 15 | X151: °C | AG151: Berechnung
L153: =Translation!F107 -> Ablufttemperatur | Q153: tAb | R153: 21 | X153: °C | AG153: =ROUND(((R151-R155)/(R153-R155))*100,1) -> 45.5
L155: =Translation!F108 -> Außenlufttemperatur | Q155: tAu | R155: 10 | X155: °C
AG157: Ergebnisprüfung
AG159: Zulufttemperatur OK | AH159: =IF(R151>R153,FALSE,IF(ISBLANK(R151),FALSE,IF(R151<1,FALSE,IF(R151>100,FALSE,TRUE)))) -> TRUE | AI159: =Translation!F290 -> Zulufttemperatur überprüfen.
AG160: Ablufttemperatur OK | AH160: =IF(ISBLANK(R153),FALSE,IF(R153<1,FALSE,IF(R153>50,FALSE,TRUE))) -> TRUE | AI160: =Translation!F298 -> Ablufttemperatur überprüfen.
AG161: Außentemperatur OK | AH161: =IF(R151<R155,FALSE,IF(ISBLANK(R155),FALSE,IF(R155>R153,FALSE,TRUE))) -> TRUE | AI161: =Translation!F299 -> Außentemperatur überprüfen.
L165: =Translation!F13 -> Nach dieser Formel wurde gerechnet:
AG167: Alles OK ? | AH167: =IF(COUNTIF(AH159:AH166,FALSE)>0,FALSE,TRUE) -> TRUE | AI167: =VLOOKUP(FALSE,AH159:AI166,2,FALSE) -> 
K170: =IF(AH167=FALSE,AI167,Translation!F310) -> Rückwärmzahl beträgt 45,5 %.
L201: =Translation!F109 -> Leistungsaufnahme Ventilator | Q201: PV | R201: 5 | X201: W | AG201: Berechnung
L203: =Translation!F110 -> Geförderter Volumenstrom | Q203: V̇ | R203: 50 | X203: m3/h | AG203: =ROUND((R205*R203*100)/(3600*R201),1) -> 2.8
L205: =Translation!F111 -> Druckerhöhung Ventilator | Q205: Δp | R205: 10 | X205: Pa
AG207: Ergebnisprüfung
AG209: Leistungsaufnahme | AH209: =IF(ISBLANK(R201),FALSE,IF(R201<1,FALSE,TRUE)) -> TRUE | AI209: =Translation!F300 -> Leistungsaufnahme überprüfen.
AG210: Volumenstrom OK | AH210: =IF(ISBLANK(R203),FALSE,IF(R203<0,FALSE,TRUE)) -> TRUE | AI210: =Translation!F301 -> Volumenstrom überprüfen.
AG211: Druckerhöhung OK | AH211: =IF(ISBLANK(R205),FALSE,IF(R205<1,FALSE,TRUE)) -> TRUE | AI211: =Translation!F212 -> Speichergröße überprüfen.
L215: =Translation!F13 -> Nach dieser Formel wurde gerechnet:
AG217: Alles OK ? | AH217: =IF(COUNTIF(AH209:AH216,FALSE)>0,FALSE,TRUE) -> TRUE | AI217: =VLOOKUP(FALSE,AH209:AI216,2,FALSE) -> 
K220: =IF(AH217=FALSE,AI217,Translation!F311) -> Der Wirkungsgrad des Gerätes beträgt 2,8 %.
L251: =Translation!F103 -> Raumfläche | Q251: AR | R251: 100 | X251: m² | AG251: Berechnung
L253: =Translation!F112 -> Höhe des Raumes | Q253: hR | R253: 5 | X253: m | AG253: =ROUND(R255/(R251*R253),1) -> 0.4
L255: =Translation!F113 -> Zuluftvolumenstrom | Q255: V̇ | R255: 200 | X255: m3/h | AG255: =60/AG253 -> 150
AG257: Ergebnisprüfung
AG259: Fläche OK | AH259: =IF(ISBLANK(R251),FALSE,IF(R251<=0,FALSE,TRUE)) -> TRUE | AI259: =Translation!F302 -> Fläche des Raumes überprüfen.
AG260: Volumenstrom OK | AH260: =IF(ISBLANK(R255),FALSE,IF(R255<=0,FALSE,TRUE)) -> TRUE | AI260: =Translation!F301 -> Volumenstrom überprüfen.
AG261: Raumhöhe OK | AH261: =IF(ISBLANK(R253),FALSE,IF(R253<2,FALSE,IF(R253>10,FALSE,TRUE))) -> TRUE | AI261: =Translation!F294 -> Raumhöhe überprüfen.
L265: =Translation!F13 -> Nach dieser Formel wurde gerechnet:
AG267: Alles OK ? | AH267: =IF(COUNTIF(AH259:AH266,FALSE)>0,FALSE,TRUE) -> TRUE | AI267: =VLOOKUP(FALSE,AH259:AI266,2,FALSE) -> 
K270: =IF(AH267=FALSE,AI267,Translation!F312) -> Die Luftwechselzahl beträgt 0,4 1/h. Die Raumluft wird alle 150 min einmal ausgetauscht.
L301: =Translation!F114 -> Höhe Kanal | Q301: a | R301: 50 | X301: mm | AG301: Berechnung
L303: =Translation!F115 -> Breite Kanal | Q303: b | R303: 100 | X303: mm | AG303: =ROUND(2*R301*R303/(R301+R303),1) -> 66.7
AG307: Ergebnisprüfung
AG309: Höhe Kanal OK | AH309: =IF(ISBLANK(R301),FALSE,IF(R301<0,FALSE,TRUE)) -> TRUE | AI309: =Translation!F303 -> Höhe des Kanal überprüfen.
AG310: Breite Kanal OK | AH310: =IF(ISBLANK(R303),FALSE,IF(R303<0,FALSE,TRUE)) -> TRUE | AI310: =Translation!F304 -> Breite des Kanals überprüfen.
L315: =Translation!F13 -> Nach dieser Formel wurde gerechnet:
AG317: Alles OK ? | AH317: =IF(COUNTIF(AH309:AH316,FALSE)>0,FALSE,TRUE) -> TRUE | AI317: =VLOOKUP(FALSE,AH309:AI316,2,FALSE) -> 
K320: =IF(AH317=FALSE,AI317,Translation!F313) -> Der gleichwertige Durchmesser des rechteckigen Kanals beträgt 66,7 mm.
L351: =Translation!F116 -> Fläche Querschnitt | Q351: A | R351: 280 | X351: mm2 | AG351: Berechnung
L353: =Translation!F117 -> Umfang Querschnitt | Q353: U | R353: 2500 | X353: mm | AG353: =ROUND(4*R351/R353,1) -> 0.4
AG357: Ergebnisprüfung
AG359: Fläche OK | AH359: =IF(ISBLANK(R351),FALSE,IF(R351<0,FALSE,TRUE)) -> TRUE | AI359: =Translation!F305 -> Querschnittsfläche überprüfen.
AG360: Umfang OK | AH360: =IF(ISBLANK(R353),FALSE,IF(R353<0,FALSE,TRUE)) -> TRUE | AI360: =Translation!F306 -> Umfang des Querschnitts überprüfen.
L365: =Translation!F13 -> Nach dieser Formel wurde gerechnet:
AG367: Alles OK ? | AH367: =IF(COUNTIF(AH359:AH366,FALSE)>0,FALSE,TRUE) -> TRUE | AI367: =VLOOKUP(FALSE,AH359:AI366,2,FALSE) -> 
K370: =IF(AH367=FALSE,AI367,Translation!F314) -> Der gleichwertige Durchmesser des Querschnitts beträgt 0,4 mm.
L401: =Translation!F326 -> Typ Kanal | AG401: Berechnung
AO402: Rundrohr
L403: =Translation!F325 -> Strömungsgeschwindigkeit | Q403: w | R403: 5 | X403: m/s | AG403: =ROUND(R405/3600/R403,4) -> 0.0003 | AH403: m² | AI403: Fläche | AO403: =Translation!F322 -> Rundrohr
AG404: =ROUND(SQRT(AG403/PI())*2000,-1) -> 20 | AH404: mm | AI404: Rundrohr | AO404: =Translation!F323 -> Quadrat
L405: =Translation!F141 -> Volumenstrom | Q405: V̇ | R405: 5 | X405: m³/h | AG405: =ROUND(SQRT(AG403)*1000,-1) -> 20 | AH405: mm | AI405: Kantenlänge Quadrat | AO405: =Translation!F324 -> Rechteckkanal
AG406: =R407 -> 6 | AH406: mm | AI406: Rechteck Kantenlänge a
L407: =IF(AO402=AO405,Translation!F327,"") ->  | Q407: =IF(AO402=AO405,"a","") ->  | R407: 6 | X407: =IF(AO402=AO405,"mm","") ->  | AG407: =ROUND(AG403*1000000/AG406,-1) -> 50 | AH407: mm | AI407: Rechteck Kantenlänge b
AG409: Ergebnisprüfung
AG411: Geschwindigkeit OK | AH411: =IF(ISBLANK(R403),FALSE,IF(R403<=0,FALSE,TRUE)) -> TRUE | AI411: =Translation!F320 -> Luftgeschwindigkeit überprüfen.
AG412: Volumenstrom OK | AH412: =IF(ISBLANK(R405),FALSE,IF(R405<=0,FALSE,TRUE)) -> TRUE | AI412: =Translation!F301 -> Volumenstrom überprüfen.
AG413: Kantenlänge OK | AH413: =IF(AO402=AO405,IF(ISBLANK(R407),FALSE,IF(R407<=0,FALSE,TRUE)),TRUE) -> TRUE | AI413: =Translation!F321 -> Katenlänge überprüfen.
L415: =Translation!F13 -> Nach dieser Formel wurde gerechnet:
AG419: Alles OK ? | AH419: =IF(COUNTIF(AH411:AH418,FALSE)>0,FALSE,TRUE) -> TRUE | AI419: =VLOOKUP(FALSE,AH411:AI418,2,FALSE) -> 
K420: =IF(AH419=FALSE,"",IF(AO402=AO404,Translation!F318,IF(Lueftung!AO402=Lueftung!AO405,Translation!F319,Translation!F317)))&CHAR(10)&IF(AH419=FALSE,AI419,Translation!F316) -> Benötigter Mindestdurchmesser = 20 mm. Benötigter Mindestquerschnitt = 0,0003 m².
L451: =Translation!F137 -> Rohrart | AG451: Berechnung
L453: =IF(AG455=AG456,Translation!F449&" [mm] x "&Translation!F450&" [mm]",Translation!F138) -> Nennweite | Q453: d | R453: =IF(Berechnung!AV6=Berechnung!AV12,"x","") ->  | AG453: Prüfung | AH453: Index | AI453: Einheit Längen | AJ453: Wert in m | AK453: Index | AL453: Druck | AM453: Wert in Pa | AN453: Index | AO453: Vol.Strom | AP453: Wert in m³/s
AH454: 1 | AI454: =VLOOKUP(AH454,AH455:AI457,2,FALSE) -> m | AJ454: =R457/VLOOKUP(AI454,AI455:AJ460,2,FALSE) -> 200 | AK454: 7 | AL454: =VLOOKUP(AK454,AK455:AM461,2,FALSE) -> mmWS | AM454: =VLOOKUP(AK454,AK455:AM461,3,FALSE) -> 0.098068 | AN454: 1 | AO454: =VLOOKUP(AN454,AN455:AP461,2,FALSE) -> m³/h | AP454: =R455/VLOOKUP(AO454,AO455:AP464,2,FALSE) -> 0.06944444444
L455: =Translation!F141 -> Volumenstrom | Q455: V̇ | R455: 250 | X455: =AO454 -> m³/h | AG455: =Berechnung!AV6 -> Wickelfalzrohr | AH455: 1 | AI455: m | AJ455: 1 | AK455: 1 | AL455: mbar | AM455: 1 | AN455: 1 | AO455: m³/h | AP455: 3600
AG456: =Berechnung!AV12 -> Rechteckkanal | AH456: 2 | AI456: mm | AJ456: 1000 | AK456: 2 | AL456: bar | AM456: 1000 | AN456: 2 | AO456: m³/min | AP456: 60
L457: =Translation!F451 -> Rohrlänge | Q457: l | R457: 200 | X457: =AI454 -> m | AH457: 3 | AI457: cm | AJ457: 100 | AK457: 3 | AL457: Pa | AM457: 0.01 | AN457: 3 | AO457: m³/s | AP457: 1
AK458: 4 | AL458: hPa | AM458: 1 | AN458: 4 | AO458: l/h | AP458: 3600000
L459: =Translation!F139 -> Rohreinbauten | Q459: f1 | AK459: 5 | AL459: kPa | AM459: 10 | AN459: 5 | AO459: l/min | AP459: 60000
AK460: 6 | AL460: mWS | AM460: 98.067 | AN460: 6 | AO460: l/s | AP460: 1000
AK461: 7 | AL461: mmWS | AM461: 0.098068
AG462: Ergebnis
AG463: =Berechnung!C56 -> 87.93428569 | AH463: mbar
AG464: =ROUND(AG463/AM454,2) -> 896.67 | AH464: =AL454 -> mmWS
L465: =Translation!F13 -> Nach dieser Formel wurde gerechnet:
AG466: Fließgeschwindigkeit
R467: ="Hydraulischer Durchmesser d = "&ROUND(Berechnung!C28*1000,2)&" mm" -> Hydraulischer Durchmesser d = 80 mm | W467: ="Rohrreibungszahl λ = "&ROUND(Berechnung!C48,3) -> Rohrreibungszahl λ = 0,024 | AG467: =ROUND(Berechnung!C33,2) -> 13.82 | AH467: m/s
R468: Dichte Luft ρ = 1,2 kg/m³ | W468: ="Faktor f1 = "&Berechnung!T5+1 -> Faktor f1 = 1,3
R469: ="Fläche A ="&ROUND(Berechnung!C29,4)&" m²" -> Fläche A =0,005 m²
K470: =Translation!F448&CHAR(10)&Translation!F460 -> Der Druckverlust beträgt 896,67 mmWS. Die Strömungsgeschwindigkeit beträgt 13,82 m/s.

Sheet Klima (hidden)
B1: =Warmwasser!B1 -> Formelsammlung | AG1: =Berechnung!AY5 -> UMT v1.29
B2: =Warmwasser!B2 -> MIT STIEBEL ELTRON KÖNNEN SIE RECHNEN.
AG6: Gewählte Kategorie
AG7: 5
C8: =Translation!F14 -> Was soll berechnet werden? | K8: =Translation!F15 -> Diese Angaben werden dafür benötigt.
L10: =Translation!F176 -> Oberflächentemp. | Q10: tO | R10: 21.3 | X10: °C | AG10: Berechnung
L12: =Translation!F102 -> Raumtemperatur | Q12: tR | R12: 21.3 | X12: °C | AG12: =ROUND((R14/100)^(1/8.02)*(109.8+R12)-109.8,2) -> 12.69
L14: =Translation!F177 -> Rel. Luftfeuchte | Q14: φ | R14: 58 | X14: % | AG14: Quelle: | AH14: http://www.schweizer-fn.de/lueftung/feuchte/feuchte.php
C22: ="" ->  | AG22: Ergebnisprüfung
AG23: Oberflächentem OK | AH23: =IF(ISBLANK(R10),FALSE,IF(OR(R10<-100,R10>100),FALSE,TRUE)) -> TRUE | AI23: =Translation!F367 -> Oberflächentemperatur überprüfen.
C24: ="" ->  | L24: =Translation!F13 -> Nach dieser Formel wurde gerechnet: | AG24: Raumtemperatur OK? | AH24: =IF(ISBLANK(R12),FALSE,IF(OR(R12<-100,R12>100),FALSE,TRUE)) -> TRUE | AI24: =Translation!F368 -> Raumtemperatur überprüfen.
R25: =Translation!F379 -> Luftfeuchtigkeit φ zwischen 40 - 65% | AG25: Feuchte OK | AH25: =IF(ISBLANK(R14),FALSE,IF(R14<=0,FALSE,IF(R14>100,FALSE,TRUE))) -> TRUE | AI25: =Translation!F369 -> Relative Luftfeuchtigkeit überprüfen.
C26: ="" -> 
AG28: Alles OK ? | AH28: =IF(COUNTIF(AH23:AH25,FALSE)>0,FALSE,TRUE) -> TRUE | AI28: =VLOOKUP(FALSE,AH23:AI26,2,FALSE) -> 
K29: =IF(AH28=FALSE,AI28,IF(R10<AG12,Translation!F377,Translation!F378)) -> Der Taupunkt liegt bei 12,69 °C und wird nicht unterschritten.
L51: =Translation!F279 -> Personen | Q51: NPers | R51: 1 | AG51: Berechnung
L53: =Translation!F491 -> Tätigkeit | Q53: q | AG53: =AI54*R51 -> 120 | AH53: Tätigkeit | AI53: Wärmeabgabe in Watt
AH54: Statische Tätigkeit im Sitzen | AI54: =VLOOKUP(AH54,AH55:AI60,2,FALSE) -> 120
AH55: =Translation!F492 -> Statische Tätigkeit im Sitzen | AI55: 120
AH56: =Translation!F493 -> Sehr leichte Tätigkeit im Stehen | AI56: 150
AH57: =Translation!F494 -> Leichte körperliche Tätigkeit | AI57: 190
AH58: =Translation!F495 -> Schwere körperliche Tätigkeit | AI58: 270
AG61: Ergebnisprüfung
C63: =$C$22 ->  | AG63: Anzahl Personen OK? | AH63: =IF(R51<=0,FALSE,TRUE) -> TRUE | AI63: =Translation!F232 -> Personenzahl überprüfen.
C65: =$C$24 -> 
P66: ="q ="&AI54&" W" -> q =120 W
C67: =$C$26 -> 
K70: =IF(AH63=FALSE,AI63,Translation!F496) -> Die gesamte Wärmeabgabe beträgt 120 Watt.
L101: =Translation!F178 -> Raumtyp | AG101: Berechnung
L103: =Translation!F103 -> Raumfläche | Q103: A | R103: 20 | X103: m² | AG103: =ROUND(AJ104*R103*R105/1000,1) -> 3 | AI103: Raumtyp | AJ103: W/m³
AI104: Private Wohnung | AJ104: =VLOOKUP(AI104,AI105:AJ108,2,FALSE) -> 30
L105: =Translation!F179 -> Raumhöhe | Q105: h | R105: 5 | X105: m | AI105: =Translation!F390 -> Private Wohnung | AJ105: 30
AI106: =Translation!F391 -> Büro | AJ106: 40
AI107: =Translation!F392 -> Verkaufsraum | AJ107: 50
AI108: =Translation!F393 -> Glasanbau | AJ108: 200
AG111: Ergebnisprüfung
C113: =$C$22 -> 
AG114: Fläche OK? | AH114: =IF(ISBLANK(R103),FALSE,IF((R103<0),FALSE,TRUE)) -> TRUE | AI114: =Translation!F371 -> Breite überprüfen.
C115: =$C$24 ->  | L115: =Translation!F13 -> Nach dieser Formel wurde gerechnet: | AG115: Höhe Raum OK? | AH115: =IF(R105<=0,FALSE,IF(R105>5,FALSE,TRUE)) -> TRUE | AI115: =Translation!F372 -> Höhe Raum überprüfen.
Q116: ="fk = "&AJ104&" W/m²" -> fk = 30 W/m²
C117: =$C$26 -> 
AG119: Alles OK | AH119: =IF(COUNTIF(AH113:AH117,FALSE)>0,FALSE,TRUE) -> TRUE | AI119: =VLOOKUP(AH119,AH113:AI118,2,FALSE) -> Breite überprüfen.
K120: =IF(AH119=FALSE,AI119,Translation!F381) -> Die überschlägige Kühllast für diesen Raum beträgt 3 kW.
C163: =$C$22 -> 
C165: =$C$24 -> 
C167: =$C$26 -> 
L201: =Translation!F102 -> Raumtemperatur | Q201: tR | R201: 20 | X201: °C | AG201: Berechnung
AG202: esat,ws= | AH202: =ROUND(611.2*EXP(17.62*R201/(243.12+R201)),1) -> 2332.6
L203: =Translation!F177 -> Rel. Luftfeuchte | Q203: φ | R203: 55 | X203: % | AG203: e= | AH203: =R203*AH202/100 -> 1282.93
AG204: Rfl | AH204: =287.058/(1-((AH203/101325)*(1-(287.058/461.51)))) -> 288.4384936 | AI204: kJ/kgK
AG205: ρL,f1= | AH205: =ROUND(101325/(AH204*(273.15+R201)),2) -> 1.2 | AI205: kg/m³
AG206: Quelle | AH206: http://www.schweizer-fn.de/lueftung/feuchte/feuchte.php
AG207: Ergebnisprüfung
AG209: Raumtemperatur OK? | AH209: =IF(ISBLANK(R201),FALSE,IF(OR(R201<-50,R201>100),FALSE,TRUE)) -> TRUE | AI209: =Translation!F368 -> Raumtemperatur überprüfen.
AG210: Relative Feuchte OK? | AH210: =IF(ISBLANK(R203),FALSE,IF(OR(R203<0,R203>100),FALSE,TRUE)) -> TRUE | AI210: =Translation!F369 -> Relative Luftfeuchtigkeit überprüfen.
L211: =Translation!F13 -> Nach dieser Formel wurde gerechnet:
C213: =$C$22 ->  | U213: =Translation!F389 -> Berechnung im Bereich -50 bis 100°C
U214: =Translation!F386&" = 101325 Pa" -> Umgebungsdruck = 101325 Pa
C215: =$C$24 ->  | U215: =Translation!F387&" = 287,058 J(kgK)" -> Gaskonstante trockene Luft = 287,058 J(kgK)
C217: =$C$26 ->  | U217: =Translation!F388&" = 461,51 J/(kgK)" -> Gaskonstante Wasserdampf = 461,51 J/(kgK) | AG217: Alles OK ? | AH217: =IF(COUNTIF(AH209:AH216,FALSE)>0,FALSE,TRUE) -> TRUE | AI217: =VLOOKUP(FALSE,AH209:AI216,2,FALSE) -> 
K220: =IF(AH217=FALSE,AI217,Translation!F385) -> Die Dichte der feuchten Luft beträgt 1,2 kg/m³.

Sheet Einheiten (hidden)
B1: =Warmwasser!B1 -> Formelsammlung | AG1: =Berechnung!AY5 -> UMT v1.29
B2: =Warmwasser!B2 -> MIT STIEBEL ELTRON KÖNNEN SIE RECHNEN.
AG6: Gewählte Kategorie
AG7: 1
C8: =Translation!F5 -> Was wollen Sie tun? | K8: =AQ11 -> Volumenstrom umrechnen
L10: =Translation!F186 -> Dieser Wert soll umgerechnet werden | R10: 0.2 | AG10: Berechnung | AK10: Einheitenliste | AP10: Überschriften
AK11: Eingabe | AN11: Faktor | AP11: Kategorie | AQ11: =VLOOKUP(AG7,AP12:AQ28,2,FALSE) -> Volumenstrom umrechnen
L12: =Translation!F187 -> Der umgerechnete Wert beträgt | R12: =IF(AG12<0.001,AG12,ROUND(AG12,3)) -> 0.2 | AG12: =R10*AN24 -> 0.2 | AK12: Gegebene Einheit | AL12: m³/h | AN12: =VLOOKUP(AL12,AK14:AN23,4,FALSE) -> 1 | AP12: 1 | AQ12: =Translation!F64 -> Volumenstrom umrechnen
AK13: Gewünschte Einheit | AL13: m³/h | AN13: =VLOOKUP(AL13,AK14:AN23,4,FALSE) -> 1 | AP13: 2 | AQ13: =Translation!F65 -> Massenstrom umrechnen
AK14: m³/h | AN14: 1 | AP14: 3 | AQ14: =Translation!F66 -> Geschwindigkeit umrechnen
AK15: m³/min | AN15: =1/60 -> 0.01666666667 | AP15: 4 | AQ15: =Translation!F67 -> Druck umrechnen
AG16: Ergebnisprüfung | AK16: m³/sec | AN16: =1/3600 -> 0.0002777777778 | AP16: 5 | AQ16: =Translation!F68 -> Energie umrechnen
AK17: L/h | AN17: =1000 -> 1000 | AP17: 6 | AQ17: =Translation!F69 -> Temperatur umrechnen
AG18: Zahlenwert OK | AH18: =IF(ISBLANK(R10),FALSE,TRUE) -> TRUE | AI18: =Translation!F395 -> Zahlenwert überprüfen. | AK18: L/min | AN18: =1000/60 -> 16.66666667 | AP18: 7 | AQ18: =Translation!F70 -> Kennwerte & Konstanten anzeigen
AK19: L/sec | AN19: =1000/3600 -> 0.2777777778 | AP19: 8 | AQ19: =Translation!F71 -> Heizwerte von Energieträgern anzeigen
AK20: US gal/d | AN20: 6340.12925 | AP20: 9 | AQ20: =Translation!F72 -> Erfahrungswerte anzeigen
AK21: US gal/h | AN21: 264.17205 | AP21: 10 | AQ21: =Translation!F73 -> Warmwasser-Fragen
AK22: US gal/min | AN22: 4.40287 | AP22: 11 | AQ22: =Translation!F74 -> Kaltwassertemperatur
AP23: 12 | AQ23: =Translation!F75 -> Temperatur im Speicher
AK24: Faktor | AN24: =AN13/AN12 -> 1
AG26: Alles OK ? | AH26: =IF(COUNTIF(AH18:AH25,FALSE)>0,FALSE,TRUE) -> TRUE | AI26: =VLOOKUP(FALSE,AH18:AI25,2,FALSE) -> 
L51: =Translation!F186 -> Dieser Wert soll umgerechnet werden | R51: 2 | AG51: Berechnung | AK51: Einheitenliste
AK52: Eingabe | AN52: Faktor
L53: =Translation!F187 -> Der umgerechnete Wert beträgt | R53: =IF(AG53<0.001,AG53,ROUND(AG53,3)) -> 2 | AG53: =R51*AN63 -> 2 | AK53: Gegebene Einheit | AL53: kg/h | AN53: =VLOOKUP(AL53,AK55:AN62,4,FALSE) -> 1
AK54: Gewünschte Einheit | AL54: kg/h | AN54: =VLOOKUP(AL54,AK55:AN62,4,FALSE) -> 1
AK55: kg/h | AN55: 1
AK56: kg/min | AN56: =1/60 -> 0.01666666667
AG57: Ergebnisprüfung | AK57: kg/sec | AN57: =1/3600 -> 0.0002777777778
AK58: g/h | AN58: 1000
AG59: Zahlenwert OK | AH59: =IF(ISBLANK(R51),FALSE,TRUE) -> TRUE | AI59: =Translation!F395 -> Zahlenwert überprüfen. | AK59: g/min | AN59: =1000/60 -> 16.66666667
AK60: g/sec | AN60: =1000/3600 -> 0.2777777778
AK63: Faktor | AN63: =AN54/AN53 -> 1
AG67: Alles OK ? | AH67: =IF(COUNTIF(AH59:AH66,FALSE)>0,FALSE,TRUE) -> TRUE | AI67: =VLOOKUP(FALSE,AH59:AI66,2,FALSE) -> 
L101: =Translation!F186 -> Dieser Wert soll umgerechnet werden | R101: 122 | AG101: Berechnung | AK101: Einheitenliste
AK102: Eingabe | AN102: Faktor
L103: =Translation!F187 -> Der umgerechnete Wert beträgt | R103: =IF(AG103<0.001,AG103,ROUND(AG103,3)) -> 122 | AG103: =R101*AN115 -> 122 | AK103: Gegebene Einheit | AL103: km/h | AN103: =VLOOKUP(AL103,AK105:AN113,4,FALSE) -> 3.6
AK104: Gewünschte Einheit | AL104: km/h | AN104: =VLOOKUP(AL104,AK105:AN114,4,FALSE) -> 3.6
AK105: km/h | AN105: 3.6
AK106: km/min | AN106: 0.06
AG107: Ergebnisprüfung | AK107: km/sec | AN107: =1/1000 -> 0.001
AK108: m/h | AN108: 3600
AG109: Zahlenwert OK | AH109: =IF(ISBLANK(R101),FALSE,TRUE) -> TRUE | AI109: =Translation!F395 -> Zahlenwert überprüfen. | AK109: m/min | AN109: 60
AK110: m/sec | AN110: 1
AK111: mph | AN111: 2.23694
AK112: miles/min | AN112: 0.03728
AK115: Faktor | AN115: =AN104/AN103 -> 1
AG117: Alles OK ? | AH117: =IF(COUNTIF(AH109:AH116,FALSE)>0,FALSE,TRUE) -> TRUE | AI117: =VLOOKUP(FALSE,AH109:AI116,2,FALSE) -> 
L151: =Translation!F186 -> Dieser Wert soll umgerechnet werden | R151: 1 | AG151: Berechnung | AK151: Einheitenliste
AK152: Eingabe | AN152: Faktor
L153: =Translation!F187 -> Der umgerechnete Wert beträgt | R153: =IF(AG153<0.001,AG153,ROUND(AG153,3)) -> 1 | AG153: =R151*AN167 -> 1 | AK153: Gegebene Einheit | AL153: Pa | AN153: =VLOOKUP(AL153,AK155:AN166,4,FALSE) -> 1
AK154: Gewünschte Einheit | AL154: Pa | AN154: =VLOOKUP(AL154,AK155:AN166,4,FALSE) -> 1
AK155: Pa | AN155: 1
AK156: hPa | AN156: 0.01
AG157: Ergebnisprüfung | AK157: kPa | AN157: 0.001
AK158: mbar | AN158: 0.01
AG159: Zahlenwert OK | AH159: =IF(ISBLANK(R151),FALSE,TRUE) -> TRUE | AI159: =Translation!F395 -> Zahlenwert überprüfen. | AK159: bar | AN159: 1e-05
AK160: mWS | AN160: 0.0001019716213
AK161: mmWS | AN161: 0.1019716213
AK162: atm | AN162: =9.86923266*10^-6 -> 9.86923266e-06
AK163: kg/m² | AN163: 0.1019716213
AK164: cmHg | AN164: 0.000750061505
AK165: mmHg | AN165: 0.007006150504
AK166: psi | AN166: 0.000145038
AG167: Alles OK ? | AH167: =IF(COUNTIF(AH159:AH166,FALSE)>0,FALSE,TRUE) -> TRUE | AI167: =VLOOKUP(FALSE,AH159:AI166,2,FALSE) ->  | AK167: Faktor | AN167: =AN154/AN153 -> 1
B172: =Warmwasser!B31 -> 0
L201: =Translation!F186 -> Dieser Wert soll umgerechnet werden | R201: 236 | AG201: Berechnung | AK201: Einheitenliste
AK202: Eingabe | AN202: Faktor
L203: =Translation!F187 -> Der umgerechnete Wert beträgt | R203: =IF(AG203<0.001,AG203,ROUND(AG203,3)) -> 236 | AG203: =(R201*AN215) -> 236 | AK203: Gegebene Einheit | AL203: J | AN203: =VLOOKUP(AL203,AK205:AN214,4,FALSE) -> 1
AK204: Gewünschte Einheit | AL204: J | AN204: =VLOOKUP(AL204,AK205:AN214,4,FALSE) -> 1
AK205: J | AN205: 1
AK206: kJ | AN206: 0.001
AG207: Ergebnisprüfung | AK207: MJ | AN207: =1/1000000 -> 1e-06
AK208: Ws | AN208: 1
AG209: Zahlenwert OK | AH209: =IF(ISBLANK(R201),FALSE,TRUE) -> TRUE | AI209: =Translation!F395 -> Zahlenwert überprüfen. | AK209: Wh | AN209: =1/3600 -> 0.0002777777778
AK210: kWh | AN210: =1/3600000 -> 2.777777778e-07
AK211: btu | AN211: =1/1055.05585262 -> 0.0009478171203
AK212: kcal | AN212: =1/4184 -> 0.0002390057361
AK213: cal | AN213: =1000/4184 -> 0.2390057361
AK215: Faktor | AN215: =AN204/AN203 -> 1
AG217: Alles OK ? | AH217: =IF(COUNTIF(AH209:AH216,FALSE)>0,FALSE,TRUE) -> TRUE | AI217: =VLOOKUP(FALSE,AH209:AI216,2,FALSE) -> 
L251: =Translation!F186 -> Dieser Wert soll umgerechnet werden | R251: 0 | AG251: Berechnung | AK251: Umrechnung
AM252: Eingabe | AN252: °Fahrenheit | AO252: °Celsius
L253: =Translation!F187 -> Der umgerechnete Wert beträgt | R253: =IF(AG253<0.001,AG253,ROUND(AG253,3)) -> 0 | AG253: =HLOOKUP(AM254,AM252:AO263,12,FALSE) -> 0 | AK253: Eingabe
AK254: =R251 -> 0 | AM254: °Fahrenheit
AM255: °Fahrenheit
AM256: °Fahrenheit | AN256: =AK254 -> 0 | AO256: =AK254*1.8+32 -> 32
AG257: Ergebnisprüfung | AM257: °Celsius | AN257: =(AK254-32)/1.8 -> -17.77777778 | AO257: =AK254 -> 0
AG259: Zahlenwert OK | AH259: =IF(ISBLANK(R251),FALSE,TRUE) -> TRUE | AI259: =Translation!F395 -> Zahlenwert überprüfen.
AK263: =AM255 -> °Fahrenheit | AN263: =VLOOKUP(AM255,AM256:AO260,2,FALSE) -> 0 | AO263: =VLOOKUP(AM255,AM256:AO260,3,FALSE) -> 32
AK264: =HLOOKUP(R253,AM252:AO263,12,FALSE) -> 
AG267: Alles OK ? | AH267: =IF(COUNTIF(AH259:AH266,FALSE)>0,FALSE,TRUE) -> TRUE | AI267: =VLOOKUP(FALSE,AH259:AI266,2,FALSE) -> 
L301: =Translation!F189 -> Spezifische Wärmekapazität Wasser | T301: 1,163 Wh/kg·K
L303: =Translation!F190 -> Spezifische Wärmekapazität Luft | T303: 0,335 Wh/m³·K
L305: =Translation!F191 -> Mittlere Dichte von Wasser | T305: 1 kg/Liter
L307: =Translation!F192 -> Mittlere Dichte von Luft | T307: 1,2 kg/m³
L309: =Translation!F193 -> CO2-Faktor Strom | T309: =Translation!F396 -> 633 g CO2 je kWh Endenergie
L311: =Translation!F194 -> CO2-Faktor Öl | T311: =Translation!F397 -> 302 g CO2 je kWh Endenergie
L313: =Translation!F195 -> CO2-Faktor Gas | T313: =Translation!F398 -> 244 g CO2 je kWh Endenergie
L315: =Translation!F196 -> Primärenergiefaktor Strommix | T315: =Translation!G399 -> 1,8 kWh Primär- für 1 kWh Endenergie
L317: =Translation!F197 -> Primärenergiefaktor Öl/Gas | T317: =Translation!G400 -> 1,1 kWh Primär- für 1 kWh Endenergie
L351: =Translation!F198 -> Auswahl Energieträger | AI351: Länderauswahl | AK351: DE STE | AM351: DE TEC | AO351: England | AQ351: Finnland € | AS351: Tschechien Krone | AU351: Dänemark DKK | AW351: Italien | AY351: Polen | BA351: Niederlande
AG352: Länderpreise | AK352: 8 | AM352: 9 | AO352: 10 | AQ352: 11 | AS352: 12 | AU352: 13 | AW352: 14 | AY352: 15 | BA352: 16
AG353: Energieträger | AH353: Energiegehalt | AI353: Preis pro Einheit | AJ353: Preis pro kWh | AK353: Preis pro Einheit | AL353: Preis pro kWh | AM353: Preis pro Einheit | AN353: Preis pro kWh | AO353: Preis pro Einheit | AP353: Preis pro kWh | AQ353: Preis pro Einheit | AR353: Preis pro kWh | AS353: Preis pro Einheit | AT353: Preis pro kWh | AU353: Preis pro Einheit | AV353: Preis pro kWh | AW353: Preis pro Einheit | AX353: Preis pro kWh | AY353: Preis pro Einheit | AZ353: Preis pro kWh | BA353: Preis pro Einheit | BB353: Preis pro kWh
L354: =Translation!F408 -> Der Heizwert beträgt 11,1 kWh/m³ | AG354: =Translation!F401 -> Erdgas | AH354: 11,1 kWh/m³ | AI354: =IF(Berechnung!$B$131=Berechnung!$B$132,Einheiten!AK354,IF(Berechnung!$B$131=Berechnung!$B$133,Einheiten!AM354,IF(Berechnung!$B$131=Berechnung!$B$134,Einheiten!AO354,IF(Berechnung!$B$131=Berechnung!$B$135,Einheiten!AQ354,IF(Berechnung!$B$131=Berechnung!$B$136,Einheiten!AS354,IF(Berechnung!$B$131=Berechnung!$B$137,Einheiten!AU354,IF(Berechnung!$B$131=Berechnung!$B$138,Einheiten!AW354,IF(Berechnung!$B$131=Berechnung!$B$139,Einheiten!AY354,IF(Berechnung!$B$131=Berechnung!$B$140,Einheiten!BA354))))))))) -> 77,7 ct/m³ | AJ354: =IF(Berechnung!$B$131=Berechnung!$B$132,Einheiten!AL354,IF(Berechnung!$B$131=Berechnung!$B$133,Einheiten!AN354,IF(Berechnung!$B$131=Berechnung!$B$134,Einheiten!AP354,IF(Berechnung!$B$131=Berechnung!$B$135,Einheiten!AR354,IF(Berechnung!$B$131=Berechnung!$B$136,Einheiten!AT354,IF(Berechnung!$B$131=Berechnung!$B$137,Einheiten!AV354,IF(Berechnung!$B$131=Berechnung!$B$138,Einheiten!AX354,IF(Berechnung!$B$131=Berechnung!$B$139,Einheiten!AZ354,IF(Berechnung!$B$131=Berechnung!$B$140,Einheiten!BB354))))))))) -> 7,00 ct/kWh | AK354: 77,7 ct/m³ | AL354: 7,00 ct/kWh | AM354: 77,7 ct/m³ | AN354: 7,00 ct/kWh | AO354: 77,7 ct/m³ | AP354: 7,00 ct/kWh | AQ354: 77,7 ct/m³ | AR354: 7,00 ct/kWh | AS354: 20,79 Kč/m³ | AT354: 1,89 Kč/kWh | AU354: 5,79 DKK/m³ | AV354: 0,52 DKK/kWh | AW354: 85 ct/m³ | AX354: 7,7 ct/kWh | AY354: 230 gr/m³ | AZ354: 23 gr/kWh | BA354: 77,7 ct/m³ | BB354: 7,00 ct/kWh
AG355: =Translation!F402 -> Heizöl EL | AH355: ="10,6 kWh/"&Translation!F358 -> 10,6 kWh/Liter | AI355: =IF(Berechnung!$B$131=Berechnung!$B$132,Einheiten!AK355,IF(Berechnung!$B$131=Berechnung!$B$133,Einheiten!AM355,IF(Berechnung!$B$131=Berechnung!$B$134,Einheiten!AO355,IF(Berechnung!$B$131=Berechnung!$B$135,Einheiten!AQ355,IF(Berechnung!$B$131=Berechnung!$B$136,Einheiten!AS355,IF(Berechnung!$B$131=Berechnung!$B$137,Einheiten!AU355,IF(Berechnung!$B$131=Berechnung!$B$138,Einheiten!AW355,IF(Berechnung!$B$131=Berechnung!$B$139,Einheiten!AY355,IF(Berechnung!$B$131=Berechnung!$B$140,Einheiten!BA355))))))))) -> 90,7 ct/Liter | AJ355: =IF(Berechnung!$B$131=Berechnung!$B$132,Einheiten!AL355,IF(Berechnung!$B$131=Berechnung!$B$133,Einheiten!AN355,IF(Berechnung!$B$131=Berechnung!$B$134,Einheiten!AP355,IF(Berechnung!$B$131=Berechnung!$B$135,Einheiten!AR355,IF(Berechnung!$B$131=Berechnung!$B$136,Einheiten!AT355,IF(Berechnung!$B$131=Berechnung!$B$137,Einheiten!AV355,IF(Berechnung!$B$131=Berechnung!$B$138,Einheiten!AX355,IF(Berechnung!$B$131=Berechnung!$B$139,Einheiten!AZ355,IF(Berechnung!$B$131=Berechnung!$B$140,Einheiten!BB355))))))))) -> 8,5 ct/kWh | AK355: ="90,7 ct/"&Translation!F358 -> 90,7 ct/Liter | AL355: 8,5 ct/kWh | AM355: ="90,7 ct/"&Translation!H358 -> 90,7 ct/Liter | AN355: 8,5 ct/kWh | AO355: ="90,7 ct/"&Translation!F358 -> 90,7 ct/Liter | AP355: 8,5 ct/kWh | AQ355: ="90,7 ct/"&Translation!F358 -> 90,7 ct/Liter | AR355: 8,5 ct/kWh | AS355: ="24,48 Kč/"&Translation!F358 -> 24,48 Kč/Liter | AT355: 2,29 Kč/kWh | AU355: ="6,76 DKK/"&Translation!F358 -> 6,76 DKK/Liter | AV355: 0,63 DKK/kWh | AW355: ="110 ct/"&Translation!F358 -> 110 ct/Liter | AX355: 10,3 ct/kWh | AY355: 350 gr/Litr | AZ355: 33 gr/kWh | BA355: ="90,7 ct/"&Translation!V358 -> 90,7 ct/ | BB355: 8,5 ct/kWh
AG356: =Translation!F403 -> Pellets | AH356: 5,1 kWh/kg | AI356: =IF(Berechnung!$B$131=Berechnung!$B$132,Einheiten!AK356,IF(Berechnung!$B$131=Berechnung!$B$133,Einheiten!AM356,IF(Berechnung!$B$131=Berechnung!$B$134,Einheiten!AO356,IF(Berechnung!$B$131=Berechnung!$B$135,Einheiten!AQ356,IF(Berechnung!$B$131=Berechnung!$B$136,Einheiten!AS356,IF(Berechnung!$B$131=Berechnung!$B$137,Einheiten!AU356,IF(Berechnung!$B$131=Berechnung!$B$138,Einheiten!AW356,IF(Berechnung!$B$131=Berechnung!$B$139,Einheiten!AY356,IF(Berechnung!$B$131=Berechnung!$B$140,Einheiten!BA356))))))))) -> 17,85 ct/kg | AJ356: =IF(Berechnung!$B$131=Berechnung!$B$132,Einheiten!AL356,IF(Berechnung!$B$131=Berechnung!$B$133,Einheiten!AN356,IF(Berechnung!$B$131=Berechnung!$B$134,Einheiten!AP356,IF(Berechnung!$B$131=Berechnung!$B$135,Einheiten!AR356,IF(Berechnung!$B$131=Berechnung!$B$136,Einheiten!AT356,IF(Berechnung!$B$131=Berechnung!$B$137,Einheiten!AV356,IF(Berechnung!$B$131=Berechnung!$B$138,Einheiten!AX356,IF(Berechnung!$B$131=Berechnung!$B$139,Einheiten!AZ356,IF(Berechnung!$B$131=Berechnung!$B$140,Einheiten!BB356))))))))) -> 3,5 ct/kWh | AK356: 17,85 ct/kg | AL356: 3,5 ct/kWh | AM356: 17,85 ct/kg | AN356: 3,5 ct/kWh | AO356: 17,85 ct/kg | AP356: 3,5 ct/kWh | AQ356: 17,85 ct/kg | AR356: 3,5 ct/kWh | AS356: 4,81 Kčkg | AT356: 0,94 Kč/kWh | AU356: 1,33 DKK/kg | AV356: 0,26 DKK/kWh | AW356: 25 ct/kg | AX356: 4,9 ct/kWh | AY356: 90 gr/kg | AZ356: 18 gr/kWh | BA356: 17,85 ct/kg | BB356: 3,5 ct/kWh
L357: =Translation!F409 -> Der Preis beträgt ca. 77,7 ct/m³ | AG357: =Translation!F404 -> Hackschnitzel | AH357: 5,5 kWh/kg | AI357: =IF(Berechnung!$B$131=Berechnung!$B$132,Einheiten!AK357,IF(Berechnung!$B$131=Berechnung!$B$133,Einheiten!AM357,IF(Berechnung!$B$131=Berechnung!$B$134,Einheiten!AO357,IF(Berechnung!$B$131=Berechnung!$B$135,Einheiten!AQ357,IF(Berechnung!$B$131=Berechnung!$B$136,Einheiten!AS357,IF(Berechnung!$B$131=Berechnung!$B$137,Einheiten!AU357,IF(Berechnung!$B$131=Berechnung!$B$138,Einheiten!AW357,IF(Berechnung!$B$131=Berechnung!$B$139,Einheiten!AY357,IF(Berechnung!$B$131=Berechnung!$B$140,Einheiten!BA357))))))))) -> 27,5 ct/kg | AJ357: =IF(Berechnung!$B$131=Berechnung!$B$132,Einheiten!AL357,IF(Berechnung!$B$131=Berechnung!$B$133,Einheiten!AN357,IF(Berechnung!$B$131=Berechnung!$B$134,Einheiten!AP357,IF(Berechnung!$B$131=Berechnung!$B$135,Einheiten!AR357,IF(Berechnung!$B$131=Berechnung!$B$136,Einheiten!AT357,IF(Berechnung!$B$131=Berechnung!$B$137,Einheiten!AV357,IF(Berechnung!$B$131=Berechnung!$B$138,Einheiten!AX357,IF(Berechnung!$B$131=Berechnung!$B$139,Einheiten!AZ357,IF(Berechnung!$B$131=Berechnung!$B$140,Einheiten!BB357))))))))) -> 5,0 ct/kWh | AK357: 27,5 ct/kg | AL357: 5,0 ct/kWh | AM357: 27,5 ct/kg | AN357: 5,0 ct/kWh | AO357: 27,5 ct/kg | AP357: 5,0 ct/kWh | AQ357: 27,5 ct/kg | AR357: 5,0 ct/kWh | AS357: 7,42 Kč/kg | AT357: 1,35 Kč/kWh | AU357: 2,05 DKK/kg | AV357: 0,37 DKK/kWh | AW357: 30 ct/kg | AX357: 5,5 ct/kWh | AY357: 85 gr/kg | AZ357: 12 gr/kWh | BA357: 27,5 ct/kg | BB357: 5,0 ct/kWh
L358: =Translation!F412 -> Dies entspricht ca. 7,00 ct/kWh | AG358: =Translation!F405 -> Flüssiggas | AH358: ="6,6 kWh/"&Translation!F358 -> 6,6 kWh/Liter | AI358: =IF(Berechnung!$B$131=Berechnung!$B$132,Einheiten!AK358,IF(Berechnung!$B$131=Berechnung!$B$133,Einheiten!AM358,IF(Berechnung!$B$131=Berechnung!$B$134,Einheiten!AO358,IF(Berechnung!$B$131=Berechnung!$B$135,Einheiten!AQ358,IF(Berechnung!$B$131=Berechnung!$B$136,Einheiten!AS358,IF(Berechnung!$B$131=Berechnung!$B$137,Einheiten!AU358,IF(Berechnung!$B$131=Berechnung!$B$138,Einheiten!AW358,IF(Berechnung!$B$131=Berechnung!$B$139,Einheiten!AY358,IF(Berechnung!$B$131=Berechnung!$B$140,Einheiten!BA358))))))))) -> 65 ct/Liter | AJ358: =IF(Berechnung!$B$131=Berechnung!$B$132,Einheiten!AL358,IF(Berechnung!$B$131=Berechnung!$B$133,Einheiten!AN358,IF(Berechnung!$B$131=Berechnung!$B$134,Einheiten!AP358,IF(Berechnung!$B$131=Berechnung!$B$135,Einheiten!AR358,IF(Berechnung!$B$131=Berechnung!$B$136,Einheiten!AT358,IF(Berechnung!$B$131=Berechnung!$B$137,Einheiten!AV358,IF(Berechnung!$B$131=Berechnung!$B$138,Einheiten!AX358,IF(Berechnung!$B$131=Berechnung!$B$139,Einheiten!AZ358,IF(Berechnung!$B$131=Berechnung!$B$140,Einheiten!BB358))))))))) -> 9,7 ct/kWh | AK358: ="65 ct/"&Translation!F358 -> 65 ct/Liter | AL358: 9,7 ct/kWh | AM358: ="65 ct/"&Translation!H358 -> 65 ct/Liter | AN358: 9,7 ct/kWh | AO358: ="65 ct/"&Translation!F358 -> 65 ct/Liter | AP358: 9,7 ct/kWh | AQ358: ="65 ct/"&Translation!F358 -> 65 ct/Liter | AR358: 9,7 ct/kWh | AS358: ="17,55 Kč/"&Translation!F358 -> 17,55 Kč/Liter | AT358: 2,61 Kč/kWh | AU358: ="4,84 DKK/"&Translation!F358 -> 4,84 DKK/Liter | AV358: 0,72 DKK/kWh | AW358: ="130 ct/"&Translation!F358 -> 130 ct/Liter | AX358: 19 ct/kWh | AY358: 324 gr/Litr | AZ358: 49 gr/kWh | BA358: ="65 ct/"&Translation!V358 -> 65 ct/ | BB358: 9,7 ct/kWh
AG359: =Translation!F406 -> Braunkohle | AH359: 5,6 kWh/kg | AI359: =IF(Berechnung!$B$131=Berechnung!$B$132,Einheiten!AK359,IF(Berechnung!$B$131=Berechnung!$B$133,Einheiten!AM359,IF(Berechnung!$B$131=Berechnung!$B$134,Einheiten!AO359,IF(Berechnung!$B$131=Berechnung!$B$135,Einheiten!AQ359,IF(Berechnung!$B$131=Berechnung!$B$136,Einheiten!AS359,IF(Berechnung!$B$131=Berechnung!$B$137,Einheiten!AU359,IF(Berechnung!$B$131=Berechnung!$B$138,Einheiten!AW359,IF(Berechnung!$B$131=Berechnung!$B$139,Einheiten!AY359,IF(Berechnung!$B$131=Berechnung!$B$140,Einheiten!BA359))))))))) -> 36 ct/kg | AJ359: =IF(Berechnung!$B$131=Berechnung!$B$132,Einheiten!AL359,IF(Berechnung!$B$131=Berechnung!$B$133,Einheiten!AN359,IF(Berechnung!$B$131=Berechnung!$B$134,Einheiten!AP359,IF(Berechnung!$B$131=Berechnung!$B$135,Einheiten!AR359,IF(Berechnung!$B$131=Berechnung!$B$136,Einheiten!AT359,IF(Berechnung!$B$131=Berechnung!$B$137,Einheiten!AV359,IF(Berechnung!$B$131=Berechnung!$B$138,Einheiten!AX359,IF(Berechnung!$B$131=Berechnung!$B$139,Einheiten!AZ359,IF(Berechnung!$B$131=Berechnung!$B$140,Einheiten!BB359))))))))) -> 6,42 ct/kWh | AK359: 36 ct/kg | AL359: 6,42 ct/kWh | AM359: 36 ct/kg | AN359: 6,42 ct/kWh | AO359: 36 ct/kg | AP359: 6,42 ct/kWh | AQ359: 36 ct/kg | AR359: 6,42 ct/kWh | AS359: 9,72 Kč/kg | AT359: 1,73 Kč/kWh | AU359: 2,68 DKK/kg | AV359: 0,47 DKK/kWh | AW359: 40 ct/kg | AX359: 7,1 ct/kWh | AY359: 43 gr/kg | AZ359: 14 gr/kWh | BA359: 36 ct/kg | BB359: 6,42 ct/kWh
AG360: =Translation!F407 -> Holz Festmeter | AH360: ="1800 "&Translation!F411 -> 1800 kWh/rm | AI360: =IF(Berechnung!$B$131=Berechnung!$B$132,Einheiten!AK360,IF(Berechnung!$B$131=Berechnung!$B$133,Einheiten!AM360,IF(Berechnung!$B$131=Berechnung!$B$134,Einheiten!AO360,IF(Berechnung!$B$131=Berechnung!$B$135,Einheiten!AQ360,IF(Berechnung!$B$131=Berechnung!$B$136,Einheiten!AS360,IF(Berechnung!$B$131=Berechnung!$B$137,Einheiten!AU360,IF(Berechnung!$B$131=Berechnung!$B$138,Einheiten!AW360,IF(Berechnung!$B$131=Berechnung!$B$139,Einheiten!AY360,IF(Berechnung!$B$131=Berechnung!$B$140,Einheiten!BA360))))))))) -> 67 €/rm | AJ360: =IF(Berechnung!$B$131=Berechnung!$B$132,Einheiten!AL360,IF(Berechnung!$B$131=Berechnung!$B$133,Einheiten!AN360,IF(Berechnung!$B$131=Berechnung!$B$134,Einheiten!AP360,IF(Berechnung!$B$131=Berechnung!$B$135,Einheiten!AR360,IF(Berechnung!$B$131=Berechnung!$B$136,Einheiten!AT360,IF(Berechnung!$B$131=Berechnung!$B$137,Einheiten!AV360,IF(Berechnung!$B$131=Berechnung!$B$138,Einheiten!AX360,IF(Berechnung!$B$131=Berechnung!$B$139,Einheiten!AZ360,IF(Berechnung!$B$131=Berechnung!$B$140,Einheiten!BB360))))))))) -> 3,72 ct/kWh | AK360: ="67 "&Translation!F410 -> 67 €/rm | AL360: 3,72 ct/kWh | AM360: ="67 "&Translation!H410 -> 67 €/rm | AN360: 3,72 ct/kWh | AO360: ="67 "&Translation!F410 -> 67 €/rm | AP360: 3,72 ct/kWh | AQ360: ="67 "&Translation!F410 -> 67 €/rm | AR360: 3,72 ct/kWh | AS360: ="1838,48 "&Translation!F410 -> 1838,48 €/rm | AT360: 1,00 Kč/kWh | AU360: ="499,8 "&Translation!F410 -> 499,8 €/rm | AV360: 0,27 DKK/kWh | AW360: ="80 "&Translation!F410 -> 80 €/rm | AX360: 4,4 ct/kWh | AY360: 220 zł/mp | AZ360: 12 gr/kWh | BA360: ="67 "&Translation!V410 -> 67 | BB360: 3,72 ct/kWh
K362: =Translation!F199 -> Alle Preisangaben sind Richtwerte und unterliegen regionalen und saisonalen Schwankungen. Der Brennwert von Holz ist abhängig von der gewählten Sorte.
AG363: Erdgas | AH363: =VLOOKUP($AG$363,$AG$354:$AJ$360,2,FALSE) -> 11,1 kWh/m³ | AI363: =VLOOKUP($AG$363,$AG$354:$AJ$360,3,FALSE) -> 77,7 ct/m³ | AJ363: =VLOOKUP($AG$363,$AG$354:$AJ$360,4,FALSE) -> 7,00 ct/kWh
L401: =Translation!F200 -> Benötigte Energiemenge Warmwasser | T401: =Translation!F413 -> 1,8 kWh je Person und Tag
L403: =Translation!F201 -> Warmwasserbedarf | T403: =Translation!F414 -> 40 Liter je Person und Tag
L405: =Translation!F202 -> Heizlast für Neubauten nach EnEV | T405: =Translation!F415 -> 45 W je m² Wohnfläche
L407: =Translation!F203 -> Durchschnittliche Kosten Erdsondenbohrung | T407: =Translation!F416 -> 900 € je kW Heizlast
L409: =Translation!F204 -> Übertragbare Leistung Luftheizung | T409: =Translation!F417 -> 10 W je m³/h Zuluft
L411: =Translation!F205 -> Druckverlust bei doppeltem Volumenstrom | T411: =Translation!F418 -> 4facher Druckverlust
L413: =Translation!F206 -> Strömungsgeschwindigkeit in Lüftungsanlagen | T413: =Translation!F419 -> 3 m/s Verteilung | 5 m/s Sammelleitung
L415: =Translation!F207 -> Strömungsgeschwindigkeit in Wärmepumpenanlagen | T415: =Translation!F420 -> 1 m/s Pufferspeicher | 1 m/s Wärmequelle
L417: =Translation!F208 -> Druckverlust durch Einzelwiderstände | T417: =Translation!F421 -> 30 % vom Druckverlust des Rohres

Sheet Berechnung (hidden)
AX1: http://content.wavin.com/WAXDE.NSF/pages/THK1DE/$FILE/THB_Installation0614.pdf
A2: 1 | B2: Kupferrohr | F2: PE-Rohr | J2: Gewinderohr (M) | N2: Wickelfalzrohr | R2: Rohrart | S2: Rohreinbauten | U2: Temperatur | W2: Flachkanal LFK | AA2: Pluggit-System | AE2: Flexibles Rohr LVS | AI2: Rechteckkanal | AR2: Flexibler Kanal LVE | AV2: Rohrart | AW2: Mehrschichtverbundrohr Wavin K1 | AY2: Version
B3: Nennweite | C3: d-innen | D3: Querschnitt | E3: Rauhigkeit | F3: Nennweite | G3: d-innen | H3: Querschnitt | I3: Rauhigkeit | J3: Nennweite | K3: d-innen | L3: Querschnitt | M3: Rauhigkeit | N3: Nennweite | O3: d-innen | P3: Querschnitt | Q3: Rauhigkeit | W3: Nennweite | X3: Fläche | Y3: dHydr | Z3: Rauhigkeit | AA3: Nennweite | AB3: Fläche | AC3: dHydr | AD3: Rauhigkeit | AE3: Nennweite | AF3: d-innen | AG3: Querschnitt | AH3: Rauhigkeit | AI3: Breite | AJ3: Höhe | AK3: Fläche | AL3: dHydr | AM3: Rauhigkeit | AR3: Nennweite | AS3: Fläche | AT3: dHydr | AU3: Rauhigkeit | AW3: Nennweite | AX3: d-innen
A4: Tabelle5.Strömungsgeschwindigkiet | B4: Cu 12 x 1,0 | C4: =VLOOKUP(B4,$B$8:$D$22,2,FALSE) -> 0.01 | D4: =VLOOKUP(B4,$B$8:$D$22,3,FALSE) -> 7.853981634e-05 | E4: =VLOOKUP(B4,$B$8:$E$22,4,FALSE) -> 0.0015 | F4: DN 20 (25 x 2,3) | G4: =VLOOKUP(F4,$F$8:$H$22,2,FALSE) -> 0.0204 | H4: =VLOOKUP(F4,$F$8:$H$22,3,FALSE) -> 0.0003268512997 | I4: =VLOOKUP(F4,$F$8:$I$22,4,FALSE) -> 0.007 | J4: DN 10 (17 x 2,3) | K4: =VLOOKUP(J4,$J$8:$L$22,2,FALSE) -> 0.0126 | L4: =VLOOKUP(J4,$J$8:$L$22,3,FALSE) -> 0.0001246898124 | M4: =VLOOKUP(J4,$J$8:$M$22,4,FALSE) -> 0.02 | N4: DN 160 | O4: =VLOOKUP(N4,$N$8:$P$22,2,FALSE) -> 0.16 | P4: =VLOOKUP(N4,$N$8:$P$22,3,FALSE) -> 0.02010619298 | Q4: =VLOOKUP(N4,$N$8:$Q$22,4,FALSE) -> 0.1 | R4: Kupferrohr | W4: DN 80
A5: Tabelle5.Wasserinhalt | B5: Cu 12 x 1,0 | C5: =VLOOKUP(B5,$B$8:$D$22,2,FALSE) -> 0.01 | D5: =VLOOKUP(B5,$B$8:$D$22,3,FALSE) -> 7.853981634e-05 | E5: =VLOOKUP(B5,$B$8:$E$22,4,FALSE) -> 0.0015 | F5: DN 20 (25 x 2,3) | G5: =VLOOKUP(F5,$F$8:$H$22,2,FALSE) -> 0.0204 | H5: =VLOOKUP(F5,$F$8:$H$22,3,FALSE) -> 0.0003268512997 | I5: =VLOOKUP(F5,$F$8:$I$22,4,FALSE) -> 0.007 | J5: DN 10 (17 x 2,3) | K5: =VLOOKUP(J5,$J$8:$L$22,2,FALSE) -> 0.0126 | L5: =VLOOKUP(J5,$J$8:$L$22,3,FALSE) -> 0.0001246898124 | M5: =VLOOKUP(J5,$J$8:$M$22,4,FALSE) -> 0.02 | N5: DN 80 | O5: =VLOOKUP(N5,$N$8:$P$22,2,FALSE) -> 0.08 | P5: =VLOOKUP(N5,$N$8:$P$22,3,FALSE) -> 0.005026548246 | Q5: =VLOOKUP(N5,$N$8:$Q$22,4,FALSE) -> 0.1 | R5: Kupferrohr | S5: 30 % (Empfehlung) | T5: =VLOOKUP(S5,S7:T14,2,FALSE) -> 0.3 | AW5: DN 12 (16 x 2,0) | AX5: =VLOOKUP(AW5,AW8:AX24,2,FALSE) -> 0.012 | AY5: UMT v1.29
A6: Tabelle5.Druckverlust | B6: Cu 12 x 1,0 | C6: =VLOOKUP(B6,$B$8:$D$22,2,FALSE) -> 0.01 | D6: =VLOOKUP(B6,$B$8:$D$22,3,FALSE) -> 7.853981634e-05 | E6: =VLOOKUP(B6,$B$8:$E$22,4,FALSE) -> 0.0015 | F6: DN 20 (25 x 2,3) | G6: =VLOOKUP(F6,$F$8:$H$22,2,FALSE) -> 0.0204 | H6: =VLOOKUP(F6,$F$8:$H$22,3,FALSE) -> 0.0003268512997 | I6: =VLOOKUP(F6,$F$8:$I$22,4,FALSE) -> 0.007 | J6: DN 10 (17 x 2,3) | K6: =VLOOKUP(J6,$J$8:$L$22,2,FALSE) -> 0.0126 | L6: =VLOOKUP(J6,$J$8:$L$22,3,FALSE) -> 0.0001246898124 | M6: =VLOOKUP(J6,$J$8:$M$22,4,FALSE) -> 0.02 | N6: DN 80 | O6: =VLOOKUP(N6,$N$8:$P$22,2,FALSE) -> 0.08 | P6: =VLOOKUP(N6,$N$8:$P$22,3,FALSE) -> 0.005026548246 | Q6: =VLOOKUP(N6,$N$8:$Q$22,4,FALSE) -> 0.1 | R6: Kupferrohr | S6: 30 % (Empfehlung) | T6: =VLOOKUP(S6,S7:T14,2,FALSE) -> 0.3 | U6: 0°C | V6: =VLOOKUP(U6,U7:V22,2,FALSE) -> 0 | W6: =VLOOKUP($W$4,W8:Y23,1,FALSE) ->  | X6: =VLOOKUP(W4,W8:Y23,2,FALSE) ->  | Y6: =VLOOKUP(W4,W8:Y23,3,FALSE) ->  | Z6: 0.15 | AA6: =VLOOKUP($W$4,AA8:AD24,1,FALSE) ->  | AB6: =VLOOKUP($W$4,AA8:AD24,2,FALSE) ->  | AC6: =VLOOKUP($W$4,AA8:AD24,3,FALSE) ->  | AD6: =VLOOKUP($W$4,AA8:AD24,4,FALSE) ->  | AE6: =VLOOKUP($W$4,AE8:AH24,1,FALSE) ->  | AF6: =VLOOKUP($W$4,AE8:AH24,2,FALSE) ->  | AG6: =VLOOKUP($W$4,AE8:AH24,3,FALSE) ->  | AH6: =VLOOKUP($W$4,AE8:AH24,4,FALSE) ->  | AI6: =AI8/1000 -> 0.1 | AJ6: =AJ8/1000 -> 0.032 | AK6: =AI6*AJ6 -> 0.0032 | AL6: =2*AK6/(AI6+AJ6) -> 0.04848484848 | AM6: 0.15 | AR6: =VLOOKUP($W$4,AR8:AU24,1,FALSE) ->  | AS6: =VLOOKUP($W$4,AR8:AU24,2,FALSE) ->  | AT6: =VLOOKUP($W$4,AR8:AU24,3,FALSE) ->  | AU6: =VLOOKUP($W$4,AR8:AU24,4,FALSE) ->  | AV6: Wickelfalzrohr
R7: =Translation!F163 -> Kupferrohr | S7: =Translation!F161 -> 30 % (Empfehlung) | T7: 0.3 | U7: 0°C | V7: 0
B8: Cu 12 x 1,0 | C8: 0.01 | D8: =PI()/4*C8^2 -> 7.853981634e-05 | E8: 0.0015 | F8: DN 20 (25 x 2,3) | G8: 0.0204 | H8: 0.0003268512997 | I8: 0.007 | J8: DN 10 (17 x 2,3) | K8: 0.0126 | L8: =PI()/4*K8^2 -> 0.0001246898124 | M8: 0.02 | N8: DN 80 | O8: 0.08 | P8: 0.005026548246 | Q8: 0.1 | R8: =Translation!F164 -> PE-Rohr | S8: =Translation!F162 -> ohne Einbauten | T8: 0 | U8: 20°C | V8: 20 | W8: =Translation!F453&" 50 x 100" -> Kanal 50 x 100 | X8: 0.00504509 | Y8: 0.0669998672 | AA8: PK 100 (92 x 50) | AB8: 0.003825557368 | AC8: 0.08907186212 | AD8: 11 | AE8: LVS 75 mm | AF8: 0.064 | AG8: 0.003216990877 | AH8: 0.41 | AI8: 100 | AJ8: 32 | AR8: 130 x 52 mm | AS8: 0.00415 | AT8: 0.06 | AU8: 0.07 | AV8: =Translation!F166 -> Wickelfalzrohr | AW8: DN 12 (16 x 2,0) | AX8: 0.012
B9: Cu 15 x 1,0 | C9: 0.013 | D9: =PI()/4*C9^2 -> 0.0001327322896 | E9: 0.0015 | F9: DN 25 (32 x 2,9) | G9: 0.0262 | H9: 0.0005391287153 | I9: 0.007 | J9: DN 15 (21 x 2,7) | K9: 0.0161 | L9: =PI()/4*K9^2 -> 0.0002035830579 | M9: 0.02 | N9: DN 100 | O9: 0.1 | P9: 0.007853981634 | Q9: 0.1 | R9: =Translation!F165 -> Gewinderohr | S9: 10% | T9: 0.1 | U9: 40°C | V9: 40 | W9: =Translation!F453&" 50 x 150" -> Kanal 50 x 150 | X9: 0.00756009 | Y9: 0.07537477567 | AA9: PK 150 (113 x 50) | AB9: 0.004833557368 | AC9: 0.1060592774 | AD9: 24 | AE9: LVS 90 mm | AF9: 0.0775 | AG9: 0.004717297719 | AH9: 0.58 | AV9: =Translation!F454 -> Flachkanal LFK | AW9: DN 15 (20 x 2,25) | AX9: 0.015
B10: Cu 18 x 1,0 | C10: 0.016 | D10: 0.0002010619298 | E10: 0.0015 | F10: DN 32 (40 x 3,7) | G10: 0.0326 | H10: 0.0008346897521 | I10: 0.007 | J10: DN 20 (27 x 2,7) | K10: 0.0216 | L10: 0.0003664353671 | M10: 0.02 | N10: DN 125 | O10: 0.125 | P10: 0.0122718463 | Q10: 0.1 | R10: =Translation!F166 -> Wickelfalzrohr | S10: 20% | T10: 0.2 | U10: 60°C | V10: 60 | W10: =Translation!F453&" 50 x 200" -> Kanal 50 x 200 | X10: 0.01007509 | Y10: 0.08040774142 | AA10: PK 200 (172 x 57) | AB10: 0.008700829444 | AC10: 0.1511297977 | AD10: 45 | AV10: =Translation!F455 -> Pluggit-System | AW10: DN 20 (25 x 2,5) | AX10: 0.02
B11: Cu 22 x 1,0 | C11: 0.02 | D11: 0.0003141592654 | E11: 0.0015 | F11: DN 40 (50 x 4,6) | G11: 0.0408 | H11: 0.001307405199 | I11: 0.007 | J11: DN 25 (34 x 3,3) | K11: 0.0272 | L11: 0.0005810689772 | M11: 0.02 | N11: DN 150 | O11: 0.15 | P11: 0.01767145868 | Q11: 0.1 | S11: 30% | T11: 0.3 | U11: 80°C | V11: 80 | W11: =Translation!F453&" 80 x 200" -> Kanal 80 x 200 | X11: 0.01608409 | Y11: 0.1146406985 | AV11: =Translation!F456 -> Flexibles Rohr LVS | AW11: DN 25 (32 x 3) | AX11: 0.026
B12: Cu 28 x 1,5 | C12: 0.025 | D12: 0.0004908738521 | E12: 0.0015 | F12: DN 50 (63 x 5,8) | G12: 0.0514 | H12: 0.002074990532 | I12: 0.007 | J12: DN 32 (42 x 3,3) | K12: 0.0359 | L12: 0.001012229007 | M12: 0.02 | N12: DN 160 | O12: 0.16 | P12: 0.02010619298 | Q12: 0.1 | S12: 40% | T12: 0.4 | AV12: =Translation!F457 -> Rechteckkanal | AW12: DN 32 (40 x 4,0) | AX12: 0.032
B13: Cu 35 x 1,5 | C13: 0.032 | D13: 0.0008042477193 | E13: 0.0015 | F13: DN 65 (75 x 6,8) | G13: 0.0614 | H13: 0.00296091966 | I13: 0.007 | J13: DN 40 (48 x 3,3) | K13: 0.0418 | L13: 0.001372279087 | M13: 0.02 | N13: DN 200 | O13: 0.2 | P13: 0.03141592654 | Q13: 0.1 | S13: 50% | T13: 0.5 | AV13: =Translation!F458 -> Flexibler Kanal LVE | AW13: DN 40 (50 x 4,5) | AX13: 0.041
B14: Cu 42 x 1,5 | C14: 0.039 | D14: 0.001194590607 | E14: 0.0015 | F14: DN 80 (90 x 8,2) | G14: 0.0736 | H14: 0.004254470435 | I14: 0.007 | J14: DN 50 (60 x 3,7) | K14: 0.053 | L14: 0.002206183441 | M14: 0.02 | N14: DN 250 | O14: 0.25 | P14: 0.04908738521 | Q14: 0.1 | R14: =Translation!F163 -> Kupferrohr | S14: 60% | T14: 0.6 | AW14: DN 50 (63 x 6,0) | AX14: 0.051
B15: Cu 54 x 2,0 | C15: 0.05 | D15: 0.001963495408 | E15: 0.0015 | F15: DN 100 (125 x 11,4) | G15: 0.1022 | H15: 0.008203358153 | I15: 0.007 | J15: DN 65 (76 x 3,7) | K15: 0.0688 | L15: 0.003717635083 | M15: 0.02 | N15: DN 315 | O15: 0.315 | P15: 0.07793113276 | Q15: 0.1 | R15: =Translation!F164 -> PE-Rohr
B16: Cu 76,1 x 2,0 | C16: 0.0721 | D16: 0.004082821667 | E16: 0.0015 | F16: DN 125 (160 x 14,6) | G16: 0.1308 | H16: 0.01343709443 | I16: 0.007 | J16: DN 80 (89 x 4,1) | K16: 0.0808 | L16: 0.005127581865 | M16: 0.02 | N16: DN 400 | O16: 0.4 | P16: 0.1256637061 | Q16: 0.1 | R16: =Translation!F165 -> Gewinderohr
B17: Cu 88,9 x 2,0 | C17: 0.0849 | D17: 0.005661157816 | E17: 0.0015 | F17: DN 150 (180 x 16,4) | G17: 0.1472 | H17: 0.01701788174 | I17: 0.007 | J17: DN 100 (114 x 4,5) | K17: 0.1053 | L17: 0.008708565522 | M17: 0.02 | N17: DN 500 | O17: 0.5 | P17: 0.1963495408 | Q17: 0.1 | R17: =Translation!F576 -> Mehrschichtverbundrohr Wavin K1
B18: Cu 108 x 2,5 | C18: 0.103 | D18: 0.008332289115 | E18: 0.0015 | F18: DN 160 (200 x 18,2) | G18: 0.1636 | H18: 0.02102115043 | I18: 0.007 | J18: DN 125 (140 x 4,9) | K18: 0.13 | L18: 0.01327322896 | M18: 0.02 | N18: DN 560 | O18: 0.56 | P18: 0.246300864 | Q18: 0.1
B19: Cu 133 x 3,0 | C19: 0.127 | D19: 0.01266768698 | E19: 0.0015 | F19: DN 180 (225 x 20,5) | G19: 0.184 | H19: 0.02659044022 | I19: 0.007 | J19: DN 150 (165 x 4,9) | K19: 0.1554 | L19: 0.01896670591 | M19: 0.02 | N19: DN 630 | O19: 0.63 | P19: 0.3117245311 | Q19: 0.1
B20: Cu 159 x 3,0 | C20: 0.153 | D20: 0.01838538561 | E20: 0.0015 | F20: DN 200 (250 x 22,7) | G20: 0.2046 | H20: 0.03287767818 | I20: 0.007 | N20: DN 800 | O20: 0.8 | P20: 0.5026548246 | Q20: 0.1 | R20: =Translation!F163 -> Kupferrohr
B21: Cu 219 x 3,0 | C21: 0.213 | D21: 0.03563272928 | E21: 0.0015 | F21: DN 225 (280 x 25,4) | G21: 0.2292 | H21: 0.04125903897 | I21: 0.007 | N21: DN 1000 | O21: 1 | P21: 0.7853981634 | Q21: 0.1 | R21: =Translation!F165 -> Gewinderohr
B22: Cu 267 x 3,0 | C22: 0.261 | D22: 0.05350210829 | E22: 0.0015 | F22: DN 250 (315 x 28,6) | G22: 0.2578 | H22: 0.05219822167 | I22: 0.007
N24: =VLOOKUP(W4,$N$8:$P$22,1,FALSE) -> DN 80 | O24: =VLOOKUP(W4,$N$8:$P$22,2,FALSE) -> 0.08 | P24: =VLOOKUP(W4,$N$8:$P$22,3,FALSE) -> 0.005026548246 | Q24: =VLOOKUP(W4,$N$8:$Q$22,4,FALSE) -> 0.1 | W24: =IF($AV$6=$AV$8,N24,IF($AV$6=$AV$9,W6,IF($AV$6=$AV$10,AA6,IF($AV$6=$AV$11,AE6,IF($AV$6=$AV$12,"RechteckKanal",IF($AV$6=$AV$13,AR6)))))) -> DN 80 | X24: =IF($AV$6=$AV$8,P24,IF($AV$6=$AV$9,X6,IF($AV$6=$AV$10,AB6,IF($AV$6=$AV$11,AG6,IF($AV$6=$AV$12,AK6,IF($AV$6=$AV$13,AS6)))))) -> 0.005026548246 | Y24: =IF($AV$6=$AV$8,O24,IF($AV$6=$AV$9,Y6,IF($AV$6=$AV$10,AC6,IF($AV$6=$AV$11,AF6,IF($AV$6=$AV$12,AL6,IF($AV$6=$AV$13,AT6)))))) -> 0.08 | Z24: =IF($AV$6=$AV$8,Q24,IF($AV$6=$AV$9,Z6,IF($AV$6=$AV$10,AD6,IF($AV$6=$AV$11,AH6,IF($AV$6=$AV$12,AM6,IF($AV$6=$AV$13,AU6)))))) -> 0.1
A25: Berechnungen | D25: Druckverlust
A26: Wert | B26: Einheit | C26: Rohrstrecke | D26: λ-Übergang (iterativ) Puffer | E26: Temperatur Heizung | F26: Wasser | H26: Luft
A27: Heizung 1 | Lüftung 2 | B27: 2 | D27: =(1/(-2*LOG10((2.51/(C36*SQRT(0.03)))+(C37/(3.71*C28)))))^2 -> 0.02334025065 | E27: =V6 -> 0 | F27: Dichte | G27: Viskosität *10^6
A28: dInnen | B28: m | C28: =IF(B27=1,IF(R6=R7,C6,IF(R6=R8,G6,IF(R6=R9,K6,"Fehler"))),Y24) -> 0.08 | D28: =(1/(-2*LOG10((2.51/($C36*SQRT(D27)))+($C37/(3.71*C28)))))^2 -> 0.02364115727 | E28: 0 | F28: 999.84 | G28: 1.79
A29: Querschnitt | B29: m² | C29: =IF(B27=1,IF(R6=R7,D6,IF(R6=R8,H6,IF(R6=R9,L6,"Fehler"))),X24) -> 0.005026548246 | D29: =(1/(-2*LOG10((2.51/(C36*SQRT(D28)))+(C37/(3.71*C28)))))^2 -> 0.02362508996 | E29: 20 | F29: 998.3 | G29: 1.01
A30: Länge | B30: m | C30: =IF(B27=1,Heizung!R20,Lueftung!AJ454) -> 200 | D30: =(1/(-2*LOG10((2.51/(C36*SQRT(D29)))+(C37/(3.71*C28)))))^2 -> 0.02362594075 | E30: 40 | F30: 992.3 | G30: 0.66
A31: Zeta-Wert | D31: =(1/(-2*LOG10((2.51/(C36*SQRT(D30)))+(C37/(3.71*C28)))))^2 -> 0.02362589567 | E31: 60 | F31: 983.2 | G31: 0.48
A32: Volumenstrom | B32: m³/s | C32: =IF(B27=1,Heizung!R18/3600,Lueftung!AP454) -> 0.06944444444 | D32: =(1/(-2*LOG10((2.51/(C36*SQRT(D31)))+(C37/(3.71*C28)))))^2 -> 0.02362589806 | E32: 80 | F32: 971.6 | G32: 0.37 | H32: Annahme 20 °C
A33: Fließgeschwindigkeit | B33: m/s | C33: =C32/C29 -> 13.81553325 | D33: =(1/(-2*LOG10((2.51/(C36*SQRT(D32)))+(C37/(3.71*C28)))))^2 -> 0.02362589794 | E33: Dichte Gewählt | F33: =VLOOKUP(E27,E28:G32,2,FALSE) -> 999.84 | H33: 1.2 | I33: Dichte Luft
A34: Dichte | B34: kg/m³ | C34: =IF(B27=1,F33,H33) -> 1.2 | D34: =(1/(-2*LOG10((2.51/(C36*SQRT(D33)))+(C37/(3.71*C28)))))^2 -> 0.02362589794 | E34: Viskosität Gewählt | F34: =VLOOKUP(E27,E28:G32,3,FALSE) -> 1.79 | H34: 15 | I34: Viskosität Luft
A35: Viskosität | B35: m²/s | C35: =IF(B27=1,F34/10^6,H34/10^6) -> 1.5e-05 | D35: =(1/(-2*LOG10((2.51/(C36*SQRT(D34)))+(C37/(3.71*C28)))))^2 -> 0.02362589794
A36: Reynolds | B36: - | C36: =(C33*C28)/C35 -> 73682.84402 | D36: =(1/(-2*LOG10((2.51/(C36*SQRT(D35)))+(C37/(3.71*C28)))))^2 -> 0.02362589794
A37: Rauhigkeit | B37: m | C37: =IF(B27=1,IF(R6=R7,E6,IF(R6=R8,I6,IF(R6=R9,M6,Q6)))/1000,Z24/1000) -> 0.0001 | D37: =(1/(-2*LOG10((2.51/(C36*SQRT(D36)))+(C37/(3.71*C28)))))^2 -> 0.02362589794
A38: Term 1 (Grenze glatt) | B38: - | C38: =(C28/C37)*LOG10(0.1*C28/C37) -> 1522.47199 | D38: =(1/(-2*LOG10((2.51/(C36*SQRT(D37)))+(C37/(3.71*C28)))))^2 -> 0.02362589794
A39: Term 2 (Grenze rauh) | B39: - | C39: =400*(C28/C37)*LOG10(3.715*C28/C37) -> 1111375.618 | D39: =(1/(-2*LOG10((2.51/(C36*SQRT(D38)))+(C37/(3.71*C28)))))^2 -> 0.02362589794
A40: Laminar? | B40: - | C40: =IF(C36<2320,TRUE,FALSE) -> FALSE | D40: =(1/(-2*LOG10((2.51/(C36*SQRT(D39)))+(C37/(3.71*C28)))))^2 -> 0.02362589794
A41: Hydr. glatt ? | B41: - | C41: =IF(AND(C36>=2320,C36<C38),TRUE,FALSE) -> FALSE | D41: =(1/(-2*LOG10((2.51/(C36*SQRT(D40)))+(C37/(3.71*C28)))))^2 -> 0.02362589794
A42: Übergang ? | B42: - | C42: =IF(AND(C36>C38,C36<C39),TRUE,FALSE) -> TRUE | D42: =(1/(-2*LOG10((2.51/(C36*SQRT(D41)))+(C37/(3.71*C28)))))^2 -> 0.02362589794
A43: Hydr. rauh ? | B43: - | C43: =IF(C36>C39,TRUE,FALSE) -> FALSE | D43: =(1/(-2*LOG10((2.51/(C36*SQRT(D42)))+(C37/(3.71*C28)))))^2 -> 0.02362589794
A44: Lamba laminar (I) | B44: - | C44: =64/C36 -> 0.0008685875369 | D44: =(1/(-2*LOG10((2.51/(C36*SQRT(D43)))+(C37/(3.71*C28)))))^2 -> 0.02362589794
A45: Lambda hydr. Glatt (II) | B45: - | C45: =0.309/((LOG10(C36/7))^2) -> 0.01909925373 | D45: =(1/(-2*LOG10((2.51/(C36*SQRT(D44)))+(C37/(3.71*C28)))))^2 -> 0.02362589794
A46: Lamba Übergang (III) | B46: - | C46: =D56 -> 0.02362589794 | D46: =(1/(-2*LOG10((2.51/(C36*SQRT(D45)))+(C37/(3.71*C28)))))^2 -> 0.02362589794
A47: Lamba hydr. rauh (IV) | B47: - | C47: =0.25/(LOG10(3.715*C28/C37))^2 -> 0.02072613087 | D47: =(1/(-2*LOG10((2.51/(C36*SQRT(D46)))+(C37/(3.71*C28)))))^2 -> 0.02362589794
A48: Lambda gewählt | B48: - | C48: =IF(ISERROR(IF(C40=TRUE,C44,IF(C41=TRUE,C45,IF(C42=TRUE,C46,IF(C43=TRUE,C47)))))=TRUE,0,IF(C40=TRUE,C44,IF(C41=TRUE,C45,IF(C42=TRUE,C46,IF(C43=TRUE,C47))))) -> 0.02362589794 | D48: =(1/(-2*LOG10((2.51/(C36*SQRT(D47)))+(C37/(3.71*C28)))))^2 -> 0.02362589794
D49: =(1/(-2*LOG10((2.51/(C36*SQRT(D48)))+(C37/(3.71*C28)))))^2 -> 0.02362589794
D50: =(1/(-2*LOG10((2.51/(C36*SQRT(D49)))+(C37/(3.71*C28)))))^2 -> 0.02362589794
A51: Druckverlust Rohr | B51: mbar | C51: =IF(ISERROR(((C48*C30/C28)*(C34/2)*C33^2)*0.01)=TRUE,0,((C48*C30/C28)*(C34/2)*C33^2)*0.01) -> 67.64175822 | D51: =(1/(-2*LOG10((2.51/(C36*SQRT(D50)))+(C37/(3.71*C28)))))^2 -> 0.02362589794
A52: Druckverlust % | B52: mbar | C52: =IF(B27=1,C51*T6,C51*T5) -> 20.29252747 | D52: =(1/(-2*LOG10((2.51/(C36*SQRT(D51)))+(C37/(3.71*C28)))))^2 -> 0.02362589794
D53: =(1/(-2*LOG10((2.51/(C36*SQRT(D52)))+(C37/(3.71*C28)))))^2 -> 0.02362589794
D54: =(1/(-2*LOG10((2.51/(C36*SQRT(D53)))+(C37/(3.71*C28)))))^2 -> 0.02362589794
D55: =(1/(-2*LOG10((2.51/(C36*SQRT(D54)))+(C37/(3.71*C28)))))^2 -> 0.02362589794
A56: Summe | C56: =SUM(C51:C52) -> 87.93428569 | D56: =(1/(-2*LOG10((2.51/(C36*SQRT(D55)))+(C37/(3.71*C28)))))^2 -> 0.02362589794
A57: Ausgabe | C57: =FIXED(C56,1)&" mbar" -> 87,9 mbar
A100: Druckverlust Rohreinbauten
A101: (Rubrik Heizung)
A102: Angabe gewählt? (1=KVs-Wert | 2=Zeta-Wert)
A103: 2
A130: Sprache | B130: Übersetzungsspalte | D130: Blatt Durchlauferhitzer | G130: DE | H130: TEC | I130: England € | J130: Finnland € | K130: Tschechien Krone | L130: Dänemark DKK | M130: Italien € | N130: Polen zł | O130: Niederländisch €
A131: =Translation!G2 -> Deutsch STE | B131: 8 | D131: Kosten | F131: Index | G131: =B132 -> 8 | H131: =B133 -> 9 | I131: =B134 -> 10 | J131: =B135 -> 11 | K131: =B136 -> 12 | L131: =B137 -> 13 | M131: =B138 -> 14 | N131: =B139 -> 15 | O131: 16
A132: Deutsch STE | B132: 8 | D132: Kaltwasser | E132: °C | F132: =HLOOKUP(B131,G131:O134,2,FALSE) -> 10 | G132: 10 | H132: 10 | I132: 10 | J132: 10 | K132: 10 | L132: 10 | M132: 10 | N132: 10 | O132: 10
A133: Deutsch TEC | B133: 9 | D133: Frisch/Abwasser | E133: €/m³ | F133: =HLOOKUP(B131,G131:O134,3,FALSE) -> 5.63 | G133: 5.63 | H133: 5.63 | I133: 4.27 | J133: 5 | K133: 98.12 | L133: 65.88 | M133: 1.81 | N133: 8,5 | O133: 5.63
A134: Englisch | B134: 10 | D134: Haushaltsstrom | E134: Ct/kWh | F134: =HLOOKUP(B131,G131:O134,4,FALSE) -> 29 | G134: 29 | H134: 29 | I134: 28 | J134: 28 | K134: 419 | L134: =28*7.4556 -> 208.7568 | M134: 19.2 | N134: 65 | O134: 20
A135: Finisch | B135: 11
A136: Tschechisch | B136: 12
A137: Dänisch | B137: 13 | D137: Info bei Übersetzungen und Währungen
A138: Italienisch | B138: 14 | D138: - Blatt Einheiten/Kennwerte sind für Preise pro kWh eine Tabelle der einzelnen Länderpreisen und Währungen
A139: Polnisch | B139: 15 | D139: - Bei Blatt durchlauferhitzer gibt es eine finnnisch Tabelle, die nur für Finnland gilt.
A140: Niederländisch | B140: 16 | D140: -Bei Blatt duchlauferhitzer ist eine Berechung angepasst für Kosten Frisch/Abwasser, da Dänemark und Tschechien keine Untereinheit haben.
D145: Quelle Abwasser: http://de.statista.com/statistik/daten/studie/1538/umfrage/wasserpreise-weltweit/
D146: Quelle Haushaltsstrom: http://www.kwh-preis.de/strompreise-in-europa-nur-daenemark-ist-teurer
A150: E-Mail bei Anmerkungen
A151: =Translation!F432 -> Tool Formelsammlung
A152: =Translation!F433 -> Kann folgende Berechnungsformel/Kennwert noch in das Tool integriert werden?
A153: =Translation!F434 -> Formel:
A157: Gleichzeitigkeitsfaktoren nach DIN / TU Dresdesn
A158: Wohneinheiten | B158: Anzahl | C158: DIN NEU | D158: TU Dresden
A159: ="1 "&Translation!F600 -> 1 Wohneinheit | B159: 1 | C159: 1 | D159: 1
A160: ="2 "&Translation!F601 -> 2 Wohneinheiten | B160: 2 | C160: 2 | D160: 2
A161: ="3 "&Translation!F601 -> 3 Wohneinheiten | B161: 3 | C161: 2 | D161: 2
A162: ="4 "&Translation!F601 -> 4 Wohneinheiten | B162: 4 | C162: 2 | D162: 2
A163: ="5 "&Translation!F601 -> 5 Wohneinheiten | B163: 5 | C163: 2.5 | D163: 3
A164: ="6 "&Translation!F601 -> 6 Wohneinheiten | B164: 6 | C164: 3 | D164: 3
A165: ="7 "&Translation!F601 -> 7 Wohneinheiten | B165: 7 | C165: 3 | D165: 3
A166: ="8 "&Translation!F601 -> 8 Wohneinheiten | B166: 8 | C166: 3 | D166: 3
A167: ="9 "&Translation!F601 -> 9 Wohneinheiten | B167: 9 | C167: 3 | D167: 3
A168: ="10 "&Translation!F601 -> 10 Wohneinheiten | B168: 10 | C168: 3 | D168: 3
A169: ="11 "&Translation!F601 -> 11 Wohneinheiten | B169: 11 | C169: 3 | D169: 3
A170: ="12 "&Translation!F601 -> 12 Wohneinheiten | B170: 12 | C170: 3 | D170: 3
A171: ="13 "&Translation!F601 -> 13 Wohneinheiten | B171: 13 | C171: 3 | D171: 3
A172: ="14 "&Translation!F601 -> 14 Wohneinheiten | B172: 14 | C172: 4 | D172: 3
A173: ="15 "&Translation!F601 -> 15 Wohneinheiten | B173: 15 | C173: 4 | D173: 4
A174: ="16 "&Translation!F601 -> 16 Wohneinheiten | B174: 16 | C174: 4 | D174: 4
A175: ="17 "&Translation!F601 -> 17 Wohneinheiten | B175: 17 | C175: 4 | D175: 4
A176: ="18 "&Translation!F601 -> 18 Wohneinheiten | B176: 18 | C176: 4 | D176: 4
A177: ="19 "&Translation!F601 -> 19 Wohneinheiten | B177: 19 | C177: 4 | D177: 4
A178: ="20 "&Translation!F601 -> 20 Wohneinheiten | B178: 20 | C178: 5 | D178: 4
A179: ="21 "&Translation!F601 -> 21 Wohneinheiten | B179: 21 | C179: 5 | D179: 4
A180: ="22 "&Translation!F601 -> 22 Wohneinheiten | B180: 22 | C180: 5 | D180: 4
A181: ="23 "&Translation!F601 -> 23 Wohneinheiten | B181: 23 | C181: 5 | D181: 4
A182: ="24 "&Translation!F601 -> 24 Wohneinheiten | B182: 24 | C182: 5 | D182: 4
A183: ="25 "&Translation!F601 -> 25 Wohneinheiten | B183: 25 | C183: 5 | D183: 4
A184: ="26 "&Translation!F601 -> 26 Wohneinheiten | B184: 26 | C184: 5 | D184: 4
A185: ="27 "&Translation!F601 -> 27 Wohneinheiten | B185: 27 | C185: 5 | D185: 4
A186: ="28 "&Translation!F601 -> 28 Wohneinheiten | B186: 28 | C186: 5 | D186: 4
A187: ="29 "&Translation!F601 -> 29 Wohneinheiten | B187: 29 | C187: 5 | D187: 4
A188: ="30 "&Translation!F601 -> 30 Wohneinheiten | B188: 30 | C188: 5 | D188: 4
A189: ="31 "&Translation!F601 -> 31 Wohneinheiten | B189: 31 | C189: 5 | D189: 4
A190: ="32 "&Translation!F601 -> 32 Wohneinheiten | B190: 32 | C190: 5 | D190: 5
A191: ="33 "&Translation!F601 -> 33 Wohneinheiten | B191: 33 | C191: 5 | D191: 5
A192: ="34 "&Translation!F601 -> 34 Wohneinheiten | B192: 34 | C192: 5 | D192: 5
A193: ="35 "&Translation!F601 -> 35 Wohneinheiten | B193: 35 | C193: 5 | D193: 5
A194: ="36 "&Translation!F601 -> 36 Wohneinheiten | B194: 36 | C194: 5 | D194: 5
A195: ="37 "&Translation!F601 -> 37 Wohneinheiten | B195: 37 | C195: 6 | D195: 5
A196: ="38 "&Translation!F601 -> 38 Wohneinheiten | B196: 38 | C196: 6 | D196: 5
A197: ="39 "&Translation!F601 -> 39 Wohneinheiten | B197: 39 | C197: 6 | D197: 5
A198: ="40 "&Translation!F601 -> 40 Wohneinheiten | B198: 40 | C198: 6 | D198: 5
A199: ="41 "&Translation!F601 -> 41 Wohneinheiten | B199: 41 | C199: 6 | D199: 5
A200: ="42 "&Translation!F601 -> 42 Wohneinheiten | B200: 42 | C200: 6 | D200: 5
A201: ="43 "&Translation!F601 -> 43 Wohneinheiten | B201: 43 | C201: 6 | D201: 5
A202: ="44 "&Translation!F601 -> 44 Wohneinheiten | B202: 44 | C202: 6 | D202: 5
A203: ="45 "&Translation!F601 -> 45 Wohneinheiten | B203: 45 | C203: 6 | D203: 5
A204: ="46 "&Translation!F601 -> 46 Wohneinheiten | B204: 46 | C204: 6 | D204: 5
A205: ="47 "&Translation!F601 -> 47 Wohneinheiten | B205: 47 | C205: 6 | D205: 5
A206: ="48 "&Translation!F601 -> 48 Wohneinheiten | B206: 48 | C206: 6 | D206: 5
A207: ="49 "&Translation!F601 -> 49 Wohneinheiten | B207: 49 | C207: 6 | D207: 5
A208: ="50 "&Translation!F601 -> 50 Wohneinheiten | B208: 50 | C208: 6 | D208: 5
A209: ="51 "&Translation!F601 -> 51 Wohneinheiten | B209: 51 | C209: 6 | D209: 5
A210: ="52 "&Translation!F601 -> 52 Wohneinheiten | B210: 52 | C210: 6 | D210: 5
A211: ="53 "&Translation!F601 -> 53 Wohneinheiten | B211: 53 | C211: 6 | D211: 5
A212: ="54 "&Translation!F601 -> 54 Wohneinheiten | B212: 54 | C212: 6 | D212: 5
A213: ="55 "&Translation!F601 -> 55 Wohneinheiten | B213: 55 | C213: 6 | D213: 5
A214: ="56 "&Translation!F601 -> 56 Wohneinheiten | B214: 56 | C214: 6 | D214: 5
A215: ="57 "&Translation!F601 -> 57 Wohneinheiten | B215: 57 | C215: 6 | D215: 5
A216: ="58 "&Translation!F601 -> 58 Wohneinheiten | B216: 58 | C216: 6 | D216: 6
A217: ="59 "&Translation!F601 -> 59 Wohneinheiten | B217: 59 | C217: 6 | D217: 6
A218: ="60 "&Translation!F601 -> 60 Wohneinheiten | B218: 60 | C218: 6 | D218: 6
A221: Rubrik Heizung:
A222: Kategorie 14 Schwimmbaderwärmung
A223: Combobox
A224: Freibad
A225: =Translation!F590 -> Freibad
A226: =Translation!F591 -> Hallenbad
A230: Ausgabe Exportdatei-Sprache
A231: =Translation!F599 -> Die Sprachdatei wurde als separates Excelfile gespeichert. Bitte passen Sie die gewünschten Begriffe und Texte an und schicken uns die Datei anschließend zurück. Wir werden die angezeigten Texte dann hier im Tool aktualisieren

Sheet Translation (hidden)
F1: Ausgabe
A2: Wert 1 | B2: Wert2 | C2: Wert 3 | D2: Wert4 | E2: Wert5 | F2: =SUBSTITUTE(SUBSTITUTE(SUBSTITUTE(SUBSTITUTE(SUBSTITUTE(G2,"<Wert1>",A2),"<Wert2>",B2),"<Wert3>",C2),"<Wert4>",D2),"<Wert5>",E2) -> Deutsch STE | G2: Deutsch STE | H2: Deutsch STE | I2: Deutsch TEC | J2: English | K2: Suomi | L2: čeština | M2: Dansk | N2: Italiano | O2: Polski | P2: Niederländisch
F3: Formelsammlung | G3: Formelsammlung | H3: Formelsammlung | I3: Formelsammlung | J3: Formulary | K3: Yhtälökokoelma | L3: Sbírka vzorců | M3: Formelsamling | N3: Formulario | O3: Zbiór formuł obliczeniowych | P3: Formule verzameling
F4: Mit Stiebel Eltron können Sie rechnen. | G4: Mit Stiebel Eltron können Sie rechnen. | H4: Mit Stiebel Eltron können Sie rechnen. | I4: Mit Stiebel Eltron können Sie rechnen. | J4: YOU CAN COUNT ON STIEBEL ELTRON | K4: VOIT LUOTTAA STIEBEL ELTRONIIN | L4: Se Stiebel Eltron můžete počítat. | M4: Du kan regne med STIEBEL ELTRON | N4: POTETE CONTARE SU STIEBEL ELTRON | O4: Na Stiebel Eltron możesz liczyć. | P4: Op Stiebel Eltron kunt u rekenen.
F5: Was wollen Sie tun? | G5: Was wollen Sie tun? | H5: Was wollen Sie tun? | I5: Was wollen Sie tun? | J5: What would you like to do? | K5: Mitä haluaisit tehdä? | L5: Co si přejete dělat? | M5: Hvad vil du gerne gøre? | N5: Cosa vorresti fare? | O5: Co chcesz zrobić ? | P5: Wat wilt u doen?
F6: Warmwasser-Speicher | G6: Warmwasser-Speicher | H6: Warmwasser-Speicher | I6: Warmwasser-Speicher | J6: DHW cylinder | K6: Käyttövesivaraaja | L6: Zásobník teplé vody | M6: Varmtvandsbeholder | N6: Bollitore ACS | O6: Zasobnik CWU | P6: Warmwater boiler
F7: Heizlast | G7: Heizlast | H7: Heizlast | I7: Heizlast | J7: Heat load | K7: Lämpökuorma | L7: Tepelná ztráta | M7: Varmeeffekt | N7: Fabbisogno termico | O7: Obciązenie cieplne | P7: Warmteverlies
F8: Lüftung | G8: Lüftung | H8: Lüftung | I8: Lüftung | J8: Ventilation | K8: Ilmanvaihto | L8: Větrání | M8: Ventilation | N8: Ventilazione | O8: Wentylacja | P8: Ventilatie
F9: Durchlauferhitzer | G9: Durchlauferhitzer | H9: Durchlauferhitzer | I9: Durchlauferhitzer | J9: Instantaneous water heater | K9: Vedenlämmitin | L9: Průtokový ohřívač | M9: Gennemstrømningsvandvarmer | N9: Scalda acqua istantaneo | O9: Przepływowy ogrzewacz wody | P9: Elektrische doorstromer
F10: Heizung | G10: Heizung | H10: Heizung | I10: Heizung | J10: Heating | K10: Lämmitys | L10: Vytápění | M10: Varme | N10: Riscaldamento | O10: Ogrzewanie | P10: Verwarming
F11: Einheiten umrechnen | G11: Einheiten umrechnen | H11: Einheiten umrechnen | I11: Einheiten umrechnen | J11: Convert Units | K11: Yksiköt/parametrit | L11: Přepočet jednotek | M11: Konverter enheder | N11: Convertitore unità misura | O11: Przeliczanie jednostek | P11: Eenheid converteren
F12: Klima / Kühlung | G12: Klima / Kühlung | H12: Klima / Kühlung | I12: Klima / Kühlung | J12: Air conditioning | K12: Jäähdytys | L12: Klimatizace | M12: Air condition | N12: Aria condizionata | O12: Klimatyzacja / chłodzenie | P12: Airconditioning
F13: Nach dieser Formel wurde gerechnet: | G13: Nach dieser Formel wurde gerechnet: | H13: Nach dieser Formel wurde gerechnet: | I13: Nach dieser Formel wurde gerechnet: | J13: This formula was used for the calculation: | K13: Laskennassa käytettiin tätä yhtälöä: | L13: Podle tohoto vzorce bude počítáno: | M13: Denne formel blev anvendt til beregningen: | N13: Questa formula è stata utilizzata per il calcolo: | O13: Zastosowany wzór: | P13: De gebruikte formule in deze berekening:
F14: Was soll berechnet werden? | G14: Was soll berechnet werden? | H14: Was soll berechnet werden? | I14: Was soll berechnet werden? | J14: What would you like to calculate? | K14: Mitä haluaisit laskea? | L14: Co se má vypočítat? | M14: Hvad vil du gerne beregne? | N14: Cosa vorresti calcolare? | O14: Dane poszukiwane | P14: Wat wilt u berekenen?
F15: Diese Angaben werden dafür benötigt. | G15: Diese Angaben werden dafür benötigt. | H15: Diese Angaben werden dafür benötigt. | I15: Diese Angaben werden dafür benötigt. | J15: This information is required | K15: Näitä tietoja tarvitaan | L15: Tyto údaje budou pro to potřebné. | M15: Disse informationer er nødvendige | N15: Dati richiesti | O15: Dane wyjściowe | P15: Deze informatie is noodzakelijk
F16: Das Ergebnis. | G16: Das Ergebnis. | H16: Das Ergebnis. | I16: Das Ergebnis. | J16: Result | K16: Tulos | L16: Výsledek. | M16: Resultat | N16: Risultato | O16: Wynik | P16: Resultaat
F17: Fehlt eine Formel? | G17: Fehlt eine Formel? | H17: Fehlt eine Formel? | I17: Fehlt eine Formel? | J17: Is there a formula missing? | K17: Puuttuuko jokin yhtälö? | L17: Schází nějaký vzorec? | M17: Mangler der en formel? | N17: C'è una formula mancante? | O17: Brakuje formuły ? | P17: Ontbreek er een formule?
F18: Warmwasserspeicher Überschrift | G18: Warmwasserspeicher Überschrift | H18: Warmwasserspeicher Überschrift | I18: Warmwasserspeicher Überschrift | J18: DHW cylinder heading | K18: Käyttövesivaraajan nimike | L18: Zásobník teplé vody | M18: Varmtvandsbeholder | N18: Riscaldamento bollitore ACS | O18: Etykieta zasobnika CWU | P18: Warmwater boiler
F19: Mischwassermenge | G19: Mischwassermenge | H19: Mischwassermenge | I19: Mischwassermenge | J19: Amount of mixed water | K19: Sekoitetun veden määrä | L19: Množství smísené vody | M19: Mængde blandet vand | N19: Quantità di acqua miscelata | O19: Ilość wody zmieszanej | P19: Mengwater
F20: Mischwassertemperatur | G20: Mischwassertemperatur | H20: Mischwassertemperatur | I20: Mischwassertemperatur | J20: Mixed water temperature | K20: Sekoitetun veden lämpötila | L20: Teplota smísené vody | M20: Blandet vandtemperatur | N20: Temperatura dell'acqua miscelata | O20: Temperatura wody zmieszanej | P20: Mengwater temperatuur
F21: Erforderliches Speichervolumen | G21: Erforderliches Speichervolumen | H21: Erforderliches Speichervolumen | I21: Erforderliches Speichervolumen | J21: Required cylinder capacity | K21: Vaadittu varaajan tilavuus | L21: Potřebný objem zásobníku | M21: Nødvendig beholderkapacitet | N21: Volume richiesto per l'accumulo | O21: Wymagana pojemność zasobnika | P21: Noodzakelijk boilervolume
F22: Erforderliche Speichertemperatur | G22: Erforderliche Speichertemperatur | H22: Erforderliche Speichertemperatur | I22: Erforderliche Speichertemperatur | J22: Required cylinder temperature | K22: Vaadittu varaajan lämpötila | L22: Potřebná teplota zásobníku | M22: Nødvendig beholdertemperatur | N22: Temperatura richiesta nell'accumulo | O22: Wymagana temperatura CWU | P22: Noodzakelijke boilertemperatuur
F23: Aufheizzeit Speicher | G23: Aufheizzeit Speicher | H23: Aufheizzeit Speicher | I23: Aufheizzeit Speicher | J23: Cylinder heat-up time | K23: Varaajan lämmitysaika | L23: Doba ohřevu nárže | M23: Beholder opvarmningstid | N23: Tempo di messa a regime dell'accumulo | O23: Czas nagrzewania zasobnika | P23: Opwarmtijd boiler
F24: Benötigte Anschlussleistung | G24: Benötigte Anschlussleistung | H24: Benötigte Anschlussleistung | I24: Benötigte Anschlussleistung | J24: Required connected load | K24: Vaadittu teho | L24: Potřebný instalovaný příkon | M24: Nødvendig varmeeffekt varmekilde | N24: Potenza richiesta per il generatore di calore | O24: Potrzebna moc przyłączeniowa | P24: Noodzakelijk aansluitvermogen
F25: Energiebedarf für Aufheizung | G25: Energiebedarf für Aufheizung | H25: Energiebedarf für Aufheizung | I25: Energiebedarf für Aufheizung | J25: Energy required for heat-up | K25: Tarvittava energiamäärä lämmittämiseen | L25: Potřeba energie pro ohřev | M25: Nødvendigt energiforbrug til opvarmning | N25: Energia richiesta per la messa a regime | O25: Zapotrzebowanie na energię do ogrzewania | P25: Energieverbruik voor opwarming
F26: Wärmetauscherfläche im Speicher | G26: Wärmetauscherfläche im Speicher | H26: Wärmetauscherfläche im Speicher | I26: Wärmetauscherfläche im Speicher | J26: Indirect coil surface area in the cylinder | K26: Lämmönjohdinpinta varaajassa | L26: Plocha výměníku tepla v zásobníku | M26: Overfladeareal for varmespiral i beholder | N26: Superficie di scambio nell'accumulo | O26: Powierzchnia wężownicy w zasobniku | P26: Oppervlakte warmtewisselaar in boiler
F27: Wärmebedarf für Warmwasser | G27: Wärmebedarf für Warmwasser | H27: Wärmebedarf für Warmwasser | I27: Wärmebedarf für Warmwasser | J27: Heat demand for DHW | K27: Lämmöntarve käyttövedentuotannossa | L27: Potřeba tepla pro teplou vodu | M27: Varmebehov til varmtvand | N27: Fabbisogno energetico per ACS | O27: Zapotrzebowanie ciepła do CWU | P27: Warmtevraag voor warmwater
F28: Heizlast | G28: Heizlast | H28: Heizlast | I28: Heizlast | J28: Heat load | K28: Lämpökuorma | L28: Tepelná ztráta | M28: Varmeeffekt | N28: Fabbisogno termico | O28: Obciązenie cieplne | P28: Warmteverlies
F29: Heizlast überschlägig nach Ölverbrauch | G29: Heizlast überschlägig nach Ölverbrauch | H29: Heizlast überschlägig nach Ölverbrauch | I29: Heizlast überschlägig nach Ölverbrauch | J29: Approx. heat load acc. to oil consumption | K29: Lämpökuorma öljyn kulutuksen mukaan | L29: Tepelná ztráta dle spotřeby oleje | M29: Omtrentligt varmebehov beregnet efter olieforbrug | N29: Carico termico da consumo di gasolio | O29: Przybliżone obciążenie cieplne przy oleju opałowym | P29: Geschatte warmteverlies o.b.v. stookolieverbruik
F30: Heizlast überschlägig nach Gasverbrauch | G30: Heizlast überschlägig nach Gasverbrauch | H30: Heizlast überschlägig nach Gasverbrauch | I30: Heizlast überschlägig nach Gasverbrauch | J30: Approx. heat load acc. to gas consumption | K30: Lämpökuorma kaasun kulutuksen mukaan | L30: Tepelná ztráta dle spotřeby plynu | M30: Omtrentligt varmebehov beregnet efter gasforbrug | N30: Carico termico da consumo di gas | O30: Przybliżone obciążenie cieplne przy gazie | P30: Geschatte warmteverlies o.b.v. gasverbruik
F31: Heizlast überschlägig nach Raummeter Holz | G31: Heizlast überschlägig nach Raummeter Holz | H31: Heizlast überschlägig nach Raummeter Holz | I31: Heizlast überschlägig nach Raummeter Holz | J31: Approx. heat load acc. to cubic metre of wood | K31: Lämpökuorma puun kulutuksen mukaan | L31: Tepelná ztráta dle spotřeby objemu dřeva | M31: Omtrentligt varmebehov beregnet efter brændeforbrug | N31: Carico termico da consumo di legna | O31: Przybliżone obciążenie cieplne przy m3 drewna | P31: Geschatte warmteverlies o.b.v. 1m3 hout
F32: Heizlast überschlägig nach beheizter Fläche | G32: Heizlast überschlägig nach beheizter Fläche | H32: Heizlast überschlägig nach beheizter Fläche | I32: Heizlast überschlägig nach beheizter Fläche | J32: Approx. heat load acc. to heated area | K32: Lämpökuorma lämmitettävän pinta-alan mukaan | L32: Tepelná ztráta dle vytápěné plochy | M32: Omtrentligt varmebehov beregnet efter opvarmet areal | N32: Carico termico da area riscaldata | O32: Przybliż. obciążenie cieplne na ogrzewaną powierzchnię | P32: Geschatte warmteverlies o.b.v. verwarmde ruimte
F33: Lüftung | G33: Lüftung | H33: Lüftung | I33: Lüftung | J33: Ventilation | K33: Ilmanvaihto | L33: Větrání | M33: Ventilation | N33: Ventilazione | O33: Wentylacja | P33: Ventilatie
F34: Erforderliche Leistung Heizregister | G34: Erforderliche Leistung Heizregister | H34: Erforderliche Leistung Heizregister | I34: Erforderliche Leistung Heizregister | J34: Required output of heating coil | K34: Vaadittu lämmittimen tehontarve | L34: Potřebný příkon topného registru | M34: Nødvendig varmeeffekt for varmegiver | N34: Potenza richiesta per la batteria di riscaldamento | O34: Wymagana moc nagrzewnicy | P34: Benodigd verwarmingsvermogen
F35: Erforderliche Luftvolumenstrom | G35: Erforderliche Luftvolumenstrom | H35: Erforderliche Luftvolumenstrom | I35: Erforderliche Luftvolumenstrom | J35: Required air flow rate | K35: Vaadittu ilmavirta | L35: Potřebný objem.průtok vzduchu | M35: Nødvendig luftmængde | N35: Portata d'aria richiesta | O35: Wymagany przepływ objętościowy powietrza | P35: Benodigde luchtvolume stroom
F36: Zulufttemperatur Wärmerückgewinnung | G36: Zulufttemperatur Wärmerückgewinnung | H36: Zulufttemperatur Wärmerückgewinnung | I36: Zulufttemperatur Wärmerückgewinnung | J36: Heat recovery intake temperature | K36: Lämmöntalteenoton sisäänottolämpötila | L36: Teplota přiváděn. vzduchu z odpad. tepla | M36: Varmegenvinding indblæsningslufttemperatur | N36: Temperatura aria in ingresso con recupero di calore | O36: Temperatura doprow. powietrza - odzysk ciepła | P36: Luchttoevoer warmteterugwinning
F37: Rückwärmzahl | G37: Rückwärmzahl | H37: Rückwärmzahl | I37: Rückwärmzahl | J37: Reheating index | K37: Uudelleenlämmitysindeksi | L37: Index zpětného získání tepla | M37: Varmegenvindingseffektivitet | N37: Fatture di recupero calore | O37: Ilość odzyskanego ciepła | P37: Warmteterugwinning
F38: Lüftungstechnischer Wirkungsgrad | G38: Lüftungstechnischer Wirkungsgrad | H38: Lüftungstechnischer Wirkungsgrad | I38: Lüftungstechnischer Wirkungsgrad | J38: Ventilation efficiency | K38: Ilmanvaihdon tehokkuus | L38: Vzduchotechnická účinnost | M38: Ventilationseffektivitet | N38: Efficienza ventilatore | O38: Sprawność odzysku ciepła | P38: Ventilatie technische efficiëntie
F39: Luftwechsel im Raum | G39: Luftwechsel im Raum | H39: Luftwechsel im Raum | I39: Luftwechsel im Raum | J39: Air change rate in room | K39: Huoneen ilmanvaihtokerroin | L39: Výměna vzduchu v prostoru | M39: Luftskifte i rum | N39: Percentuale di ricambio aria nella stanza | O39: Wymiana powietrza w pomieszczeniu | P39: Luchtverversing
F40: Gleichwertiger Durchmesser Kanal | G40: Gleichwertiger Durchmesser Kanal | H40: Gleichwertiger Durchmesser Kanal | I40: Gleichwertiger Durchmesser Kanal | J40: Equivalent diameter of duct | K40: Vastaava kanavan halkaisija | L40: Ekvivalentní průměr kanálu | M40: Tilsvarende kanaldiameter | N40: Diametro equivalente del canale (rettangolare) | O40: Równoważna średnica kanału | P40: Equivalente doorsnede kanaal
F41: Gleichwertiger Durchmesser allgemein | G41: Gleichwertiger Durchmesser allgemein | H41: Gleichwertiger Durchmesser allgemein | I41: Gleichwertiger Durchmesser allgemein | J41: General equivalent diameter | K41: Vastaava halkaisija yleensä | L41: Ekvivalentní průměr obecný | M41: Tilsvarende generel diameter | N41: Diametro equivalente del canale (generale) | O41: Równoważna średnica ogólnie | P41: Equivalente doorsnede algemeen
F42: Durchlauferhitzer | G42: Durchlauferhitzer | H42: Durchlauferhitzer | I42: Durchlauferhitzer | J42: Instantaneous water heater | K42: Vedenlämmitin | L42: Průtokový ohřívač | M42: Gennemstrømningsvandvarmer | N42: Scalda acqua istantaneo | O42: Przepływowy ogrzewacz wody | P42: Elektrische doorstromer
F43: Maximale Durchflussmenge | G43: Maximale Durchflussmenge | H43: Maximale Durchflussmenge | I43: Maximale Durchflussmenge | J43: Maximum flow rate | K43: Maksimitilavuusvirta | L43: Maximální průtočné množství | M43: Maksimal volumenstrøm | N43: Portata massima | O43: Maks. przepływ | P43: Maximale flow
F44: Maximale Warmwassertemperatur | G44: Maximale Warmwassertemperatur | H44: Maximale Warmwassertemperatur | I44: Maximale Warmwassertemperatur | J44: Maximum DHW temperature | K44: Käyttöveden maksimilämpötila | L44: Maximální teplota teplé vody | M44: Max. VV-temperatur | N44: Temperatura massima ACS | O44: Maks. temp. CWU | P44: Maximale warmwater temperatuur
F45: Kosten fürs Duschen | G45: Kosten fürs Duschen | H45: Kosten fürs Duschen | I45: Kosten fürs Duschen | J45: Cost per shower | K45: Kustannus suihkua kohti | L45: Náklady na sprchování | M45: Omkostninger pr. brusebad | N45: Costo per doccia | O45: Koszt kąpieli pod prysznicem | P45: Kosten per douchebeurt
F46: Kosten für ein Wannenbad | G46: Kosten für ein Wannenbad | H46: Kosten für ein Wannenbad | I46: Kosten für ein Wannenbad | J46: Cost per bath | K46: Kustannus kylpyä kohti | L46: Náklady na jednu koupel | M46: Omkostninger pr. karbad | N46: Costo per bagno | O46: Koszty kąpieli w wannie | P46: Kosten per bad
F47: Heizung | G47: Heizung | H47: Heizung | I47: Heizung | J47: Heating | K47: Lämmitys | L47: Vytápění | M47: Varme | N47: Riscaldamento | O47: Ogrzewanie | P47: Verwarming
F48: Druckverlust Rohrleitung | G48: Druckverlust Rohrleitung | H48: Druckverlust Rohrleitung | I48: Druckverlust Rohrleitung | J48: Pipe pressure drop | K48: Putken painehäviö | L48: Tlaková ztráta potrubí | M48: Tryktab i rør | N48: Perdita di carico della tubazione | O48: Spadek ciśnienia w rurociągu | P48: Drukverlies in leiding
F49: Leistung Heizkörper | G49: Leistung Heizkörper | H49: Leistung Heizkörper | I49: Leistung Heizkörper | J49: Performance radiator | K49: Patterin suoritusarvot | L49: Výkon topného tělesa | M49: Virkningsgrad radiator | N49: Prestazione del radiatore | O49: Moc grzejnika | P49: Radiator vermogen
F50: Strömungsgeschwindigkeit | G50: Strömungsgeschwindigkeit | H50: Strömungsgeschwindigkeit | I50: Strömungsgeschwindigkeit | J50: Flow velocity | K50: Virtausnopeus | L50: Rychlost proudění | M50: Volumenstrøm | N50: Velocità del flusso | O50: Prędkość przepływu | P50: Stroomsnelheid
F51: Wasserinhalt im Rohr | G51: Wasserinhalt im Rohr | H51: Wasserinhalt im Rohr | I51: Wasserinhalt im Rohr | J51: Water content in pipe | K51: Vesimäärä putkessa | L51: Objem vody v potrubí | M51: Vandindhold i rør | N51: Contenuto d'acqua nel tubo | O51: Zład wody w rurach | P51: Waterinhoud leiding
F52: Druckverlust bei Volumenstromänderung | G52: Druckverlust bei Volumenstromänderung | H52: Druckverlust bei Volumenstromänderung | I52: Druckverlust bei Volumenstromänderung | J52: Pressure drop on change of flow rate | K52: Painehäviö virtausnopeuden muuttuessa | L52: Tlaková ztráta při změně objem. toku | M52: Tryktab ved ændring af flow | N52: Perdita di carico alla variazione di portata | O52: Strata ciśnienia przy zmianie przepływu | P52: Drukverlies bij volumestroomverandering
F53: Druckverlust ζ-Wert | G53: Druckverlust ζ-Wert | H53: Druckverlust ζ-Wert | I53: Druckverlust ζ-Wert | J53: Pressure drop ζ-Value | K53: Painehäviö, putkikiinnikkeet | L53: Tlak.ztráta ζ-hodnota | M53: Tryktab ζ-Værdi | N53: Perdita di carico con valore ζ | O53: Strata ciśnienia wartość ζ | P53: Drukverlies ζ-Waarde
F54: Benötigte Normleistung Heizkörper | G54: Benötigte Normleistung Heizkörper | H54: Benötigte Normleistung Heizkörper | I54: Benötigte Normleistung Heizkörper | J54: Required standard output of radiators | K54: Vaadittu lämmittimien vakioteho | L54: Potřebný norm.výkon top.tělesa | M54: Nødvendig normeffekt for radiator | N54: Potenza richiesta standard del radiatore | O54: Potrzebna normatywna moc grzejnika | P54: Benodigd normvermogen radiator
F55: Volumenstrom | G55: Volumenstrom | H55: Volumenstrom | I55: Volumenstrom | J55: Flow rate | K55: Tilavuusvirta | L55: Objemový tok | M55: Volumenflow | N55: Portata | O55: Strumień objętościowy | P55: Volumestroom
F56: Bemessung Ausdehnungsgefäß | G56: Bemessung Ausdehnungsgefäß | H56: Bemessung Ausdehnungsgefäß | I56: Bemessung Ausdehnungsgefäß | J56: Size of expansion vessel | K56: Paisuntasäiliön koko | L56: Objem expanzní nádrže | M56: Størrelse ekspansionsbeholder | N56: Dimensioni del vaso di espansione | O56: Wymiarowanie naczynia wzbiorczego | P56: Dimensionering expansievat
F57: Klima | G57: Klima | H57: Klima | I57: Klima | J57: Air conditioning | K57: Ilmastointi | L57: Klimatizace | M57: Air condition | N57: Aria condizionata | O57: Klimatyzacja | P57: Airconditioning
F58: Taupunktunterschreitung | G58: Taupunktunterschreitung | H58: Taupunktunterschreitung | I58: Taupunktunterschreitung | J58: Cooling below dew point | K58: Viilennyksen kastepiste | L58: Rosný bod -nedosažen u povrchu | M58: Køling under dugpunkt | N58: Raffrescamento sotto il punto di rugiada | O58: Spadek poniżej punktu rosy | P58: Onder het dauwpunt koelen
F60: Überschlägige Kühllast | G60: Überschlägige Kühllast | H60: Überschlägige Kühllast | I60: Überschlägige Kühllast | J60: Approximate cooling load | K60: Jäähdytystarpeen arviointi | L60: Přibližné chladicí zatížení | M60: Anslået kølebehov | N60: Carico di raffrescamento approssimativo | O60: Przybliżone obciążenie chłodnicze | P60: Geschatte koellast
F62: Dichte feuchter Luft | G62: Dichte feuchter Luft | H62: Dichte feuchter Luft | I62: Dichte feuchter Luft | J62: Density of moist air | K62: Kostean ilman tiheys | L62: Hustota vlhkého vzduchu | M62: Densitet af fugtig luft | N62: Densità aria umida | O62: Gęstość wilgotnego powietrza | P62: Dichtheid van vochtige lucht
F63: Einheiten / Kennwerte | G63: Einheiten / Kennwerte | H63: Einheiten / Kennwerte | I63: Einheiten / Kennwerte | J63: Units / parameters | K63: Yksiköt/parametrit | L63: Jednotky / charakteristická hodnota | M63: Enheder / Parameter | N63: Unità / parametri | O63: Jednostki / parametry | P63: Eenheden / Kenmerken
F64: Volumenstrom umrechnen | G64: Volumenstrom umrechnen | H64: Volumenstrom umrechnen | I64: Volumenstrom umrechnen | J64: Convert flow rate | K64: Tilavuusvirran muunnos | L64: Přepočet objem. toku | M64: Konverter volumenstrøm | N64: Convertitore portata | O64: Przeliczenie strumienia objętości | P64: Volumestroom omrekenen
F65: Massenstrom umrechnen | G65: Massenstrom umrechnen | H65: Massenstrom umrechnen | I65: Massenstrom umrechnen | J65: Convert mass flow rate | K65: Massavirran muunnos | L65: Přepočet hmotnostního toku | M65: Konverter massestrøm | N65: Convertitore portata massica | O65: Przeliczenie przepływu masowego | P65: Massastroom omrekenen
F66: =SUBSTITUTE(SUBSTITUTE(SUBSTITUTE(SUBSTITUTE(SUBSTITUTE(G66,"<Wert1>",A66),"<Wert2>",B66),"<Wert3>",C66),"<Wert4>",D66),"<Wert5>",E66) -> Geschwindigkeit umrechnen | G66: Geschwindigkeit umrechnen | H66: Geschwindigkeit umrechnen | I66: Geschwindigkeit umrechnen | J66: Convert speed | K66: Nopeuden muunnos | L66: Přepočet rychlosti | M66: Konverter hastighed | N66: Convertitore velocità | O66: Przeliczenie prędkości | P66: Snelheid omrekenen
F67: Druck umrechnen | G67: Druck umrechnen | H67: Druck umrechnen | I67: Druck umrechnen | J67: Convert pressure | K67: Paineen muunnos | L67: Přepočet tlaku | M67: Konverter tryk | N67: Convertitore pressione | O67: Przeliczenie ciśnienia | P67: Druk omrekenen
F68: Energie umrechnen | G68: Energie umrechnen | H68: Energie umrechnen | I68: Energie umrechnen | J68: Convert energy | K68: Energian muunnos | L68: Přepočet energie | M68: Konverter energi | N68: Convertitore energia | O68: Przeliczenie energii | P68: Energie omrekenen
F69: Temperatur umrechnen | G69: Temperatur umrechnen | H69: Temperatur umrechnen | I69: Temperatur umrechnen | J69: Convert temperature | K69: Lämpötilan muunnos | L69: Přepočet teploty | M69: Konverter temperatur | N69: Convertitore temperatura | O69: Przeliczenie temperatury | P69: Temperatuur omrekening
F70: Kennwerte & Konstanten anzeigen | G70: Kennwerte & Konstanten anzeigen | H70: Kennwerte & Konstanten anzeigen | I70: Kennwerte & Konstanten anzeigen | J70: Show parameters & constants | K70: Näytä parametrit ja vakiot | L70: Zobracení parametrů a konstant | M70: Vis parameter og konstanter | N70: Mostra i parametri e le costanti | O70: Wskazanie parametrów & wielkości stałych | P70: Toon parameters & constanten
F71: Heizwerte von Energieträgern anzeigen | G71: Heizwerte von Energieträgern anzeigen | H71: Heizwerte von Energieträgern anzeigen | I71: Heizwerte von Energieträgern anzeigen | J71: Show net calorific values of fuel types | K71: Näytä eri polttoaineiden nettolämpöarvot | L71: Zobrazení výhřevnosti zdroje energie | M71: Vis brændværdi af brændselstyper | N71: Mostra potere calorifico | O71: Wskazanie wartości opałowych nośników energii | P71: Toon calorische waarde van brandstoffen
F72: Erfahrungswerte anzeigen | G72: Erfahrungswerte anzeigen | H72: Erfahrungswerte anzeigen | I72: Erfahrungswerte anzeigen | J72: Show empirical values | K72: Näytä kokemusperäiset arvot | L72: Zobrazení empirické hodnoty | M72: Vis empiriske værdier | N72: Mostra valori empirici | O72: Zastosowane uproszczenia | P72: Ervaringscijfers bekijken
F73: Warmwasser-Fragen | G73: Warmwasser-Fragen | H73: Warmwasser-Fragen | I73: Warmwasser-Fragen | J73: DHW questions | K73: Käyttövesi - kysymykset | L73: Teplá voda-otázky | M73: Varmtvand-spørgsmål | N73: Domande ACS | O73: Pytania do CWU | P73: Warmwater vragen
F74: Kaltwassertemperatur | G74: Kaltwassertemperatur | H74: Kaltwassertemperatur | I74: Kaltwassertemperatur | J74: Cold water temperature | K74: Kylmän veden lämpötila | L74: Teplota studené vody | M74: Koldtvandstemperatur | N74: Temperatura dell'acqua fredda | O74: Temperatura zimnej wody | P74: Koudwater temperatuur
F75: Temperatur im Speicher | G75: Temperatur im Speicher | H75: Temperatur im Speicher | I75: Temperatur im Speicher | J75: Temperature in cylinder | K75: Lämpötila varaajassa | L75: Teplota v nádrži | M75: Temperatur i beholder | N75: Temperatura nell'accumulo | O75: Temperatura w zasobniku | P75: Temperatuur in de boiler
F76: Größe des Speichers | G76: Größe des Speichers | H76: Größe des Speichers | I76: Größe des Speichers | J76: Size of cylinder | K76: Varaajan koko | L76: Velikost nádrže | M76: Beholder størrelse | N76: Capacità dell'accumulo | O76: Wielkość zasobnika | P76: Boiler volume
F77: Benötigte Entnahmetemperatur | G77: Benötigte Entnahmetemperatur | H77: Benötigte Entnahmetemperatur | I77: Benötigte Entnahmetemperatur | J77: Required draw-off temperature | K77: Haluttu käyttölämpötila | L77: Potřebná teplota vody na odběru | M77: Ønsket aftapningstemperatur | N77: Temperatura di erogazione richiesta | O77: Wymagana temperatura poboru | P77: Benodigde tapwatertemperatuur
F78: Kaltwassermenge | G78: Kaltwassermenge | H78: Kaltwassermenge | I78: Kaltwassermenge | J78: Amount of cold water | K78: Kylmän veden määrä | L78: Množství studené vody | M78: Mængde koldtvand | N78: Quantità di acqua fredda | O78: Ilość zimnej wody | P78: Hoeveelheid koudwater
F79: Warmwassermenge | G79: Warmwassermenge | H79: Warmwassermenge | I79: Warmwassermenge | J79: Amount of DHW | K79: Käyttöveden määrä | L79: Množství teplé vody | M79: Mængde varmtvand | N79: Quantità di ACS | O79: Ilość ciepłej wody | P79: Hoeveelheid warmwater
F80: Warmwassertemperatur | G80: Warmwassertemperatur | H80: Warmwassertemperatur | I80: Warmwassertemperatur | J80: DHW temperature | K80: Käyttöveden lämpötila | L80: Teplota teplé vody | M80: Varmtvandstemperatur | N80: Temperatura ACS | O80: Temperatura CWU | P80: Warmwater temperatuur
F81: Benötigte Entnahmemenge | G81: Benötigte Entnahmemenge | H81: Benötigte Entnahmemenge | I81: Benötigte Entnahmemenge | J81: Required draw-off volume | K81: Haluttu käyttömäärä | L81: Potřebné odebírané množství | M81: Ønsket aftapningsmængde | N81: Volume di erogazione richiesto | O81: Wymagana wielkość poboru | P81: Gewenste tapwaterhoeveelheid
F82: Leistung Wärmeerzeuger | G82: Leistung Wärmeerzeuger | H82: Leistung Wärmeerzeuger | I82: Leistung Wärmeerzeuger | J82: Heat generator output | K82: Lämmöntuottajan teho | L82: Výkon zdroje tepla | M82: Varmeeffekt varmegiver | N82: Potenza del generatore di calore | O82: Moc wytwornicy ciepła | P82: Vermogen warmteopwekker
F83: Wirkungsgrad Wärmeerzeuger | G83: Wirkungsgrad Wärmeerzeuger | H83: Wirkungsgrad Wärmeerzeuger | I83: Wirkungsgrad Wärmeerzeuger | J83: Heat generator efficiency | K83: Lämmöntuottajan hyötysuhde | L83: Účinnost zdroje tepla | M83: Virkningsgrad varmegiver | N83: Efficienza del generatore di calore | O83: Sprawność wytwornicy ciepła | P83: Efficiency warmteopwekker
F84: Gewünschte Aufheizdauer | G84: Gewünschte Aufheizdauer | H84: Gewünschte Aufheizdauer | I84: Gewünschte Aufheizdauer | J84: Required heat-up time | K84: Vaadittu lämmitysaika | L84: Požadovaná doba ohřevu | M84: Ønsket opvarmningstid | N84: Tempo di messa a regime richiesto | O84: Żądany czas nagrzewania | P84: Gewenste opwarmtijd
F85: Vorlauftemperatur | G85: Vorlauftemperatur | H85: Vorlauftemperatur | I85: Vorlauftemperatur | J85: Flow temperature | K85: Virtauslämpötila | L85: Teplota topné vody | M85: Fremløbstemperatur | N85: Temperatura di mandata | O85: Temperatura zasilania | P85: Aanvoertemperatuur
F86: Leistung des Wärmeerzeugers | G86: Leistung des Wärmeerzeugers | H86: Leistung des Wärmeerzeugers | I86: Leistung des Wärmeerzeugers | J86: Heat generator output | K86: Lämmöntuottajan teho | L86: Výkon zdroje tepla | M86: Varmeeffekt varmegiver | N86: Potenza del generatore di calore | O86: Moc wytwornicy ciepła | P86: Vermogen van de warmteopwekker
F87: Temperatur an der Zapfstelle | G87: Temperatur an der Zapfstelle | H87: Temperatur an der Zapfstelle | I87: Temperatur an der Zapfstelle | J87: Temperature at the draw-off point | K87: Haluttu käyttölämpötila | L87: Teplota vody na odběru | M87: Aftapningstemperatur | N87: Temperatura al punto di prelievo | O87: Temperatura w punkcie poboru | P87: Temperatuur aan het tappunt
F88: Anzahl Personen im Haushalt | G88: Anzahl Personen im Haushalt | H88: Anzahl Personen im Haushalt | I88: Anzahl Personen im Haushalt | J88: Number of people in household | K88: Asukkaiden lukumäärä | L88: Počet osob v domácnosti | M88: Antal personer i husstanden | N88: N° di persone nel nucleo familiare | O88: Ilość osób w gospodarstwie domowym | P88: Aantal gezinsleden
F89: Warmwasserverbrauch / Person | G89: Warmwasserverbrauch / Person | H89: Warmwasserverbrauch / Person | I89: Warmwasserverbrauch / Person | J89: DHW consumption / person | K89: Käyttöveden kulutus/henkilö | L89: Spotřeba teplé vody / osobu | M89: Varmtvandsforbrug pr. person | N89: Consumo di ACS / persona | O89: Zużycie CWU / osobę | P89: Warmwaterverbruik / persoon
F90: Heizlast-Fragen | G90: Heizlast-Fragen | H90: Heizlast-Fragen | I90: Heizlast-Fragen | J90: Heat load questions | K90: Lämpökuorma - kysymykset | L90: Tepelná ztráta -otázky | M90: Varmeeffekt-spørgsmål | N90: Domande sul carico termico | O90: Pytania do obciążenia grzewczego | P90: Warmteverlies vragen
F91: Ölverbrauch pro Jahr | G91: Ölverbrauch pro Jahr | H91: Ölverbrauch pro Jahr | I91: Ölverbrauch pro Jahr | J91: Oil consumption per year | K91: Öljyn kulutus vuodessa | L91: Spotřeba oleje za rok | M91: Olie forbrug pr. år | N91: Consumo annuo di gasolio | O91: Roczne zużycie oleju opałowego | P91: Stookolie verbruik per jaar
F92: Personenzahl WW | G92: Personenzahl WW | H92: Personenzahl WW | I92: Personenzahl WW | J92: Number of occupants for DHW | K92: Käyttöveden kuluttujat | L92: Počet osob na TUV | M92: Antal forbrugere af varmtvand | N92: Numero di occupanti per ACS | O92: Ilość użytkowników CWU | P92: Aantal personen t.b.v. warmwater
F93: Vollbenutzung | G93: Vollbenutzung | H93: Vollbenutzung | I93: Vollbenutzung | J93: Full utilisation | K93: Käyntiaika | L93: Plné využití | M93: Fuld udnyttelse | N93: Utilizzo a pieno carico | O93: Pełne użytkowanie | P93: Volle bezetting
F94: Jahres-Nutzungsgrad | G94: Jahres-Nutzungsgrad | H94: Jahres-Nutzungsgrad | I94: Jahres-Nutzungsgrad | J94: Seasonal efficiency | K94: Vuosittainen hyötysuhde | L94: Roční stupeň využití | M94: Års-effektivitet | N94: Efficienza stagionale | O94: Roczny stopień wykorzystania | P94: Jaarlijkse benutting
F95: Gasverbrauch pro Jahr | G95: Gasverbrauch pro Jahr | H95: Gasverbrauch pro Jahr | I95: Gasverbrauch pro Jahr | J95: Gas consumption per year | K95: Kaasun kulutus per vuosi | L95: Spotřeba plynu za rok | M95: Gas forbrug pr. år | N95: Consumo annuo di gas | O95: Roczne zużycie gazu | P95: Gasverbruik per jaar
F96: Holzsorte | G96: Holzsorte | H96: Holzsorte | I96: Holzsorte | J96: Type of wood | K96: Puulaji | L96: Druh dřeva | M96: Træ type | N96: Tipo di legna | O96: Gatunek drewna | P96: Houtsoort
F97: Holzverbrauch / Jahr | G97: Holzverbrauch / Jahr | H97: Holzverbrauch / Jahr | I97: Holzverbrauch / Jahr | J97: Wood consumption / year | K97: Puun kulutus vuodessa | L97: Spotřeba dřeva / rok | M97: Træ forbrug pr. år | N97: Consumo annuo di legna | O97: Zużycie drewna / rok | P97: Houtverbruik / Jaar
F98: Wärmeschutz Gebäude | G98: Wärmeschutz Gebäude | H98: Wärmeschutz Gebäude | I98: Wärmeschutz Gebäude | J98: Heat insulation of building | K98: Rakennuksen lämmöneristys | L98: Tepelná ochrana budovy | M98: Termisk isolering af bygning | N98: Isolamento termico dell'edificio | O98: Izolacja cieplna budynku | P98: Woningisolatie
F99: Beheizte Wohnfläche | G99: Beheizte Wohnfläche | H99: Beheizte Wohnfläche | I99: Beheizte Wohnfläche | J99: Heated living space | K99: Lämmitettävä pinta-ala | L99: Vytápěná obytná plocha | M99: Opvarmet boligareal | N99: Superficie riscaldata dell'abitazione | O99: Ogrzewana powierzchnia mieszkalna | P99: Verwarmd woonoppervlak
F100: Lüftung-Fragen | G100: Lüftung-Fragen | H100: Lüftung-Fragen | I100: Lüftung-Fragen | J100: Ventilation questions | K100: Ilmanvaihto - kysymykset | L100: Větrání - otázky | M100: Ventilations-spørgsmål | N100: Domande di ventilazione | O100: Pytania do wentylacji | P100: Ventilatie vragen
F101: Zulufttemperatur | G101: Zulufttemperatur | H101: Zulufttemperatur | I101: Zulufttemperatur | J101: Ventilation air temperature | K101: Tuloilman lämpötila | L101: Teplota přiváděného vzduchu | M101: Indblæsningslufttemperatur | N101: Temperatura aria di ventilazione | O101: Temperatura powietrza doprowadzanego | P101: Luchttoevoer
F102: Raumtemperatur | G102: Raumtemperatur | H102: Raumtemperatur | I102: Raumtemperatur | J102: Room temperature | K102: Huonelämpötila | L102: Teplota místnosti | M102: Rumtemperatur | N102: Temperatura ambiente | O102: Temperatura pomieszczenia | P102: Ruimtetemperatuur
F103: Raumfläche | G103: Raumfläche | H103: Raumfläche | I103: Raumfläche | J103: Room area | K103: Pinta-ala | L103: Plocha místnosti | M103: Rumareal | N103: Superficie stanza | O103: Powierzchnia pomieszczenia | P103: Woonruimte
F104: Mittlere Raumhöhe | G104: Mittlere Raumhöhe | H104: Mittlere Raumhöhe | I104: Mittlere Raumhöhe | J104: Average room height | K104: Keskimääräinen huoneen korkeus | L104: Střední výška místnosti | M104: Gennemsnitlig rumhøjde | N104: Altezza media stanza | O104: Średnia wysokość pomieszczenia | P104: Gemiddelde hoogte van de ruimte
F105: Luftwechsel | G105: Luftwechsel | H105: Luftwechsel | I105: Luftwechsel | J105: Air change rate | K105: Ilmanvaihtokerroin | L105: Výměna vzduchu | M105: Luftskifte | N105: Tasso di ricambio dell'aria | O105: Wymiana powietrza | P105: Luchtverversing
F106: Heizlast Raum | G106: Heizlast Raum | H106: Heizlast Raum | I106: Heizlast Raum | J106: Room heat load | K106: Huoneen lämpökuorma | L106: Tepelná ztráta místnosti | M106: Varmebehov i rum | N106: Fabbisogno termico della stanza | O106: Obciążenie cieplne pomieszczenia | P106: Warmteverlies ruimte
F107: Ablufttemperatur | G107: Ablufttemperatur | H107: Ablufttemperatur | I107: Ablufttemperatur | J107: Extract air temperature | K107: Poistoilman lämpötila | L107: Teplota odpadního vzduchu | M107: Udsugningslufttemperatur | N107: Temperatura dell'aria estratta | O107: Temperatura powietrza zużytego | P107: Uitblaastemperatuur
F108: Außenlufttemperatur | G108: Außenlufttemperatur | H108: Außenlufttemperatur | I108: Außenlufttemperatur | J108: Outdoor air temperature | K108: Ulkoilman lämpötila | L108: Teplota venkovního vzduchu | M108: Udelufttemperatur | N108: Temperatura aria esterna | O108: Temperatura powietrza zewnętrznego | P108: Buitentemperatuur
F109: Leistungsaufnahme Ventilator | G109: Leistungsaufnahme Ventilator | H109: Leistungsaufnahme Ventilator | I109: Leistungsaufnahme Ventilator | J109: Fan power consumption | K109: Puhaltimen tehonkulutus | L109: Příkon ventilátoru | M109: Ventilator effekt | N109: Potenza assorbita dal ventilatore | O109: Pobór mocy wentylatora | P109: Opgenomen vermogen ventilator
F110: Geförderter Volumenstrom | G110: Geförderter Volumenstrom | H110: Geförderter Volumenstrom | I110: Geförderter Volumenstrom | J110: Required flow rate | K110: Vaadittu ilmavirta | L110: Potřebný objemový tok | M110: Ønsket volumenstrøm | N110: Portata richiesta | O110: Przenoszony strumień objętości | P110: Gewenste volumestroom
F111: Druckerhöhung Ventilator | G111: Druckerhöhung Ventilator | H111: Druckerhöhung Ventilator | I111: Druckerhöhung Ventilator | J111: Fan pressure increase | K111: Puhaltimen paineen nousu | L111: Nárůst tlaku ventilátoru | M111: Trykforøgelse ventilator | N111: Aumento di pressione dovuto al ventilatore | O111: Podniesienie ciśnienia wentylatora | P111: Drukverhoging ventilator
F112: Höhe des Raumes | G112: Höhe des Raumes | H112: Höhe des Raumes | I112: Höhe des Raumes | J112: Height of room | K112: Huoneen korkeus | L112: Výška místností | M112: Rumhøjde | N112: Altezza della stanza | O112: Wysokość pomieszczenia | P112: Hoogte van de ruimte
F113: Zuluftvolumenstrom | G113: Zuluftvolumenstrom | H113: Zuluftvolumenstrom | I113: Zuluftvolumenstrom | J113: Supply air flow rate | K113: Tuloilmavirta | L113: Přiváděný vzduch-objem.proud | M113: Indblæsningsluft volumenstrøm | N113: Portata dell'aria in immissione | O113: Strumień objętościowy powietrza doprowadzanego | P113: Volume luchttoevoer
F114: Höhe Kanal | G114: Höhe Kanal | H114: Höhe Kanal | I114: Höhe Kanal | J114: Height of duct | K114: Kanavan korkeus | L114: Výška kanálu | M114: Kanal højde | N114: Altezza del canale | O114: Wysokość kanału | P114: Kanaalhoogte
F115: Breite Kanal | G115: Breite Kanal | H115: Breite Kanal | I115: Breite Kanal | J115: Width of duct | K115: Kanavan leveys | L115: Šířka kanálu | M115: Kanal bredde | N115: Larghezza del canale | O115: Szerokość kanału | P115: Kanaalbreedte
F116: Fläche Querschnitt | G116: Fläche Querschnitt | H116: Fläche Querschnitt | I116: Fläche Querschnitt | J116: Area of cross-section | K116: Alueen poikkileikkaus | L116: Plocha příčný řez | M116: Tværsnitsareal | N116: Area della sezione trasversale | O116: Powierzchnia przekroju | P116: Doorsnede
F117: Umfang Querschnitt | G117: Umfang Querschnitt | H117: Umfang Querschnitt | I117: Umfang Querschnitt | J117: Circumference of cross-section | K117: Kehän poikkileikkaus | L117: Obvod příčný řez | M117: Omkreds af tværsnit | N117: Perimetro della sezione trasversale | O117: Obwód przekroju poprzecznego | P117: Omtrek van doorsnede
F118: Durchlauferhitzer - Fragen | G118: Durchlauferhitzer - Fragen | H118: Durchlauferhitzer - Fragen | I118: Durchlauferhitzer - Fragen | J118: Instantaneous water heater questions | K118: Vedenlämmitin - kysymyksiä | L118: Průtokový ohřívač - otázky | M118: Gennemstrømningsvandvarmer-spørgsmål | N118: Domande scaldaacqua istantanei | O118: Pytania do ogrzewacza przepływowego | P118: Doorstromer vragen
F119: Anschlussleistung | G119: Anschlussleistung | H119: Anschlussleistung | I119: Anschlussleistung | J119: Connected load | K119: Teho | L119: Instalovaný příkon | M119: Tilslutningseffekt | N119: Potenza elettrica disponibile | O119: Moc przyłączeniowa | P119: Aansluitvermogen
F120: Maximaler Durchfluss | G120: Maximaler Durchfluss | H120: Maximaler Durchfluss | I120: Maximaler Durchfluss | J120: Maximum flow rate | K120: Maksimitilavuusvirta | L120: Maximální průtok | M120: Maksimal volumenstrøm | N120: Portata massima | O120: Maks. przepływ | P120: maximale doorstroming
F121: Bauart Durchlauferhitzer | G121: Bauart Durchlauferhitzer | H121: Bauart Durchlauferhitzer | I121: Bauart Durchlauferhitzer | J121: Type of instantaneous water heater | K121: Vedenlämmittimen tyyppi | L121: Druh konstrukce průtokového ohřívače | M121: Type gennemstrømningsvandvarmer | N121: Tipo di scalda acqua istantaneo | O121: Typ przepływowego ogrzewacza wody | P121: Soort doorstromer
F122: Duschdauer | G122: Duschdauer | H122: Duschdauer | I122: Duschdauer | J122: Showering time | K122: Suihkuaika | L122: Trvání sprchování | M122: Brusebadstid | N122: Durata di una doccia | O122: Czas pojedyńczego prysznica | P122: Douchetijd
F123: Leistungsgröße | G123: Leistungsgröße | H123: Leistungsgröße | I123: Leistungsgröße | J123: Output size | K123: Teho | L123: Velikost výkonu | M123: Ydelse | N123: Potenza scaldaacqua | O123: Wielkość mocy | P123: Vermogen
F124: Kosten Frisch- und Abwasser | G124: Kosten Frisch- und Abwasser | H124: Kosten Frisch- und Abwasser | I124: Kosten Frisch- und Abwasser | J124: Cost of fresh and waste water | K124: Tuoreen veden ja jäteveden kustannukset | L124: Náklady na vodu vodné/stočné | M124: Udgifter til frisk og spildevand | N124: Costo dell'acqua potabile | O124: Koszt wody i kanalizacji | P124: Kosten tap-en afvalwater
F125: Stromkosten | G125: Stromkosten | H125: Stromkosten | I125: Stromkosten | J125: Cost of electricity | K125: Sähkön kustannukset | L125: Náklady na el.energii | M125: Udgifter til elektricitet | N125: Costo dell'energia elettrica | O125: Koszty energii elektrycznej | P125: Elektriciteitskosten
F126: Art der Duschbrause | G126: Art der Duschbrause | H126: Art der Duschbrause | I126: Art der Duschbrause | J126: Type of shower head | K126: Suihkuttimen tyyppi | L126: Druh sprchovací hlavice | M126: Type brugserhoved | N126: Tipo di doccia | O126: Rodzaj słuchawki prysznicowej | P126: Type douchekop
F127: Art der Badewanne | G127: Art der Badewanne | H127: Art der Badewanne | I127: Art der Badewanne | J127: Type of bath | K127: Kylpyammeen tyyppi | L127: Druh koupací vany | M127: Type badekar | N127: Tipo di vasca | O127: Rodzaj wanny łazienkowej | P127: Type bad
F128: =SUBSTITUTE(SUBSTITUTE(SUBSTITUTE(SUBSTITUTE(SUBSTITUTE(G128,"<Wert1>",A128),"<Wert2>",B128),"<Wert3>",C128),"<Wert4>",D128),"<Wert5>",E128) -> Elektronisch | G128: Elektronisch | H128: Elektronisch | I128: Elektronisch | J128: Electronic | K128: Sähköinen | L128: Elektronický | M128: Elektronisk | N128: Elettronico | O128: Elektroniczny | P128: Elektronisch
F129: Hydraulisch | G129: Hydraulisch | H129: Hydraulisch | I129: Hydraulisch | J129: Hydraulic | K129: Hydraulinen | L129: Hydraulický | M129: Hydraulisk | N129: Idraulico | O129: Hydrauliczny | P129: Hydraulisch
F130: Sparbrause (6 l/min) | G130: Sparbrause (6 l/min) | H130: Sparbrause (6 l/min) | I130: Sparbrause (6 l/min) | J130: Low flow shower head (6 l/min) | K130: Ekosuihku (6 l/min) | L130: Úsporná sprcha (6 l/min) | M130: Spare-bruserarmatur (6l/min) | N130: Doccia a basso flusso (6 l / min) | O130: Słuchawka prysznicowa oszczędnościowa (6 l/min) | P130: Spaardouchekop (6 l/min)
F131: Normalbrause (8 l/min) | G131: Normalbrause (8 l/min) | H131: Normalbrause (8 l/min) | I131: Normalbrause (8 l/min) | J131: Standard shower head (8 l/min) | K131: Normaali suihku (8 l/min) | L131: Normální sprcha (8 l/min) | M131: Standard-bruserarmatur (8l/min) | N131: Doccia a medio flusso (8 l / min) | O131: Słuchawka prysznicowa normalna (8 l/min) | P131: Standaard douchekop (8 l/min)
F132: Komfortbrause (10 l/min) | G132: Komfortbrause (10 l/min) | H132: Komfortbrause (10 l/min) | I132: Komfortbrause (10 l/min) | J132: Luxury shower head (10 l/min) | K132: Ylellinen suihku (10 l/min) | L132: Komfortní sprcha (10 l/min) | M132: Luksus-bruserarmatur (10l/min) | N132: Doccia ad elevato flusso (10 l / min) | O132: Słuchawka prysznicowa komfortowa (10 l/min) | P132: Luxe douchekop (10 l/min)
F133: Badewanne (140 l) | G133: Badewanne (140 l) | H133: Badewanne (140 l) | I133: Badewanne (140 l) | J133: Bath (140 l) | K133: Kylpyamme (140 l) | L133: Koupací vana (140 l) | M133: Badekar (140L) | N133: Vasca standard (140 l) | O133: Wanna (140 l) | P133: Bad (140 liter)
F134: Badewanne klein (100 l) | G134: Badewanne klein (100 l) | H134: Badewanne klein (100 l) | I134: Badewanne klein (100 l) | J134: Small bath (100 l) | K134: Pieni kylpyamme (100 l) | L134: Koupací vana malá (100 l) | M134: Lille Badekar ( 100L) | N134: Vasca piccola (100 l) | O134: Wanna mała (100 l) | P134: Klein bad (100 liter)
F135: Badewanne groß (200 l) | G135: Badewanne groß (200 l) | H135: Badewanne groß (200 l) | I135: Badewanne groß (200 l) | J135: Large bath (200 l) | K135: Suuri kylpyamme (200 l) | L135: Koupací vana velká (200 l) | M135: Stort badekar (200L) | N135: Vasca grande (200 l) | O135: Wanna duża (200 l) | P135: Groot bad (200 liter)
F136: Heizung-Fragen | G136: Heizung-Fragen | H136: Heizung-Fragen | I136: Heizung-Fragen | J136: Heating questions | K136: Lämmitys - kysymykset | L136: Vytápění - otázky | M136: Varme-spørgsmål | N136: Domande riscaldamento | O136: Pytania do ogrzewania | P136: Verwarmingsvragen
F137: Rohrart | G137: Rohrart | H137: Rohrart | I137: Rohrart | J137: Type of pipe | K137: Putkityyppi | L137: Druh potrubí | M137: Rørtype | N137: Tipo di tubo | O137: Rodzaj rur instalacyjnych | P137: Type leiding
F138: Nennweite | G138: Nennweite | H138: Nennweite | I138: Nennweite | J138: Nominal diameter | K138: Nimellishalkaisija | L138: Jmenovitá světlost | M138: Nominel diameter | N138: Diametro nominale | O138: Średnica znamionowa | P138: Nominale diameter
F139: Rohreinbauten | G139: Rohreinbauten | H139: Rohreinbauten | I139: Rohreinbauten | J139: Pipe fixtures | K139: Putkiliittimet | L139: Potrubí-vestavěné prvky | M139: Rørfittings | N139: Incidenza raccordi | O139: Złączki rur | P139: Leidingen
F140: Wassertemperatur | G140: Wassertemperatur | H140: Wassertemperatur | I140: Wassertemperatur | J140: Water temperature | K140: Veden lämpötila | L140: Teplota vody | M140: Vandtemperatur | N140: Temperatura dell'acqua | O140: Temperatura wody | P140: Water temperatuur
F141: Volumenstrom | G141: Volumenstrom | H141: Volumenstrom | I141: Volumenstrom | J141: Flow rate | K141: Tilavuusvirta | L141: Objemový tok | M141: Volumenflow | N141: Portata | O141: Strumień objętościowy | P141: Volumestroom
F142: Länge des Rohres | G142: Länge des Rohres | H142: Länge des Rohres | I142: Länge des Rohres | J142: Length of pipe | K142: Putken pituus | L142: Délka potrubí | M142: Rørlængde | N142: Lunghezza della tubazione | O142: Długość rur instalacyjnych | P142: Leidinglengte
F143: Druckverlust Rohrreibung | G143: Druckverlust Rohrreibung | H143: Druckverlust Rohrreibung | I143: Druckverlust Rohrreibung | J143: Pressure drop, pipe friction | K143: Painehäviö, putkistokitka | L143: Tlaková ztráta potrubí třením | M143: Tryktab, friktion i rør | N143: Perdita di carico, attrito del tubo | O143: Spadek ciśnienia w rurze instalacyjnej | P143: Drukverlies door wrijving in de leiding
F144: Druckverlust Einzelwiderstand | G144: Druckverlust Einzelwiderstand | H144: Druckverlust Einzelwiderstand | I144: Druckverlust Einzelwiderstand | J144: Pressure drop, single resistance | K144: Painehäviö, kertavastus | L144: Tlaková ztráta jednotlivý odpor | M144: Tryktab, enkelt modstand | N144: Perdita di carico, resistenza puntuale | O144: Spadek ciśnienia pojedynczego oporu | P144: Drukverlies
F145: Medium | G145: Medium | H145: Medium | I145: Medium | J145: Medium | K145: Keskimääräinen | L145: Médium | M145: Medie | N145: Fluido | O145: Nośnik | P145: Medium
F146: Strömung | G146: Strömung | H146: Strömung | I146: Strömung | J146: Flow | K146: Virtaus | L146: Proudění | M146: Flowhastighed | N146: Flusso | O146: Przepływ | P146: Stroming
F147: Temperatur | G147: Temperatur | H147: Temperatur | I147: Temperatur | J147: Temperature | K147: Lämpötila | L147: Teplota | M147: Temperatur | N147: Temperatura | O147: Temperatura | P147: Temperatuur
F148: Volumenstrom 1 | G148: Volumenstrom 1 | H148: Volumenstrom 1 | I148: Volumenstrom 1 | J148: Flow rate 1 | K148: Tilavuusvirta 1 | L148: Objemový tok 1 | M148: Volumenstrøm 1 | N148: Portata 1 | O148: Przepływ 1 | P148: Volumestroom 1
F149: Volumenstrom 2 | G149: Volumenstrom 2 | H149: Volumenstrom 2 | I149: Volumenstrom 2 | J149: Flow rate 2 | K149: Tilavuusvirta 2 | L149: Objemový tok 2 | M149: Volumenstrøm 2 | N149: Portata 2 | O149: Przepływ 2 | P149: Volumestroom 2
F150: Kvs-Wert | G150: Kvs-Wert | H150: Kvs-Wert | I150: Kvs-Wert | J150: Flow capacity | K150: Virtauskapasiteetti | L150: Hodnota kVS | M150: KvS-værdi | N150: Coefficiente di portata | O150: Współczynnik kvs | P150: Kvs-waarde
F151: Zeta-Wert | G151: Zeta-Wert | H151: Zeta-Wert | I151: Zeta-Wert | J151: Zeta value | K151: Zeta-arvo | L151: Hodnota dzeta | M151: Zeta værdi | N151: Valore Zeta | O151: Wartość Zeta | P151: Zeta-waarde
F152: Heizkörper | G152: Heizkörper | H152: Heizkörper | I152: Heizkörper | J152: Heating system | K152: Lämmitysjärjestelmä | L152: Topné těleso | M152: Varmesystem | N152: Sistema di riscaldamento | O152: Grzejniki | P152: Verwarmingssysteem
F153: Rücklauftemperatur | G153: Rücklauftemperatur | H153: Rücklauftemperatur | I153: Rücklauftemperatur | J153: Return temperature | K153: Paluuveden lämpötila | L153: Teplota vratného toku | M153: Returtemperatur | N153: Temperatura di ritorno | O153: Temperatura powrotu | P153: Retourtemperatuur
F154: Innentemperatur | G154: Innentemperatur | H154: Innentemperatur | I154: Innentemperatur | J154: Internal temperature | K154: Sisäinen lämpötila | L154: Vnitřní teplota | M154: Interntemperatur | N154: Temperatura interna | O154: Temperatura wewnętrzna | P154: Binnentemperatuur
F155: Wärmeleistung | G155: Wärmeleistung | H155: Wärmeleistung | I155: Wärmeleistung | J155: Heating output | K155: Lämmitysteho | L155: Tepelný výkon | M155: Varmeeffekt | N155: Potenza di riscaldamento | O155: Moc cieplna | P155: Verwarmingsvermogen
F156: Heizflächenart | G156: Heizflächenart | H156: Heizflächenart | I156: Heizflächenart | J156: Type of heating surface | K156: Lämmitettävän pinnan tyyppi | L156: Druh výhřevné plochy | M156: Varmefladetype | N156: Tipo di superficie di riscaldamento | O156: Powierzchnia ogrzewana | P156: Type warmteafgifte
F157: Heizleistung | G157: Heizleistung | H157: Heizleistung | I157: Heizleistung | J157: Heating output | K157: Lämmitysteho | L157: Topný výkon | M157: Varmeeffekt | N157: Potenza di riscaldamento | O157: Moc grzewcza | P157: Verwarmingsvermogen
F158: Volumen Speicher | G158: Volumen Speicher | H158: Volumen Speicher | I158: Volumen Speicher | J158: Cylinder volume | K158: Varaajan tilavuus | L158: Objem nádrže | M158: Beholdervolumen | N158: Volume dell' accumulo | O158: Pojemność zasobnika | P158: Inhoud buffervat
F159: Statische Höhe | G159: Statische Höhe | H159: Statische Höhe | I159: Statische Höhe | J159: Static head | K159: Staattinen korkeus | L159: Statická výška | M159: Statisk højde | N159: Colonna statica | O159: Wysokość statyczna | P159: Statische hoogte
F160: Sicherheitsventil | G160: Sicherheitsventil | H160: Sicherheitsventil | I160: Sicherheitsventil | J160: Safety valve | K160: Varoventtiili | L160: Pojistný ventil | M160: Sikkerhedsventil | N160: Valvola di sicurezza | O160: Zawór bezpieczeństwa | P160: Veiligheidsventiel
F161: 30 % (Empfehlung) | G161: 30 % (Empfehlung) | H161: 30 % (Empfehlung) | I161: 30 % (Empfehlung) | J161: 30 % (recommendation) | K161: 30 % (oletusarvo) | L161: 30 % (doporučeno) | M161: 30% (anbefalet) | N161: 30% (raccomandato) | O161: 30 % (zalecenie) | P161: 30% (voorkeur)
F162: ohne Einbauten | G162: ohne Einbauten | H162: ohne Einbauten | I162: ohne Einbauten | J162: No fixtures | K162: Ei kiinnikkeitä | L162: bez vestavěných prvků | M162: Uden interne dele | N162: Nessun raccordo | O162: Bez złączek | P162: zonder armaturen
F163: Kupferrohr | G163: Kupferrohr | H163: Kupferrohr | I163: Kupferrohr | J163: Copper pipe | K163: Kupariputki | L163: Měděná trubka | M163: Kobberrør | N163: Tubazione di rame | O163: Rura miedziana | P163: Koperen leiding
F164: PE-Rohr | G164: PE-Rohr | H164: PE-Rohr | I164: PE-Rohr | J164: PE pipe | K164: PE-putki | L164: PE-trubka | M164: PE-rør | N164: Tupo in PE | O164: Rura z tworzywa sztucznego | P164: Kunststof leiding
F165: Gewinderohr | G165: Gewinderohr | H165: Gewinderohr | I165: Gewinderohr | J165: Threaded pipe | K165: Teräsputki | L165: Závitová trubka | M165: Gevindrør | N165: Tubo filettato | O165: Rura gwintowana | P165: Spiraalbuis
F166: Wickelfalzrohr | G166: Wickelfalzrohr | H166: Wickelfalzrohr | I166: Wickelfalzrohr | J166: Folded spiral-seam tube | K166: Taitettu kierre-saumaputki | L166: Vinutá trubka s lemem | M166: Spirorør | N166: Tubo spiralato | O166: Rura płaszczowa zwijana | P166: Wikkelbuis
F167: Wasser | G167: Wasser | H167: Wasser | I167: Wasser | J167: Water | K167: Vesi | L167: Voda | M167: Vand | N167: Acqua | O167: Woda | P167: Water
F168: Luft | G168: Luft | H168: Luft | I168: Luft | J168: Air | K168: Ilma | L168: Vzduch | M168: Luft | N168: Aria | O168: Powietrze | P168: Lucht
F169: Fußbodenheizung | G169: Fußbodenheizung | H169: Fußbodenheizung | I169: Fußbodenheizung | J169: Underfloor heating system | K169: Lattialämmitysjärjestelmä | L169: Podlahové vytápění | M169: Gulvvarme | N169: Sistema di riscaldamento a pavimento | O169: Ogrzewanie podłogowe | P169: Vloerverwarming
F170: Plattenheizkörper | G170: Plattenheizkörper | H170: Plattenheizkörper | I170: Plattenheizkörper | J170: Panel radiators | K170: Pintasäteilylämmitin | L170: Desková topná tělesa | M170: Panelradiator | N170: Pannelli Radianti | O170: Grzejniki płytowe | P170: Paneelradiator
F171: Rippenrohre | G171: Rippenrohre | H171: Rippenrohre | I171: Rippenrohre | J171: Finned tubes | K171: Ripaputket | L171: Žebrová trubka | M171: Ripperør | N171: Tubi alettati | O171: Rury żebrowane | P171: Ribbenbuis
F172: Radiatoren | G172: Radiatoren | H172: Radiatoren | I172: Radiatoren | J172: Radiators | K172: Patterit | L172: Radiátory | M172: Radiatorer | N172: Radiatori | O172: Promienniki ciepła | P172: Radiatoren
F173: Konvektoren | G173: Konvektoren | H173: Konvektoren | I173: Konvektoren | J173: Convectors | K173: Konvektorit | L173: Konvektory | M173: konvektorer | N173: Convettori | O173: Konwektory | P173: Convectoren
F174: Lüftung | G174: Lüftung | H174: Lüftung | I174: Lüftung | J174: Ventilation | K174: Ilmanvaihto | L174: Větrání | M174: Ventilation | N174: Ventilazione | O174: Wentylacja | P174: Ventilatie
F175: Klima-Fragen | G175: Klima-Fragen | H175: Klima-Fragen | I175: Klima-Fragen | J175: Air conditioning questions | K175: Ilmastointi - kysymykset | L175: Klimatizace - otázky | M175: Air condition spørgsmål | N175: Domande Aria condizionata | O175: Pytania do klimatyzacji | P175: Airco vragen
F176: Oberflächentemp. | G176: Oberflächentemp. | H176: Oberflächentemp. | I176: Oberflächentemp. | J176: Surface temp. | K176: Pintalämpötila | L176: Povrchová teplota | M176: Overfladetemperatur | N176: Temperatura superficiale | O176: Temperatura powierzchni | P176: Oppervlakte temperatuur
F177: Rel. Luftfeuchte | G177: Rel. Luftfeuchte | H177: Rel. Luftfeuchte | I177: Rel. Luftfeuchte | J177: Rel. humidity | K177: Suhteellinen kosteus | L177: Rel. vlhkost vzduchu | M177: Rel. Luftfugtighed | N177: Umidità Relativa | O177: Wilgotność względna | P177: Relatieve vochtigheid
F178: Raumtyp | G178: Raumtyp | H178: Raumtyp | I178: Raumtyp | J178: Room type | K178: Jäähdytettävä tila | L178: Typ prostoru | M178: Rumtype | N178: Tipo di stanza | O178: Typ pomieszczenia | P178: Kamer type
F179: Raumhöhe | G179: Raumhöhe | H179: Raumhöhe | I179: Raumhöhe | J179: Room height | K179: Tilan korkeus | L179: Výška místnosti | M179: Rumhøjde | N179: Altezza stanza | O179: Wysokość pomieszczenia | P179: Kamer hoogte
F180: Volumenstrom des Gerätes | G180: Volumenstrom des Gerätes | H180: Volumenstrom des Gerätes | I180: Volumenstrom des Gerätes | J180: Flow rate of appliance | K180: Laitteen tilavuusvirta | L180: Objemový tok přístroje | M180: Volumenstrøm fra enheden | N180: Portata dell'applicazione | O180: Przepływ przez urzadzenie | P180: Volumestroom van het apparaat
F181: Luftvolumenstrom | G181: Luftvolumenstrom | H181: Luftvolumenstrom | I181: Luftvolumenstrom | J181: Air flow rate | K181: Ilman tilavuusvirta | L181: Objem. tok vzduchu | M181: Luftvolumenstrøm | N181: Portata d'aria | O181: Przepływ powietrza | P181: Luchtvolumestroom
F182: Rel. Luftfeuchte vor Kühler | G182: Rel. Luftfeuchte vor Kühler | H182: Rel. Luftfeuchte vor Kühler | I182: Rel. Luftfeuchte vor Kühler | J182: Rel. humidity upstream of cooling coil | K182: Suht.kosteus ennen jäähdytintä | L182: Rel.vlhkost vzduchu před chladičem | M182: Rel. Luftfugtighed før køleflade | N182: Umidità relativa a monte della batteria di raffrescamento | O182: Wilgotność względna przed chłodnicą | P182: Relatieve vochtigheid van koelblok
F183: Temperatur vor Kühler | G183: Temperatur vor Kühler | H183: Temperatur vor Kühler | I183: Temperatur vor Kühler | J183: Temperature upstream of cooling coil | K183: Lämpötila ennen jäähdytintä | L183: Teplota před chladičem | M183: Temperatur før køleflade | N183: Temperatura a monte della batteria di raffrescamento | O183: Temperatura przed chłodnicą | P183: Temperatuur voor koelblok
F184: Temperatur nach Kühler | G184: Temperatur nach Kühler | H184: Temperatur nach Kühler | I184: Temperatur nach Kühler | J184: Temperature downstream of cooling coil | K184: Lämpötila jäähdyttimen jälkeen | L184: Teplota za chladičem | M184: Temperatur efter køleflade | N184: Temperatura a valle della batteria di raffrescamento | O184: Temperatura za chłodnicą | P184: Temperatuur na koelblok
F185: Einheiten/Kennwerte-Fragen | G185: Einheiten/Kennwerte-Fragen | H185: Einheiten/Kennwerte-Fragen | I185: Einheiten/Kennwerte-Fragen | J185: Units / parameters questions | K185: Yksiköt/parametrit - kysymyksiä | L185: Jednotky/charakter.hodnoty - otázky | M185: Enheder / Parameter spørgsmål | N185: Unità / Parametri domande | O185: Pytania do jednostek / parametrów | P185: Eenheden / parameter vragen
F186: =SUBSTITUTE(SUBSTITUTE(SUBSTITUTE(SUBSTITUTE(SUBSTITUTE(G186,"<Wert1>",A186),"<Wert2>",B186),"<Wert3>",C186),"<Wert4>",D186),"<Wert5>",E186) -> Dieser Wert soll umgerechnet werden | G186: Dieser Wert soll umgerechnet werden | H186: Dieser Wert soll umgerechnet werden | I186: Dieser Wert soll umgerechnet werden | J186: This value is to be converted | K186: Muunnettava arvo ja yksikkö | L186: Hodnota k přepočtu | M186: Denne værdi skal konverteres | N186: Tale valore deve essere convertito | O186: Wartość musi być przeliczona | P186: Deze waarde moet omgerekend worden
F187: Der umgerechnete Wert beträgt | G187: Der umgerechnete Wert beträgt | H187: Der umgerechnete Wert beträgt | I187: Der umgerechnete Wert beträgt | J187: The converted value is | K187: Muunnetaan yksikköön | L187: Přepočítaná hodnota je | M187: Den konverterede værdi er | N187: Il valore convertito è | O187: Przeliczona wartość wynosi | P187: De omgerekende waarde bedraagt
F188: Gewünschte Einheit | G188: Gewünschte Einheit | H188: Gewünschte Einheit | I188: Gewünschte Einheit | J188: Required unit | K188: Haluttu yksikkö | L188: Požadovaná jednotka | M188: Ønsket enhed | N188: Unità di misura richiesta | O188: Żądana jednostka | P188: Gewenste eenheid
F189: Spezifische Wärmekapazität Wasser | G189: Spezifische Wärmekapazität Wasser | H189: Spezifische Wärmekapazität Wasser | I189: Spezifische Wärmekapazität Wasser | J189: Specific thermal capacity of water | K189: Veden ominaislämpökapasiteetti | L189: Specifická tepelná kapacita vody | M189: Specifik varmekapacitet vand | N189: Capacità termica specifica dell'acqua | O189: Ciepło właściwe wody | P189: Specifieke warmtecapaciteit water
F190: Spezifische Wärmekapazität Luft | G190: Spezifische Wärmekapazität Luft | H190: Spezifische Wärmekapazität Luft | I190: Spezifische Wärmekapazität Luft | J190: Specific thermal capacity of air | K190: Ilman ominaislämpökapasiteetti | L190: Specifická tepelná kapacita vzduchu | M190: Specifik varmekapacitet luft | N190: Capacità termica specifica dell'aria | O190: Ciepło właściwe powietrza | P190: Specifieke warmtecapaciteit lucht
F191: Mittlere Dichte von Wasser | G191: Mittlere Dichte von Wasser | H191: Mittlere Dichte von Wasser | I191: Mittlere Dichte von Wasser | J191: Average density of water | K191: Veden keskimääräinen tiheys | L191: Střední hustota vody | M191: Gennemsnitlig vanddensitet | N191: Densità media dell'acqua | O191: Średnia gęstość wody | P191: Gemiddelde dichtheid van water
F192: Mittlere Dichte von Luft | G192: Mittlere Dichte von Luft | H192: Mittlere Dichte von Luft | I192: Mittlere Dichte von Luft | J192: Average density of air | K192: Ilman keskimääräinen tiheys | L192: Střední hustota vzduchu | M192: Gennemsnitlig luftdensitet | N192: Densità media dell'aria | O192: Średnia gęstość powietrza | P192: Gemiddelde dichtheid van lucht
F193: CO2-Faktor Strom | G193: CO2-Faktor Strom | H193: CO2-Faktor Strom | I193: CO2-Faktor Strom | J193: CO2 factor of electricity | K193: Sähkön CO2-kerroin | L193: CO2-faktor el.energie | M193: CO2 faktor strøm | N193: Fattore CO2 dell'energia elettrica | O193: Współczynnik CO2 energii elektrycznej | P193: CO2-factor stroom
F194: CO2-Faktor Öl | G194: CO2-Faktor Öl | H194: CO2-Faktor Öl | I194: CO2-Faktor Öl | J194: CO2 factor of oil | K194: Öljyn CO2-kerroin | L194: CO2-faktor olej | M194: CO2 faktor Olie | N194: Fattore CO2 del gasolio | O194: Współczynnik CO2 - oleju opałowego | P194: CO2-factor stookolie
F195: CO2-Faktor Gas | G195: CO2-Faktor Gas | H195: CO2-Faktor Gas | I195: CO2-Faktor Gas | J195: CO2 factor of gas | K195: Kaasun CO2-kerroin | L195: CO2-faktor plyn | M195: CO2 faktor Gas | N195: Fattore CO2 del gas | O195: Współczynnik CO2 - gazu | P195: CO2-factor gas
F196: Primärenergiefaktor Strommix | G196: Primärenergiefaktor Strommix | H196: Primärenergiefaktor Strommix | I196: Primärenergiefaktor Strommix | J196: Electricity mix primary energy factor | K196: Primäärienergianlähde sähköntuotannossa | L196: Faktor primární energie mix el.nergie | M196: Primær energifaktor elmix | N196: Fattore energia primaria per energia elettrica | O196: Współ. energii pierwotnej - energia elektr. | P196: Primaire energiefacor elektriciteit
F197: Primärenergiefaktor Öl/Gas | G197: Primärenergiefaktor Öl/Gas | H197: Primärenergiefaktor Öl/Gas | I197: Primärenergiefaktor Öl/Gas | J197: Oil/gas primary energy factor | K197: Öljyn/kaasun primäärienergianlähde | L197: Primární energie-faktor olej/plyn | M197: Olie/Gas primær energifaktor | N197: Fattore energia primaria per gasolio/gas | O197: Współ. energii pierwotnej - olej opałowy / gaz | P197: Primaire energiefacor Olie/Gas
F198: Auswahl Energieträger | G198: Auswahl Energieträger | H198: Auswahl Energieträger | I198: Auswahl Energieträger | J198: Selection of fuel type | K198: Polttoainetyyppi | L198: Volba nositele energie | M198: Valgt brændstoftype | N198: Selezione del tipo di combustibile | O198: Wybór nośnika energii | P198: Selectie van energiebron
F199: Alle Preisangaben sind Richtwerte und unterliegen regionalen und saisonalen Schwankungen. Der Brennwert von Holz ist abhängig von der gewählten Sorte. | G199: Alle Preisangaben sind Richtwerte und unterliegen regionalen und saisonalen Schwankungen. Der Brennwert von Holz ist abhängig von der gewählten Sorte. | H199: Alle Preisangaben sind Richtwerte und unterliegen regionalen und saisonalen Schwankungen. Der Brennwert von Holz ist abhängig von der gewählten Sorte. | I199: Alle Preisangaben sind Richtwerte und unterliegen regionalen und saisonalen Schwankungen. Der Brennwert von Holz ist abhängig von der gewählten Sorte. | J199: All prices are standard values and are subject to regional and seasonal fluctuations. The gross calorific value of wood depends on the type selected. | K199: Kaikki hinnat ovat vakioita ja niitä sovelletaan alueellisiin ja kausittaisiin vaihteluihin. Puun bruttolämpöarvo riippuu valitusta lajista. | L199: Všechny údaje o ceně jsou směrné hodnoty a podléhají regionálním a sezonním výkyvům. | M199: Alle Priser er standard værdier. Der tages forbehold for regionale- og sæsonudsving. | N199: Tutti i prezzi sono valori indicativi e sono soggetti a fluttuazioni regionali e stagionali. Il potere calorifico superiore del legno dipende dal tipo selezionato. | O199: Podane ceny są orientacyjne i mogą ulec zmianom regionalnym i sezonowym. Wartość opałowa drewna zależy od wybranego gatunku. | P199: Alle prijzen zijn richtprijzen en zijn onderhevig aan regionale en seizoens afwijkingen. De verbrandingswaarde van hout is afghankelijk van de gekozen soort
F200: Benötigte Energiemenge Warmwasser | G200: Benötigte Energiemenge Warmwasser | H200: Benötigte Energiemenge Warmwasser | I200: Benötigte Energiemenge Warmwasser | J200: Required amount of energy for DHW | K200: Vaadittu energiamäärä käyttövedentuotannossa | L200: Potřebné množství energie na teplou vodu | M200: Nødvendig energi til opvarmning af varmtvand | N200: Quantità necessaria di energia per ACS | O200: Wymagana ilość energii CWU | P200: Benodigde energie hoeveelheid voor warmwater
F201: Warmwasserbedarf | G201: Warmwasserbedarf | H201: Warmwasserbedarf | I201: Warmwasserbedarf | J201: DHW demand | K201: Käyttöveden kysyntä | L201: Potřeba teplé vody. | M201: Varmtvandsbehov | N201: Fabbisogno di acqua calda | O201: Zapotrzebowanie CWU | P201: Warmwater behoefte
F202: Heizlast für Neubauten nach EnEV | G202: Heizlast für Neubauten nach EnEV | H202: Heizlast für Neubauten nach EnEV | I202: Heizlast für Neubauten nach EnEV | J202: Heat load for new buildings acc. to EnEV | K202: Uusien rakennusten lämpökuormat | L202: Tepelná ztráta pro novostavby dle EnEV | M202: Varmebehov for nye bygninger i henhold til EnEV | N202: Carico termico per nuovi edifici secondo EnEV | O202: Obciążenie grzew. nowego budynku wg niemieckiej ustawy o oszczędności energetycznej budynków | P202: Warmteverlies voor nieuwbouw volgens EnEV
... 397 more rows

Sheet DatenHeizkoerper (hidden)
A2: Index Heizkörper | B2: Bauhöhe [mm] | C2: Typ/Säulen | D2: Schlüssel | E2: Normleistung [W/m bzw.Glied] | F2: Heizkörperexponent | H2: VL-Temp | I2: RL-Temp. | J2: RaumTemp. | K2: Index | L2: Heizkörper | M2: Bautyp | N2: Anzahl Säulen | O2: Höhe Flachheizkörper [mm] | P2: Höhe Gusradiatoren [mm] | Q2: Höhe Stahlradiatoren [mm] | R2: Höhe Stahrrohrradiatoren [mm] | S2: Schlüssel | T2: Baulänge [mm] | U2: Anzahl Glieder
H3: 20 | I3: 20 | J3: 15 | K3: =INDEX(K4:K8,MATCH(L3,L4:L8,0)) -> 1 | L3: Flachheizkörper profiliert | M3: 10 | N3: 6 | O3: 350 | S3: =IF(OR(L3=L4,L3=L5),S4,S5) -> 135010 | T3: 400 | U3: 5
A4: 1 | B4: 350 | C4: 10 | D4: =A4&B4&C4 -> 135010 | E4: 436 | F4: 1.25 | H4: 20 | I4: 20 | J4: 15 | K4: 1 | L4: =Translation!F437 -> Flachheizkörper profiliert | M4: 10 | N4: 2 | O4: 350 | P4: 280 | Q4: 300 | R4: 190 | S4: =K3&O3&M3 -> 135010 | T4: 400 | U4: 5
A5: 1 | B5: 350 | C5: 11 | D5: =A5&B5&C5 -> 135011 | E5: 605 | F5: 1.25 | H5: 21 | I5: 21 | J5: 16 | K5: 2 | L5: =Translation!F438 -> Flachheizkörper glatt | M5: 11 | N5: 3 | O5: 500 | P5: 430 | Q5: 450 | R5: 260 | S5: =K3&O3&N3 -> 13506 | T5: 500 | U5: 6
A6: 1 | B6: 350 | C6: 21 | D6: 135021 | E6: 915 | F6: 1.27 | H6: 22 | I6: 22 | J6: 17 | K6: 3 | L6: =Translation!F439 -> Gussradiator | M6: 21 | N6: 4 | O6: 600 | P6: 580 | Q6: 600 | R6: 300 | T6: 600 | U6: 7
A7: 1 | B7: 350 | C7: 22 | D7: 135022 | E7: 1102 | F7: 1.28 | H7: 23 | I7: 23 | J7: 18 | K7: 4 | L7: =Translation!F440 -> Stahlradiator | M7: 22 | N7: 5 | O7: 900 | P7: 680 | Q7: 1000 | R7: 400 | T7: 700 | U7: 8
A8: 1 | B8: 350 | C8: 33 | D8: 135033 | E8: 1566 | F8: 1.3 | H8: 24 | I8: 24 | J8: 19 | K8: 5 | L8: =Translation!F441 -> Stahlrohrradiator | M8: 33 | N8: 6 | P8: 980 | R8: 500 | T8: 720 | U8: 9
A9: 1 | B9: 500 | C9: 10 | D9: 150010 | E9: 586 | F9: 1.25 | H9: 25 | I9: 25 | J9: 20 | R9: 600 | T9: 800 | U9: 10
A10: 1 | B10: 500 | C10: 11 | D10: 150011 | E10: 808 | F10: 1.27 | H10: 26 | I10: 26 | J10: 21 | N10: 2 | R10: 750 | T10: 900 | U10: 11
A11: 1 | B11: 500 | C11: 21 | D11: 150021 | E11: 1212 | F11: 1.3 | H11: 27 | I11: 27 | J11: 22 | N11: 4 | R11: 900 | T11: 920 | U11: 12
A12: 1 | B12: 500 | C12: 22 | D12: 150022 | E12: 1461 | F12: 1.29 | H12: 28 | I12: 28 | J12: 23 | N12: 5 | R12: 1000 | T12: 1000 | U12: 13
A13: 1 | B13: 500 | C13: 33 | D13: 150033 | E13: 2124 | F13: 1.31 | H13: 29 | I13: 29 | J13: 24 | R13: 1200 | T13: 1120 | U13: 14
A14: 1 | B14: 600 | C14: 10 | D14: 160010 | E14: 683 | F14: 1.27 | H14: 30 | I14: 30 | J14: 25 | N14: 3 | R14: 1500 | T14: 1200 | U14: 15
A15: 1 | B15: 600 | C15: 11 | D15: 160011 | E15: 943 | F15: 1.28 | H15: 31 | I15: 31 | J15: 26 | N15: 5 | R15: 2000 | T15: 1320 | U15: 16
A16: 1 | B16: 600 | C16: 21 | D16: 160021 | E16: 1406 | F16: 1.3 | H16: 32 | I16: 32 | J16: 27 | R16: 2500 | T16: 1400 | U16: 17
A17: 1 | B17: 600 | C17: 22 | D17: 160022 | E17: 1694 | F17: 1.3 | H17: 33 | I17: 33 | J17: 28 | T17: 1600 | U17: 18
A18: 1 | B18: 600 | C18: 33 | D18: 160033 | E18: 2461 | F18: 1.31 | H18: 34 | I18: 34 | J18: 29 | T18: 1800 | U18: 19
A19: 1 | B19: 900 | C19: 10 | D19: 190010 | E19: 978 | F19: 1.29 | H19: 35 | I19: 35 | J19: 30 | T19: 2000 | U19: 20
A20: 1 | B20: 900 | C20: 11 | D20: 190011 | E20: 1345 | F20: 1.3 | H20: 36 | I20: 36 | T20: 2200 | U20: 21
A21: 1 | B21: 900 | C21: 21 | D21: 190021 | E21: 1961 | F21: 1.3 | H21: 37 | I21: 37 | T21: 2300 | U21: 22
A22: 1 | B22: 900 | C22: 22 | D22: 190022 | E22: 2355 | F22: 1.32 | H22: 38 | I22: 38 | T22: 2400 | U22: 23
A23: 1 | B23: 900 | C23: 33 | D23: 190033 | E23: 3315 | F23: 1.32 | H23: 39 | I23: 39 | T23: 2600 | U23: 24
A24: 2 | B24: 350 | C24: 10 | D24: 235010 | E24: 368 | F24: 1.25 | H24: 40 | I24: 40 | T24: 2800 | U24: 25
A25: 2 | B25: 350 | C25: 11 | D25: 235011 | E25: 531 | F25: 1.26 | H25: 41 | I25: 41 | T25: 3000 | U25: 26
A26: 2 | B26: 350 | C26: 21 | D26: 235021 | E26: 823 | F26: 1.29 | H26: 42 | I26: 42 | U26: 27
A27: 2 | B27: 350 | C27: 22 | D27: 235022 | E27: 1018 | F27: 1.28 | H27: 43 | I27: 43 | U27: 28
A28: 2 | B28: 350 | C28: 33 | D28: 235033 | E28: 1488 | F28: 1.29 | H28: 44 | I28: 44 | U28: 29
A29: 2 | B29: 500 | C29: 10 | D29: 250010 | E29: 500 | F29: 1.26 | H29: 45 | I29: 45 | U29: 30
A30: 2 | B30: 500 | C30: 11 | D30: 250011 | E30: 738 | F30: 1.28 | H30: 46 | I30: 46 | U30: 31
A31: 2 | B31: 500 | C31: 21 | D31: 250021 | E31: 1124 | F31: 1.29 | H31: 47 | I31: 47 | U31: 32
A32: 2 | B32: 500 | C32: 22 | D32: 250022 | E32: 1432 | F32: 1.29 | H32: 48 | I32: 48 | U32: 33
A33: 2 | B33: 500 | C33: 33 | D33: 250033 | E33: 1981 | F33: 1.3 | H33: 49 | I33: 49 | U33: 34
A34: 2 | B34: 600 | C34: 10 | D34: 260010 | E34: 588 | F34: 1.26 | H34: 50 | I34: 50 | U34: 35
A35: 2 | B35: 600 | C35: 11 | D35: 260011 | E35: 869 | F35: 1.29 | H35: 51 | I35: 51 | U35: 36
A36: 2 | B36: 600 | C36: 21 | D36: 260021 | E36: 1318 | F36: 1.29 | H36: 52 | I36: 52 | U36: 37
A37: 2 | B37: 600 | C37: 22 | D37: 260022 | E37: 1683 | F37: 1.29 | H37: 53 | I37: 53 | U37: 38
A38: 2 | B38: 600 | C38: 33 | D38: 260033 | E38: 2303 | F38: 1.3 | H38: 54 | I38: 54 | U38: 39
A39: 2 | B39: 900 | C39: 10 | D39: 290010 | E39: 847 | F39: 1.28 | H39: 55 | I39: 55 | U39: 40
A40: 2 | B40: 900 | C40: 11 | D40: 290011 | E40: 1199 | F40: 1.3 | H40: 56 | I40: 56 | U40: 41
A41: 2 | B41: 900 | C41: 21 | D41: 290021 | E41: 1843 | F41: 1.33 | H41: 57 | I41: 57 | U41: 42
A42: 2 | B42: 900 | C42: 22 | D42: 290022 | E42: 2269 | F42: 1.32 | H42: 58 | I42: 58 | U42: 43
A43: 2 | B43: 900 | C43: 33 | D43: 290033 | E43: 3232 | F43: 1.33 | H43: 59 | I43: 59 | U43: 44
A44: 3 | B44: 280 | C44: 6 | D44: 32806 | E44: 69 | F44: 1.3 | H44: 60 | I44: 60 | U44: 45
A45: 3 | B45: 430 | C45: 2 | D45: 34302 | E45: 41 | F45: 1.3 | H45: 61 | I45: 61 | U45: 46
A46: 3 | B46: 430 | C46: 3 | D46: 34303 | E46: 53 | F46: 1.3 | H46: 62 | I46: 62 | U46: 47
A47: 3 | B47: 430 | C47: 4 | D47: 34304 | E47: 70 | F47: 1.3 | H47: 63 | I47: 63 | U47: 48
A48: 3 | B48: 430 | C48: 5 | D48: 34305 | E48: 92 | F48: 1.3 | H48: 64 | I48: 64 | U48: 49
A49: 3 | B49: 580 | C49: 2 | D49: 35802 | E49: 51 | F49: 1.3 | H49: 65 | I49: 65 | U49: 50
A50: 3 | B50: 580 | C50: 3 | D50: 35803 | E50: 69 | F50: 1.3 | H50: 66 | I50: 66 | U50: 51
A51: 3 | B51: 580 | C51: 4 | D51: 35804 | E51: 95 | F51: 1.3 | H51: 67 | I51: 67 | U51: 52
A52: 3 | B52: 580 | C52: 5 | D52: 35805 | E52: 122 | F52: 1.3 | H52: 68 | I52: 68 | U52: 53
A53: 3 | B53: 680 | C53: 4 | D53: 36804 | E53: 111 | F53: 1.3 | H53: 69 | I53: 69 | U53: 54
A54: 3 | B54: 980 | C54: 2 | D54: 39802 | E54: 84 | F54: 1.3 | H54: 70 | I54: 70 | U54: 55
A55: 3 | B55: 980 | C55: 4 | D55: 39804 | E55: 154 | F55: 1.3 | H55: 71 | I55: 71 | U55: 56
A56: 3 | B56: 980 | C56: 5 | D56: 39805 | E56: 196 | F56: 1.3 | H56: 72 | I56: 72 | U56: 57
A57: 4 | B57: 300 | C57: 3 | D57: 43003 | E57: 38 | F57: 1.3 | H57: 73 | I57: 73 | U57: 58
A58: 4 | B58: 300 | C58: 5 | D58: 43005 | E58: 58 | F58: 1.3 | H58: 74 | I58: 74 | U58: 59
A59: 4 | B59: 450 | C59: 2 | D59: 44502 | E59: 42 | F59: 1.3 | H59: 75 | I59: 75 | U59: 60
A60: 4 | B60: 450 | C60: 3 | D60: 44503 | E60: 56 | F60: 1.3 | H60: 76 | I60: 76
A61: 4 | B61: 450 | C61: 4 | D61: 44504 | E61: 75 | F61: 1.3 | H61: 77 | I61: 77
A62: 4 | B62: 600 | C62: 2 | D62: 46002 | E62: 55 | F62: 1.3 | H62: 78 | I62: 78
A63: 4 | B63: 600 | C63: 3 | D63: 46003 | E63: 75 | F63: 1.3 | H63: 79 | I63: 79
A64: 4 | B64: 600 | C64: 4 | D64: 46004 | E64: 96 | F64: 1.3 | H64: 80 | I64: 80
A65: 4 | B65: 1000 | C65: 2 | D65: 410002 | E65: 92 | F65: 1.3 | H65: 81 | I65: 81
A66: 4 | B66: 1000 | C66: 3 | D66: 410003 | E66: 118 | F66: 1.3 | H66: 82 | I66: 82
A67: 4 | B67: 1000 | C67: 4 | D67: 410004 | E67: 154 | F67: 1.3 | H67: 83 | I67: 83
A68: 5 | B68: 190 | C68: 2 | D68: 51902 | E68: 14 | F68: 1.3 | H68: 84 | I68: 84
A69: 5 | B69: 190 | C69: 3 | D69: 51903 | E69: 20 | F69: 1.3 | H69: 85 | I69: 85
A70: 5 | B70: 190 | C70: 4 | D70: 51904 | E70: 26 | F70: 1.3 | H70: 86 | I70: 86
A71: 5 | B71: 260 | C71: 2 | D71: 52602 | E71: 19 | F71: 1.3 | H71: 87 | I71: 87
A72: 5 | B72: 260 | C72: 3 | D72: 52603 | E72: 26 | F72: 1.3 | H72: 88 | I72: 88
A73: 5 | B73: 260 | C73: 4 | D73: =A73&B73&C73 -> 52604 | E73: 33 | F73: 1.3 | H73: 89 | I73: 89
A74: 5 | B74: 260 | C74: 5 | D74: 52605 | E74: 42 | F74: 1.3 | H74: 90 | I74: 90
A75: 5 | B75: 260 | C75: 6 | D75: 52606 | E75: 47 | F75: 1.3
A76: 5 | B76: 300 | C76: 2 | D76: 53002 | E76: 22 | F76: 1.3
A77: 5 | B77: 300 | C77: 3 | D77: 53003 | E77: 31 | F77: 1.3
A78: 5 | B78: 300 | C78: 4 | D78: 53004 | E78: 40 | F78: 1.3
A79: 5 | B79: 300 | C79: 5 | D79: 53005 | E79: 48 | F79: 1.3
A80: 5 | B80: 300 | C80: 6 | D80: 53006 | E80: 57 | F80: 1.3
A81: 5 | B81: 400 | C81: 2 | D81: 54002 | E81: 28 | F81: 1.3
A82: 5 | B82: 400 | C82: 3 | D82: 54003 | E82: 41 | F82: 1.3
A83: 5 | B83: 400 | C83: 4 | D83: 54004 | E83: 52 | F83: 1.3
A84: 5 | B84: 400 | C84: 5 | D84: 54005 | E84: 64 | F84: 1.3
A85: 5 | B85: 400 | C85: 6 | D85: 54006 | E85: 75 | F85: 1.3
A86: 5 | B86: 500 | C86: 2 | D86: 55002 | E86: 37 | F86: 1.3
A87: 5 | B87: 500 | C87: 3 | D87: 55003 | E87: 51 | F87: 1.3
A88: 5 | B88: 500 | C88: 4 | D88: 55004 | E88: 65 | F88: 1.3
A89: 5 | B89: 500 | C89: 5 | D89: 55005 | E89: 80 | F89: 1.3
A90: 5 | B90: 500 | C90: 6 | D90: 55006 | E90: 94 | F90: 1.3
A91: 5 | B91: 600 | C91: 2 | D91: 56002 | E91: 44 | F91: 1.3
A92: 5 | B92: 600 | C92: 3 | D92: 56003 | E92: 60 | F92: 1.3
A93: 5 | B93: 600 | C93: 4 | D93: 56004 | E93: 77 | F93: 1.3
A94: 5 | B94: 600 | C94: 5 | D94: 56005 | E94: 65 | F94: 1.3
A95: 5 | B95: 600 | C95: 6 | D95: 56006 | E95: 113 | F95: 1.3
A96: 5 | B96: 750 | C96: 2 | D96: 57502 | E96: 55 | F96: 1.3
A97: 5 | B97: 750 | C97: 3 | D97: 57503 | E97: 75 | F97: 1.3
A98: 5 | B98: 750 | C98: 4 | D98: 57504 | E98: 95 | F98: 1.3
A99: 5 | B99: 750 | C99: 5 | D99: 57505 | E99: 117 | F99: 1.3
A100: 5 | B100: 750 | C100: 6 | D100: 57506 | E100: 137 | F100: 1.3
A101: 5 | B101: 900 | C101: 2 | D101: 59002 | E101: 67 | F101: 1.3
A102: 5 | B102: 900 | C102: 3 | D102: 59003 | E102: 89 | F102: 1.3
A103: 5 | B103: 900 | C103: 4 | D103: 59004 | E103: 112 | F103: 1.3
A104: 5 | B104: 900 | C104: 5 | D104: 59005 | E104: 138 | F104: 1.3
A105: 5 | B105: 900 | C105: 6 | D105: 59006 | E105: 163 | F105: 1.3
A106: 5 | B106: 1000 | C106: 2 | D106: 510002 | E106: 73 | F106: 1.3
A107: 5 | B107: 1000 | C107: 3 | D107: 510003 | E107: 98 | F107: 1.3
A108: 5 | B108: 1000 | C108: 4 | D108: 510004 | E108: 124 | F108: 1.3
A109: 5 | B109: 1000 | C109: 5 | D109: 510005 | E109: 151 | F109: 1.3
A110: 5 | B110: 1000 | C110: 6 | D110: 510006 | E110: 180 | F110: 1.3
A111: 5 | B111: 1200 | C111: 2 | D111: 512002 | E111: 86 | F111: 1.3
A112: 5 | B112: 1200 | C112: 3 | D112: 512003 | E112: 116 | F112: 1.3
A113: 5 | B113: 1200 | C113: 4 | D113: 512004 | E113: 147 | F113: 1.3
A114: 5 | B114: 1200 | C114: 5 | D114: 512005 | E114: 179 | F114: 1.3
A115: 5 | B115: 1200 | C115: 6 | D115: 512006 | E115: 209 | F115: 1.3
A116: 5 | B116: 1500 | C116: 2 | D116: 515002 | E116: 106 | F116: 1.3
A117: 5 | B117: 1500 | C117: 3 | D117: 515003 | E117: 143 | F117: 1.3
A118: 5 | B118: 1500 | C118: 4 | D118: 515004 | E118: 180 | F118: 1.3
A119: 5 | B119: 1500 | C119: 5 | D119: 515005 | E119: 215 | F119: 1.3
A120: 5 | B120: 1500 | C120: 6 | D120: 515006 | E120: 250 | F120: 1.3
A121: 5 | B121: 2000 | C121: 2 | D121: 520002 | E121: 140 | F121: 1.3
A122: 5 | B122: 2000 | C122: 3 | D122: 520003 | E122: 189 | F122: 1.3
A123: 5 | B123: 2000 | C123: 4 | D123: 520004 | E123: 237 | F123: 1.3
A124: 5 | B124: 2000 | C124: 5 | D124: 520005 | E124: 282 | F124: 1.3
A125: 5 | B125: 2000 | C125: 6 | D125: 520006 | E125: 330 | F125: 1.3
A126: 5 | B126: 2500 | C126: 2 | D126: 525002 | E126: 174 | F126: 1.3
A127: 5 | B127: 2500 | C127: 3 | D127: 525003 | E127: 236 | F127: 1.3
A128: 5 | B128: 2500 | C128: 4 | D128: 525004 | E128: 295 | F128: 1.3
A129: 5 | B129: 2500 | C129: 5 | D129: 525005 | E129: 347 | F129: 1.3
A130: 5 | B130: 2500 | C130: 6 | D130: 525006 | E130: 403 | F130: 1.3
A144: Bezeichnung | B144: Wert
A145: Normleistung / Meter (Glied) | B145: =VLOOKUP(S3,D4:E142,2,FALSE) -> 436 | C145: =IF(OR(L3=L4,L3=L5),"W/m",Translation!F436) -> W/m
A146: Glieder bzw. Länge inmm | B146: =IF(OR(L3=L4,L3=L5),T3,U3) -> 400
A147: Normleistung in Watt | B147: =IF(OR(L3=L4,L3=L5),B145/1000*T3,B145*B146) -> 174.4
A148: Heizkörperexponent | B148: =VLOOKUP(S3,D4:F142,3,FALSE) -> 1.25
A149: dtln,Betrieb | B149: =((H3-I3)/(LN((H3-J3)/(I3-J3)))/49.83)^B148 -> 
A150: Leistung in Watt | B150: =ROUND(B147*B149,0) -> 

Sheet DatenRohre (hidden)
B2: Nennweite | C2: d-außen | D2: d-innen | E2: Querschnitt | F2: Rauhigkeit
A3: Cu | B3: Cu 12 x 1,0 | C3: 12 | D3: 0.01 | E3: =PI()/4*D3^2 -> 7.853981634e-05 | F3: 0.0015
A4: Cu | B4: Cu 15 x 1,0 | C4: 15 | D4: 0.013 | E4: =PI()/4*D4^2 -> 0.0001327322896 | F4: 0.0015
A5: Cu | B5: Cu 18 x 1,0 | C5: 18 | D5: 0.016 | E5: 0.0002010619298 | F5: 0.0015
A6: Cu | B6: Cu 22 x 1,0 | C6: 22 | D6: 0.02 | E6: 0.0003141592654 | F6: 0.0015
A7: Cu | B7: Cu 28 x 1,5 | C7: 28 | D7: 0.025 | E7: 0.0004908738521 | F7: 0.0015
A8: Cu | B8: Cu 35 x 1,5 | C8: 35 | D8: 0.032 | E8: 0.0008042477193 | F8: 0.0015
A9: Cu | B9: Cu 42 x 1,5 | C9: 42 | D9: 0.039 | E9: 0.001194590607 | F9: 0.0015
A10: Cu | B10: Cu 54 x 2,0 | C10: 54 | D10: 0.05 | E10: 0.001963495408 | F10: 0.0015
A11: Cu | B11: Cu 76,1 x 2,0 | C11: 76.1 | D11: 0.0721 | E11: 0.004082821667 | F11: 0.0015
A12: Cu | B12: Cu 88,9 x 2,0 | C12: 88.9 | D12: 0.0849 | E12: 0.005661157816 | F12: 0.0015
A13: Cu | B13: Cu 108 x 2,5 | C13: 108 | D13: 0.103 | E13: 0.008332289115 | F13: 0.0015
A14: Cu | B14: Cu 133 x 3,0 | C14: 133 | D14: 0.127 | E14: 0.01266768698 | F14: 0.0015
A15: Cu | B15: Cu 159 x 3,0 | C15: 159 | D15: 0.153 | E15: 0.01838538561 | F15: 0.0015
A16: Cu | B16: Cu 219 x 3,0 | C16: 219 | D16: 0.213 | E16: 0.03563272928 | F16: 0.0015
A17: Cu | B17: Cu 267 x 3,0 | C17: 267 | D17: 0.261 | E17: 0.05350210829 | F17: 0.0015
A53: Gewinde M | B53: DN 10 (17 x 2,3) | C53: 17 | D53: 0.0126 | E53: 0.0001246898124 | F53: 0.02
A54: Gewinde M | B54: DN 15 (21 x 2,7) | C54: 15 | D54: 0.0161 | E54: 0.0002035830579 | F54: 0.02
A55: Gewinde M | B55: DN 20 (27 x 2,7) | C55: 20 | D55: 0.0216 | E55: 0.0003664353671 | F55: 0.02
A56: Gewinde M | B56: DN 25 (34 x 3,3) | C56: 25 | D56: 0.0272 | E56: 0.0005810689772 | F56: 0.02
A57: Gewinde M | B57: DN 32 (42 x 3,3) | C57: 32 | D57: 0.0359 | E57: 0.001012229007 | F57: 0.02
A58: Gewinde M | B58: DN 40 (48 x 3,3) | C58: 40 | D58: 0.0418 | E58: 0.001372279087 | F58: 0.02
A59: Gewinde M | B59: DN 50 (60 x 3,7) | C59: 50 | D59: 0.053 | E59: 0.002206183441 | F59: 0.02
A60: Gewinde M | B60: DN 65 (76 x 3,7) | C60: 65 | D60: 0.0688 | E60: 0.003717635083 | F60: 0.02
A61: Gewinde M | B61: DN 80 (89 x 4,1) | C61: 80 | D61: 0.0808 | E61: 0.005127581865 | F61: 0.02
A62: Gewinde M | B62: DN 100 (114 x 4,5) | C62: 100 | D62: 0.1053 | E62: 0.008708565522 | F62: 0.02
A63: Gewinde M | B63: DN 125 (140 x 4,9) | C63: 125 | D63: 0.13 | E63: 0.01327322896 | F63: 0.02
A64: Gewinde M | B64: DN 150 (165 x 4,9) | C64: 165 | D64: 0.1554 | E64: 0.01896670591 | F64: 0.02
